Body Name,Service Area,Expenses Type,Invoice Payment Date,Transaction Number,Supplier Name,Net Amount
Manchester City Council,Manchester Leisure,Other Insurance,01-Aug-23,1908171829,Aon Ltd,"6,421.40"
Manchester City Council,Manchester Leisure,Grant Payments,01-Aug-23,5105884306,Contemporary Art Society,"2,250.00"
Manchester City Council,Highways Services,Payments to Sub-Contractors,01-Aug-23,5105884289,Utilities Design & Planning Ltd,"2,000.00"
Manchester City Council,Highways Services,Payments to Sub-Contractors,01-Aug-23,5105884290,Utilities Design & Planning Ltd,"2,000.00"
Manchester City Council,Manchester Leisure,Professional fees,01-Aug-23,5105884208,Experian Limited,820.30
Manchester City Council,Chief Executives,Agency staff provision,01-Aug-23,5105884251,Deekay Technical Recruitment Ltd,"-14,828.15"
Manchester City Council,Chief Executives,Agency staff provision,01-Aug-23,5105884252,Deekay Technical Recruitment Ltd,"14,828.15"
Manchester City Council,Adult Social Care,Third party payments to Health Authority,01-Aug-23,5105884217,Greater Manchester Mental Health,"11,763.00"
Manchester City Council,Manchester Leisure,Payments to Sub-Contractors,01-Aug-23,5105884281,Hulme Community Garden Centre,"1,000.00"
Manchester City Council,Adult Social Care,Professional fees,01-Aug-23,5105884233,Independent Choices Gtr Manchester,500.00
Manchester City Council,Adult Social Care,Third party payments relating to Voluntary Organisations,01-Aug-23,5105884239,Jigsaw Homes North,"13,375.00"
Manchester City Council,Adult Social Care,Third party payments relating to Voluntary Organisations,01-Aug-23,5105884239,Jigsaw Homes North,"1,841.75"
Manchester City Council,Adult Social Care,Third party payments relating to Voluntary Organisations,01-Aug-23,5105884240,Jigsaw Homes North,"13,375.00"
Manchester City Council,Adult Social Care,Third party payments relating to Voluntary Organisations,01-Aug-23,5105884240,Jigsaw Homes North,"1,841.75"
Manchester City Council,Chief Executives,Advertising,01-Aug-23,5105884288,Best Asian Media Ltd,800.00
Manchester City Council,Chief Executives,Legal Fees,01-Aug-23,5105884207,Warwickshire County Council,787.65
Manchester City Council,Chief Executives,Legal Fees,01-Aug-23,5105884209,Warwickshire County Council,"1,859.51"
Manchester City Council,Adult Social Care,Equipment,01-Aug-23,5105884254,Drive Devilbiss Healthcare Ltd,"5,463.00"
Manchester City Council,Manchester Leisure,Professional fees,01-Aug-23,5105884268,Rackline Limited,623.00
Manchester City Council,Adult Social Care,Third party payments relating to Voluntary Organisations,01-Aug-23,5105884237,Manchester Womens Aid,"6,340.66"
Manchester City Council,Adult Social Care,Professional fees,01-Aug-23,5105884286,SQW,"9,990.00"
Manchester City Council,Adult Social Care,Rents,01-Aug-23,5105884167,United Property Management Ltd,"24,023.70"
Manchester City Council,Chief Executives,Works and associated costs for Land and Buildings,01-Aug-23,5105884266,Buro Happold Limited,"1,000.00"
Manchester City Council,Manchester Leisure,Testing Fees,01-Aug-23,5105884223,County Scientific Services,"2,080.00"
Manchester City Council,Chief Executives,Works and associated costs for Land and Buildings,01-Aug-23,5105884269,Pierre Angulaire Limited,"24,336.00"
Manchester City Council,Chief Executives,Works and associated costs for Land and Buildings,01-Aug-23,5105884270,Pierre Angulaire Limited,"11,880.00"
Manchester City Council,Childrens & Education Services,Payments for services,01-Aug-23,5105884224,Your Chapter Ltd,"9,552.51"
Manchester City Council,Childrens & Education Services,Payments for services,01-Aug-23,5105884225,Your Chapter Ltd,"17,947.14"
Manchester City Council,Childrens & Education Services,Payments for services,01-Aug-23,5105884258,Your Chapter Ltd,"15,920.85"
Manchester City Council,Childrens & Education Services,Payments for services,01-Aug-23,5105884259,Your Chapter Ltd,"9,552.51"
Manchester City Council,Childrens & Education Services,Payments for services,01-Aug-23,5105884292,Your Chapter Ltd,"17,947.14"
Manchester City Council,Childrens & Education Services,Payments for services,01-Aug-23,5105884293,Your Chapter Ltd,"-9,841.98"
Manchester City Council,Childrens & Education Services,Payments for services,01-Aug-23,5105884294,Your Chapter Ltd,"12,447.21"
Manchester City Council,Childrens & Education Services,Payments for services,01-Aug-23,5105884295,Your Chapter Ltd,"17,947.14"
Manchester City Council,Childrens & Education Services,Payments for services,01-Aug-23,5105884296,Your Chapter Ltd,"25,964.98"
Manchester City Council,Childrens & Education Services,Payments for services,01-Aug-23,5105884297,Your Chapter Ltd,"10,050.96"
Manchester City Council,Adult Social Care,Rents,01-Aug-23,5105884260,K L Properties,"17,185.00"
Manchester City Council,Chief Executives,Works and associated costs for Land and Buildings,01-Aug-23,5105884265,BMS Software (Northern) Ltd,"58,400.00"
Manchester City Council,Manchester Leisure,Professional fees,01-Aug-23,5105884222,Eville & Jones Commercial Services,"7,422.88"
Manchester City Council,Regeneration Finance,CRB Fees,01-Aug-23,5105884204,Complete Background Screening Ltd,900.00
Manchester City Council,Childrens & Education Services,Professional fees,01-Aug-23,5105884227,Prospero Teaching,500.00
Manchester City Council,Childrens & Education Services,Professional fees,01-Aug-23,5105884230,Prospero Teaching,500.00
Manchester City Council,Hospitality + Trading Services,Vehicle Fuel Costs,01-Aug-23,5105884256,Standard Fuels Oils,"14,569.42"
Manchester City Council,Childrens & Education Services,Payments for services,01-Aug-23,5105884313,Inspire Training & Education,"11,468.52"
Manchester City Council,Chief Executives,Compensation Payments,01-Aug-23,1908181319,Greater Manchester Law Centre,"4,500.00"
Manchester City Council,Adult Social Care,Bed & Breakfast Acc,01-Aug-23,5105884243,VSP BEAUCLIFFE LTD,"116,505.00"
Manchester City Council,Adult Social Care,Bed & Breakfast Acc,01-Aug-23,5105884244,VSP BEAUCLIFFE LTD,"144,882.50"
Manchester City Council,Highways Services,Grounds Maintenance,01-Aug-23,5105884228,Crowdguard Limited,"2,077.50"
Manchester City Council,Childrens & Education Services,Payments for services,01-Aug-23,5105884312,Care Solutions Recruitment,"1,038.40"
Manchester City Council,Adult Social Care,Furniture,01-Aug-23,5105884236,Rtech Group Limited,"8,079.18"
Manchester City Council,Childrens & Education Services,Professional fees,01-Aug-23,5105884245,The Movez Movement,"2,697.50"
Manchester City Council,Childrens & Education Services,Payments for services,01-Aug-23,5105884315,SENsational Tutors Ltd,862.50
Manchester City Council,Adult Social Care,Rents,01-Aug-23,5105884253,VSPG Housing Ltd,"2,280.00"
Manchester City Council,Adult Social Care,"Consumable items eg Toilet rolls, soap etc",01-Aug-23,5105884287,WILKYS FLOORING CONTRACTORS LTD,"1,850.00"
Manchester City Council,Adult Social Care,Rents,01-Aug-23,1908181360,Grovewell Properties,"9,114.24"
Manchester City Council,Adult Social Care,Rents,01-Aug-23,1908181297,Latchkey & Vault,"16,400.00"
Manchester City Council,Adult Social Care,Rents,01-Aug-23,1908181296,Let me Manchester,"18,375.00"
Manchester City Council,Adult Social Care,Rents,01-Aug-23,1908181299,Let me Manchester,"9,475.00"
Manchester City Council,Childrens & Education Services,Transport Taxis,01-Aug-23,1908179552,Michelle Reid & Albert Reid,552.00
Manchester City Council,Adult Social Care,Rents,01-Aug-23,1908181295,MJ Rental Ltd,"10,050.00"
Manchester City Council,Childrens & Education Services,Transport Taxis,01-Aug-23,1908179596,Mrs LJ Roast & Mr PS Roast,773.76
Manchester City Council,Childrens & Education Services,PNOR-Holidays,01-Aug-23,1908181293,Pine Lodge Holidays Ltd,"1,959.00"
Manchester City Council,Adult Social Care,Rents,01-Aug-23,1908181363,Ryder & Dutton,"3,015.00"
Manchester City Council,Adult Social Care,Rents,01-Aug-23,1908181358,Zenmor Assured Rents Ltd,775.00
Manchester City Council,Childrens & Education Services,Payments for services,02-Aug-23,5105884366,The Together Trust,"78,760.96"
Manchester City Council,Childrens & Education Services,Payments for services,02-Aug-23,5105884368,The Together Trust,"6,367.52"
Manchester City Council,Adult Social Care,Third party payments relating to Voluntary Organisations,02-Aug-23,5105884423,The Shaw Centre,"16,967.36"
Manchester City Council,Libraries and Theatres,Works and associated costs for Land and Buildings,02-Aug-23,5105884564,Eversheds Llp,"-8,000.00"
Manchester City Council,Manchester Leisure,Internal Repairs and Maintenance for buildings,02-Aug-23,5105884358,Failsworth Electrical Ltd,"1,835.00"
Manchester City Council,Regeneration Finance,Furniture,02-Aug-23,5105884420,BCL,648.40
Manchester City Council,Adult Social Care,Equipment,02-Aug-23,5105884333,Mangar International Ltd/Winncare,"6,300.00"
Manchester City Council,Adult Social Care,Equipment,02-Aug-23,5105884354,Sarabec Limited,599.85
Manchester City Council,Adult Social Care,Equipment,02-Aug-23,5105884355,Sarabec Limited,"2,116.00"
Manchester City Council,Chief Executives,Equipment Operating Lease,02-Aug-23,5105884308,Xerox (Uk) Ltd,"1,850.65"
Manchester City Council,Hospitality + Trading Services,Security,02-Aug-23,5105884447,Dante Fire & Security Ltd,588.00
Manchester City Council,Housing Revenue Account,Council Dwelling Adaptations,02-Aug-23,5105884403,PPG Architectural Coatings UK Ltd,"1,244.22"
Manchester City Council,Manchester Leisure,Refuse Collection,02-Aug-23,5105884464,Dickinson Environmental,"1,562.00"
Manchester City Council,Chief Executives,Agency staff provision,02-Aug-23,5105884452,Adecco Uk Ltd,"1,685.40"
Manchester City Council,Housing Revenue Account,Works and associated costs for Land and Buildings,02-Aug-23,5105884540,J Greenwood (Builders) Limited,"29,797.32"
Manchester City Council,Housing Revenue Account,Storage Costs,02-Aug-23,5105884301,Master Moves Ltd,"1,067.04"
Manchester City Council,Adult Social Care,Equipment,02-Aug-23,5105884547,NRS Healthcare,747.00
Manchester City Council,Environment and Operations,Construction Works,02-Aug-23,5105884160,Deloitte & Touche Llp,"2,500.00"
Manchester City Council,Chief Executives,Printing,02-Aug-23,5105884456,Allied Publicity Serv.(Manchester),"3,229.40"
Manchester City Council,Chief Executives,Counsel Costs,02-Aug-23,1908181336,Redacted Personal Information,"1,900.00"
Manchester City Council,Regeneration Finance,Grounds Maintenance,02-Aug-23,5105884468,Arboricultural Services Treework,500.00
Manchester City Council,Adult Social Care,Third party payments to Health Authority,02-Aug-23,5105884345,BHA for Equality,"-9,062.25"
Manchester City Council,Adult Social Care,Third party payments to Health Authority,02-Aug-23,5105884479,BHA for Equality,"20,000.00"
Manchester City Council,Adult Social Care,Payments for services,02-Aug-23,5105884398,Mosscare St Vincent's Housing,"3,616.12"
Manchester City Council,Adult Social Care,Payments for services,02-Aug-23,5105884399,Mosscare St Vincent's Housing,"3,616.12"
Manchester City Council,Adult Social Care,Payments for services,02-Aug-23,5105884400,Mosscare St Vincent's Housing,"3,616.12"
Manchester City Council,Adult Social Care,Payments for services,02-Aug-23,5105884421,Mosscare St Vincent's Housing,"3,616.12"
Manchester City Council,Adult Social Care,Payments for services,02-Aug-23,5105884424,Turning Point Services,"211,376.65"
Manchester City Council,Chief Executives,Agency staff provision,02-Aug-23,5105884249,Pertemps Professional Recruitment L,"17,836.54"
Manchester City Council,Adult Social Care,Personal needs of client,02-Aug-23,5105884338,Central Mcr Uni Hospital t/a,"1,499.39"
Manchester City Council,Adult Social Care,Third party payments relating to Voluntary Organisations,02-Aug-23,5105884543,Irwell Valley Housing Association,"6,000.00"
Manchester City Council,Childrens & Education Services,Expenditure re Internal Trading Ordered Externally,02-Aug-23,1908184159,Manchester City Football Club Plc,"8,428.20"
Manchester City Council,Childrens & Education Services,Hire of Premises,02-Aug-23,5105884380,Manchester City Football Club Plc,"3,312.50"
Manchester City Council,Childrens & Education Services,Hire of Premises,02-Aug-23,5105884380,Manchester City Football Club Plc,"1,000.00"
Manchester City Council,Chief Executives,Transport Coach Hire,02-Aug-23,5105884320,Belle Vue Manchester,500.00
Manchester City Council,Childrens & Education Services,Supporting People Payments,02-Aug-23,5105884371,Child Action Northwest,"3,732.64"
Manchester City Council,Adult Social Care,Supporting People Payments,02-Aug-23,5105884371,Child Action Northwest,"4,316.92"
Manchester City Council,Adult Social Care,Grant and subscriptions awarded,02-Aug-23,5105884248,The Booth Centre,"10,121.08"
Manchester City Council,Regeneration Finance,"Consumable items eg Toilet rolls, soap etc",02-Aug-23,5105884493,Wilkinson Bros,960.00
Manchester City Council,Chief Executives,Subsistence and Conference Expenses,02-Aug-23,5105884377,Local Government Association,555.90
Manchester City Council,Chief Executives,Subsistence and Conference Expenses,02-Aug-23,5105884377,Local Government Association,555.90
Manchester City Council,Manchester Leisure,I T Provision,02-Aug-23,5105884277,Insight Direct (Uk) Ltd,"1,190.20"
Manchester City Council,Chief Executives,I T Provision,02-Aug-23,5105884278,Insight Direct (Uk) Ltd,"1,580.81"
Manchester City Council,GMIST (Greater Mcr Integrated),Contribution to GMCA,02-Aug-23,1908130523,GMCA,"555,497.21"
Manchester City Council,Regeneration Finance,Third party payments relating to Voluntary Organisations,02-Aug-23,5105884360,Proper Job Theatre company,"6,720.00"
Manchester City Council,Adult Social Care,Bed & Breakfast Acc,02-Aug-23,5105884406,Redacted Personal Information,"3,286.00"
Manchester City Council,Adult Social Care,Bed & Breakfast Acc,02-Aug-23,5105884425,Redacted Personal Information,"10,880.00"
Manchester City Council,Chief Executives,Third party payments relating to Voluntary Organisations,02-Aug-23,5105884459,Manchester Alliance For,"147,750.00"
Manchester City Council,Chief Executives,Postage,02-Aug-23,5105884307,Whistl North Ltd,"9,321.40"
Manchester City Council,Chief Executives,Counsel Costs,02-Aug-23,1908181301,18 St John Street Chambers,"1,250.00"
Manchester City Council,Childrens & Education Services,Third party payments to other Local Authorities,02-Aug-23,5105884501,Cheshire East Borough Council,"9,061.00"
Manchester City Council,Chief Executives,Legal Fees,02-Aug-23,5105884386,Weightmans LLP Solicitors,"2,842.25"
Manchester City Council,Chief Executives,Legal Fees,02-Aug-23,5105884387,Weightmans LLP Solicitors,"1,471.00"
Manchester City Council,Manchester Leisure,Grant and subscriptions awarded,02-Aug-23,5105884337,Business Working With Wythenshawe,"5,000.00"
Manchester City Council,Highways Services,Professional fees,02-Aug-23,5105884407,Wilde Consultants Ltd,"5,748.16"
Manchester City Council,Highways Services,Professional fees,02-Aug-23,5105884408,Wilde Consultants Ltd,"1,090.87"
Manchester City Council,Highways Services,Professional fees,02-Aug-23,5105884434,Wilde Consultants Ltd,631.49
Manchester City Council,Highways Services,Professional fees,02-Aug-23,5105884436,Wilde Consultants Ltd,"1,009.15"
Manchester City Council,Highways Services,Professional fees,02-Aug-23,5105884437,Wilde Consultants Ltd,948.17
Manchester City Council,Highways Services,Professional fees,02-Aug-23,5105884438,Wilde Consultants Ltd,"1,700.19"
Manchester City Council,Highways Services,Professional fees,02-Aug-23,5105884439,Wilde Consultants Ltd,654.50
Manchester City Council,Adult Social Care,Grant and subscriptions awarded,02-Aug-23,5105884352,Manchester Womens Aid,"3,333.33"
Manchester City Council,Adult Social Care,Third party payments relating to Voluntary Organisations,02-Aug-23,5105884234,Manchester Womens Aid,"14,284.83"
Manchester City Council,Adult Social Care,Third party payments relating to Voluntary Organisations,02-Aug-23,5105884235,Manchester Womens Aid,"25,421.41"
Manchester City Council,Adult Social Care,Third party payments relating to Voluntary Organisations,02-Aug-23,5105884280,Manchester Womens Aid,"41,666.70"
Manchester City Council,Adult Social Care,Personal needs of client,02-Aug-23,5105884449,Supra UK Ltd,"5,999.00"
Manchester City Council,Childrens & Education Services,Carer Support Payments ,02-Aug-23,5105884328,Advanced Child Care Assessments,711.30
Manchester City Council,Childrens & Education Services,Carer Support Payments ,02-Aug-23,5105884329,Advanced Child Care Assessments,746.30
Manchester City Council,Chief Executives,Licences Purchase,02-Aug-23,5105884340,Trustmarque Solutions Ltd,"1,000.00"
Manchester City Council,Regeneration Finance,Storage Costs,02-Aug-23,5105884504,Oasis UK formerly Box-It (NW),534.20
Manchester City Council,Housing Revenue Account,Peaks & Plains Mgmt,02-Aug-23,5105884405,Cheshire Peaks & Plains,"4,150.20"
Manchester City Council,Adult Social Care,Supported Accommodation,02-Aug-23,1908184166,Just One Healthcare Ltd,"2,350.98"
Manchester City Council,Regeneration Finance,Transport Taxis,02-Aug-23,5105884272,MCR Blackcab Ltd,"1,980.40"
Manchester City Council,Regeneration Finance,Transport Taxis,02-Aug-23,5105884273,MCR Blackcab Ltd,"1,867.48"
Manchester City Council,Regeneration Finance,Transport Taxis,02-Aug-23,5105884274,MCR Blackcab Ltd,807.00
Manchester City Council,Childrens & Education Services,Third party payments relating to Voluntary Organisations,02-Aug-23,5105884241,Manchester Mind,"13,715.50"
Manchester City Council,Childrens & Education Services,Third party payments relating to Voluntary Organisations,02-Aug-23,5105884242,Manchester Mind,"13,715.50"
Manchester City Council,Chief Executives,Counsel Costs,02-Aug-23,1908181294,Kenworthy's Chambers,600.00
Manchester City Council,Manchester Leisure,Payments to Sub-Contractors,02-Aug-23,5105884510,Willfab Ltd,600.00
Manchester City Council,Housing Revenue Account,Council Dwelling Adaptations,02-Aug-23,5105884363,Rothwell Plumbing Services Ltd,"3,688.26"
Manchester City Council,Housing Revenue Account,Council Dwelling Adaptations,02-Aug-23,5105884397,Rothwell Plumbing Services Ltd,"-3,688.26"
Manchester City Council,Chief Executives,Professional fees,02-Aug-23,5105884528,The Networking People (TNP) Ltd,"1,300.00"
Manchester City Council,Manchester Leisure,Agency staff provision,02-Aug-23,5105884324,Manchester Art Gallery,"1,263.60"
Manchester City Council,Childrens & Education Services,Payments for services,02-Aug-23,5105884346,National Offender Mgt Services,"25,020.00"
Manchester City Council,Corporate Services,WPS Awards,02-Aug-23,5105884441,Furniture Resource Centre Ltd,680.01
Manchester City Council,Corporate Services,WPS Awards,02-Aug-23,5105884554,Furniture Resource Centre Ltd,"1,172.18"
Manchester City Council,Regeneration Finance,Payments to Sub-Contractors,02-Aug-23,5105884247,G4S Secure Solutions (UK) Ltd,"2,220.50"
Manchester City Council,Childrens & Education Services,Payments for services,02-Aug-23,5105884390,Keys PCE Limited,"8,492.89"
Manchester City Council,Housing Revenue Account,Council Dwelling Adaptations,02-Aug-23,5105884490,Procare Shower & Bathroom Centre Lt,"2,494.66"
Manchester City Council,Hospitality + Trading Services,Goods purchased for resale in Council outlets,02-Aug-23,5105884509,C.J. Imports Ltd,"4,560.00"
Manchester City Council,Highways Services,Payments to Sub-Contractors,02-Aug-23,5105884200,Rhodes and Sons Construction Ltd,"7,925.23"
Manchester City Council,Adult Social Care,Third party payments to Health Authority,02-Aug-23,5105884478,SH:24 CIC,"-20,000.00"
Manchester City Council,Regeneration Finance,Security,02-Aug-23,5105884516,MITIE SECURITY LIMITED,"121,504.11"
Manchester City Council,Regeneration Finance,Security,02-Aug-23,5105884512,MITIE SECURITY LIMITED,543.38
Manchester City Council,Adult Social Care,Third party payments relating to Voluntary Organisations,02-Aug-23,5105884531,Change Grow Live Services Ltd,"150,033.00"
Manchester City Council,Adult Social Care,Third party payments relating to Voluntary Organisations,02-Aug-23,5105884532,Change Grow Live Services Ltd,"540,735.67"
Manchester City Council,Adult Social Care,Third party payments relating to Voluntary Organisations,02-Aug-23,5105884534,Change Grow Live Services Ltd,"54,374.28"
Manchester City Council,Adult Social Care,Third party payments relating to Voluntary Organisations,02-Aug-23,5105884535,Change Grow Live Services Ltd,"3,768.67"
Manchester City Council,Adult Social Care,Third party payments relating to Voluntary Organisations,02-Aug-23,5105884536,Change Grow Live Services Ltd,"65,663.75"
Manchester City Council,Childrens & Education Services,Payments for services,02-Aug-23,5105884444,Cambian Autism Services Limited,"-6,633.33"
Manchester City Council,Childrens & Education Services,Payments for services,02-Aug-23,5105884445,Cambian Autism Services Limited,"9,296.84"
Manchester City Council,Adult Social Care,Equipment,02-Aug-23,5105884339,Herida Healthcare Plc,572.00
Manchester City Council,Childrens & Education Services,Professional fees,02-Aug-23,5105884331,Redacted Personal Information,"1,031.15"
Manchester City Council,Adult Social Care,Personal needs of client,02-Aug-23,5105884463,Schuchmann LLP,"2,756.00"
Manchester City Council,Adult Social Care,Bed & Breakfast Acc,02-Aug-23,5105884359,Fairways Lodge,560.00
Manchester City Council,Childrens & Education Services,Professional fees,02-Aug-23,5105884484,Term2term Ltd,"1,900.00"
Manchester City Council,Manchester Leisure,Refuse Collection,02-Aug-23,5105884521,Streetspace Ltd,"5,722.00"
Manchester City Council,Regeneration Finance,Training and Development,02-Aug-23,5105884435,Training Qualifications UK Ltd,"1,296.00"
Manchester City Council,Childrens & Education Services,Payments for services,02-Aug-23,5105884465,Bright Futures Care Ltd,"5,011.24"
Manchester City Council,Adult Social Care,Furniture,02-Aug-23,5105884330,Rtech Group Limited,"8,600.00"
Manchester City Council,Manchester Leisure,Professional fees,02-Aug-23,5105884264,AV Resilience Ltd,500.00
Manchester City Council,Childrens & Education Services,Third party payments relating to Voluntary Organisations,02-Aug-23,5105884502,Key Creative Psychotherapy Services,"2,100.00"
Manchester City Council,Childrens & Education Services,Third party payments relating to Voluntary Organisations,02-Aug-23,5105884503,Key Creative Psychotherapy Services,"2,800.00"
Manchester City Council,Childrens & Education Services,Third party payments relating to Voluntary Organisations,02-Aug-23,5105884505,Key Creative Psychotherapy Services,"2,100.00"
Manchester City Council,Manchester Leisure,Counsel Costs,02-Aug-23,1908179565,Amy Smith,850.00
Manchester City Council,Chief Executives,Professional fees,02-Aug-23,1908181332,Christian Black,798.60
Manchester City Council,Manchester Leisure,Compensation Payments,02-Aug-23,1908181328,Driscoll Kingston,"13,500.00"
Manchester City Council,Manchester Leisure,Compensation Payments,02-Aug-23,1908181307,Emerlad Law,"2,550.00"
Manchester City Council,Corporate Services,Training and Development,02-Aug-23,1908177841,Odd Arts,760.00
Manchester City Council,Highways Services,Compensation Payments,02-Aug-23,1908181339,Russell Worth Limited,"3,500.00"
Manchester City Council,Highways Services,Legal Fees,02-Aug-23,1908181339,Russell Worth Limited,"2,607.00"
Manchester City Council,Housing Revenue Account,CD - Acquisition,02-Aug-23,1908184164,SCOTT REES AND CO,"110,000.00"
Manchester City Council,Manchester Leisure,Training and Development,02-Aug-23,1908181340,STA International,"4,274.51"
Manchester City Council,Adult Social Care,Supporting People Payments,03-Aug-23,5105884482,Praxis Care Group,"-6,524.81"
Manchester City Council,Manchester Leisure,Grant and subscriptions awarded,03-Aug-23,5105884714,Assist,725.21
Manchester City Council,Highways Services,Building Materials for direct delivery,03-Aug-23,5105884649,Broxap Ltd,"1,786.00"
Manchester City Council,Adult Social Care,Rents,03-Aug-23,5105884712,B & A Properties,"46,556.86"
Manchester City Council,Adult Social Care,Gas,03-Aug-23,5105884724,British Gas Plc,"3,244.97"
Manchester City Council,Manchester Leisure,External repairs and maintenance for buildings,03-Aug-23,5105884697,Laing O'Rourke Construction Ltd,"-14,843.10"
Manchester City Council,Manchester Leisure,Works and associated costs for Land and Buildings,03-Aug-23,5105884697,Laing O'Rourke Construction Ltd,"-638,030.08"
Manchester City Council,Regeneration Finance,Removal and Storage of Furniture,03-Aug-23,5105884610,Master Moves Ltd,984.02
Manchester City Council,Adult Social Care,Counsel Costs,03-Aug-23,5105884601,Kings Chambers,635.00
Manchester City Council,Manchester Leisure,External repairs and maintenance for buildings,03-Aug-23,5105884642,Groundwork Landscapes Ltd,"1,775.00"
Manchester City Council,Manchester Leisure,Hire of Equipment,03-Aug-23,5105884494,Lightmedia Displays Ltd,"17,855.00"
Manchester City Council,Highways Services,Building Materials for direct delivery,03-Aug-23,5105884751,TARMAC,663.03
Manchester City Council,Manchester Leisure,I T Provision,03-Aug-23,5105884351,Civica UK Ltd,"1,250.00"
Manchester City Council,Housing Revenue Account,Council Dwelling Adaptations,03-Aug-23,5105884555,Stannah Lift Services Ltd,"4,189.00"
Manchester City Council,Environment and Operations,Construction Works,03-Aug-23,5105884168,Transport for Greater Manchester,"1,657.76"
Manchester City Council,Housing General Fund,Building Works,03-Aug-23,5105884747,Manchester Care & Repair Ltd,"18,635.00"
Manchester City Council,Housing General Fund,Building Works,03-Aug-23,5105884748,Manchester Care & Repair Ltd,"1,863.50"
Manchester City Council,Adult Social Care,External repairs and maintenance for buildings,03-Aug-23,5105884614,Ashbury Meadow Primary School,"1,073.44"
Manchester City Council,Adult Social Care,Gas,03-Aug-23,5105884617,Ashbury Meadow Primary School,"2,023.67"
Manchester City Council,Adult Social Care,Electricity,03-Aug-23,5105884615,Ashbury Meadow Primary School,"3,778.38"
Manchester City Council,Childrens & Education Services,Internal Repairs and Maintenance for buildings,03-Aug-23,5105884708,Manchester School Services Limited,"1,400.00"
Manchester City Council,Chief Executives,Printing,03-Aug-23,5105884542,Wallace Printers Ltd,"11,286.00"
Manchester City Council,Manchester Leisure,Compensation Payments,03-Aug-23,1700155062,Express Solicitors,"-4,000.00"
Manchester City Council,Manchester Leisure,Compensation Payments,03-Aug-23,1908185073,Express Solicitors,"4,000.00"
Manchester City Council,Manchester Leisure,Legal Fees,03-Aug-23,1700155062,Express Solicitors,"-7,508.00"
Manchester City Council,Manchester Leisure,Legal Fees,03-Aug-23,1908185073,Express Solicitors,"7,508.00"
Manchester City Council,Manchester Leisure,Grant Payments,03-Aug-23,5105884611,Manchester Art Gallery Trust,750.00
Manchester City Council,Chief Executives,Works and associated costs for Land and Buildings,03-Aug-23,5105884743,Eric Wright Civil Engineering Limit,"14,716.39"
Manchester City Council,Chief Executives,Works and associated costs for Land and Buildings,03-Aug-23,5105884743,Eric Wright Civil Engineering Limit,"51,166.04"
Manchester City Council,Chief Executives,Works and associated costs for Land and Buildings,03-Aug-23,5105884744,Eric Wright Civil Engineering Limit,"29,340.53"
Manchester City Council,Regeneration Finance,Refuse Collection,03-Aug-23,5105884518,P Mcguinness & Co Ltd,560.00
Manchester City Council,Regeneration Finance,Refuse Collection,03-Aug-23,5105884519,P Mcguinness & Co Ltd,"1,980.00"
Manchester City Council,Regeneration Finance,Refuse Collection,03-Aug-23,5105884520,P Mcguinness & Co Ltd,"1,550.00"
Manchester City Council,Manchester Leisure,Payments to Sub-Contractors,03-Aug-23,5105884668,Manchester Dogs Home,"1,118.88"
Manchester City Council,Chief Executives,Legal Fees,03-Aug-23,5105884723,Warwickshire County Council,"1,485.14"
Manchester City Council,Chief Executives,Legal Fees,03-Aug-23,5105884725,Warwickshire County Council,979.56
Manchester City Council,Chief Executives,Legal Fees,03-Aug-23,5105884726,Warwickshire County Council,969.59
Manchester City Council,Libraries and Theatres,Vehicle Plant Furniture and Equipment,03-Aug-23,5105884628,Insight Direct (Uk) Ltd,"2,215.48"
Manchester City Council,Childrens & Education Services,Payments for services,03-Aug-23,5105884692,Loreto College,"15,781.48"
Manchester City Council,Adult Social Care,Rents,03-Aug-23,5105884657,Ashley Property services,"1,160.00"
Manchester City Council,Regeneration Finance,Training and Development,03-Aug-23,5105884696,Open Awards,741.00
Manchester City Council,Childrens Services,Building Works,03-Aug-23,5105884636,Diocese of Salford,"25,823.10"
Manchester City Council,Chief Executives,Agency staff provision,03-Aug-23,5105884731,Conexia Ltd,"4,162.50"
Manchester City Council,Chief Executives,Agency staff provision,03-Aug-23,5105884732,Conexia Ltd,"4,162.50"
Manchester City Council,Chief Executives,Counsel Costs,03-Aug-23,1908181368,18 St John Street Chambers,950.00
Manchester City Council,Chief Executives,Counsel Costs,03-Aug-23,1908181375,18 St John Street Chambers,770.00
Manchester City Council,Chief Executives,Training and Development,03-Aug-23,5105884677,The Monastery Manchester Ltd,"3,650.01"
Manchester City Council,Adult Social Care,Rents,03-Aug-23,5105884538,Accommodation Links Ltd,"86,752.86"
Manchester City Council,Regeneration Finance,Professional fees,03-Aug-23,5105884753,Jacobs UK Ltd,"2,498.95"
Manchester City Council,Regeneration Finance,Professional fees,03-Aug-23,5105884756,Jacobs UK Ltd,"1,046.75"
Manchester City Council,Chief Executives,Professional fees,03-Aug-23,1908181362,Advanced Child Care Assessments,"1,785.60"
Manchester City Council,Manchester Leisure,ICT Sup & Maintnance,03-Aug-23,5105884450,Trustmarque Solutions Ltd,"9,682.40"
Manchester City Council,Childrens & Education Services,Payments for services,03-Aug-23,5105884704,Enhance EHC Ltd,"11,744.09"
Manchester City Council,Childrens & Education Services,Payments for services,03-Aug-23,5105884705,Enhance EHC Ltd,"11,532.72"
Manchester City Council,Manchester Leisure,Works and associated costs for Land and Buildings,03-Aug-23,5105884448,Groundwork & Leisure Services Ltd,"1,790.00"
Manchester City Council,Chief Executives,Training and Development,03-Aug-23,5105884673,King's House Conference (Gtr Mcr),"2,430.00"
Manchester City Council,Adult Social Care,Personal needs of client,03-Aug-23,5105884653,Care & Independence Ltd,"-1,775.00"
Manchester City Council,Adult Social Care,Personal needs of client,03-Aug-23,5105884656,Care & Independence Ltd,"1,775.00"
Manchester City Council,Adult Social Care,Third party payments relating to Voluntary Organisations,03-Aug-23,5105884453,Sow the City,"7,500.00"
Manchester City Council,Adult Social Care,Bed & Breakfast Acc,03-Aug-23,5105884650,Redacted Personal Information,"6,860.00"
Manchester City Council,Manchester Leisure,Equipment,03-Aug-23,5105884549,Willfab Ltd,590.00
Manchester City Council,Chief Executives,Professional fees,03-Aug-23,1908181377,Alpha Biolaboratories Limited,524.74
Manchester City Council,Hospitality + Trading Services,Equipment,03-Aug-23,5105884681,Cycle Waggle Ltd,541.17
Manchester City Council,Environment and Operations,Construction Works,03-Aug-23,5105884548,CityFibre Limited,"-2,500.00"
Manchester City Council,Chief Executives,General Office expenses,03-Aug-23,1908181359,Carter Brown The Expert Service,"2,393.50"
Manchester City Council,Chief Executives,General Office expenses,03-Aug-23,1908183921,Carter Brown The Expert Service,540.00
Manchester City Council,Adult Social Care,Personal needs of client,03-Aug-23,5105884170,Creative Care Limited,"5,402.00"
Manchester City Council,Adult Social Care,Rents,03-Aug-23,5105884663,Housing Social Ltd,"4,720.00"
Manchester City Council,Corporate Services,Professional fees,03-Aug-23,5105884413,Redacted Personal Information,"1,340.00"
Manchester City Council,Corporate Services,Professional fees,03-Aug-23,5105884412,Redacted Personal Information,"1,970.15"
Manchester City Council,Chief Executives,Professional fees,03-Aug-23,1908183928,Pickering Psychology Services Ltd,617.78
Manchester City Council,Chief Executives,Counsel Costs,03-Aug-23,1908181361,Central Chambers,750.00
Manchester City Council,Corporate Services,WPS Awards,03-Aug-23,5105884557,Furniture Resource Centre Ltd,793.93
Manchester City Council,Corporate Services,WPS Awards,03-Aug-23,5105884591,Furniture Resource Centre Ltd,900.13
Manchester City Council,Corporate Services,WPS Awards,03-Aug-23,5105884598,Furniture Resource Centre Ltd,544.29
Manchester City Council,Childrens & Education Services,Payments for services,03-Aug-23,5105884627,Thompsons Academy Ltd,"1,925.00"
Manchester City Council,Childrens & Education Services,Payments for services,03-Aug-23,5105884737,Keys PCE Limited,"3,392.00"
Manchester City Council,Childrens & Education Services,Payments for services,03-Aug-23,5105884738,Keys PCE Limited,"4,218.80"
Manchester City Council,Childrens & Education Services,Payments for services,03-Aug-23,5105884739,Keys PCE Limited,"6,801.38"
Manchester City Council,Childrens & Education Services,Payments for services,03-Aug-23,5105884740,Keys PCE Limited,"7,600.00"
Manchester City Council,Childrens & Education Services,Payments for services,03-Aug-23,5105884720,Teenage Works,"512,510.33"
Manchester City Council,Chief Executives,Counsel Costs,03-Aug-23,1908181374,Redacted Personal Information,770.83
Manchester City Council,Manchester Leisure,Grant and subscriptions awarded,03-Aug-23,5105884600,Nurturing Foundations,500.00
Manchester City Council,Adult Social Care,Security,03-Aug-23,5105884571,UNIQUE SPECIALIST SERVICES,"1,404.00"
Manchester City Council,Housing Revenue Account,Professional fees,03-Aug-23,1908181302,Morgan Sindall Property,"10,299.63"
Manchester City Council,Corporate Services,Car Parking Permits,03-Aug-23,5105884664,Yunex Ltd,"7,097.65"
Manchester City Council,Chief Executives,Grant and subscriptions awarded,03-Aug-23,5105884706,Proforma Arts,"6,900.00"
Manchester City Council,Regeneration Finance,General Office expenses,03-Aug-23,5105884440,Bruntwood (Heron House),"1,107.00"
Manchester City Council,Chief Executives,Professional fees,03-Aug-23,5105884537,OTB Engineering Limited,"86,752.86"
Manchester City Council,Chief Executives,Professional fees,03-Aug-23,5105884539,OTB Engineering Limited,"-86,752.86"
Manchester City Council,Childrens & Education Services,Payments for services,03-Aug-23,5105884701,Dragon Occupational Therapy Ltd,"1,900.00"
Manchester City Council,Childrens & Education Services,Payments for services,03-Aug-23,5105884702,Dragon Occupational Therapy Ltd,"2,275.00"
Manchester City Council,Childrens & Education Services,Payments for services,03-Aug-23,5105884703,Dragon Occupational Therapy Ltd,"1,875.00"
Manchester City Council,Adult Social Care,Rents,03-Aug-23,5105884671,NWA Housing Ltd,"1,482.25"
Manchester City Council,Adult Social Care,Furniture,03-Aug-23,5105884722,Rtech Group Limited,"3,658.33"
Manchester City Council,Adult Social Care,Furniture,03-Aug-23,5105884728,Rtech Group Limited,"4,429.17"
Manchester City Council,Chief Executives,Examination Fees,03-Aug-23,5105884621,Toxicology UK Ltd,"9,025.00"
Manchester City Council,Chief Executives,Training and Development,03-Aug-23,5105884694,ASK Europe Limited,"11,040.00"
Manchester City Council,Adult Social Care,Furniture,03-Aug-23,5105884654,R&S Properties Ltd,"3,600.00"
Manchester City Council,Chief Executives,Counsel Costs,03-Aug-23,1908183922,Eleanor Keehan,"1,962.50"
Manchester City Council,Manchester Leisure,Training and Development,03-Aug-23,1908184598,HGS Security Limited,"1,091.60"
Manchester City Council,Manchester Leisure,Special Event,03-Aug-23,1908184142,Inflect Partners Limited,"5,000.00"
Manchester City Council,Chief Executives,Professional fees,03-Aug-23,1908183929,JSA Psychotherapy Ltd,795.00
Manchester City Council,Adult Social Care,Rents,03-Aug-23,1908185087,MHHG Estates,"1,700.00"
Manchester City Council,Adult Social Care,Rents,03-Aug-23,1908185088,MJ Rental Ltd,"3,873.76"
Manchester City Council,Chief Executives,Counsel Costs,03-Aug-23,1908184140,Paula Davitt,593.75
Manchester City Council,Adult Social Care,Spon Awards for exce,03-Aug-23,1908179597,Remembering Srebrenica charity,"1,595.00"
Manchester City Council,Chief Executives,Counsel Costs,03-Aug-23,1908181383,Sarah Kilvington,"1,000.00"
Manchester City Council,Adult Social Care,Rents,03-Aug-23,1908185090,Second Chance Housing,750.00
Manchester City Council,Adult Social Care,Rents,03-Aug-23,1908185091,Second Chance Housing,750.00
Manchester City Council,Adult Social Care,Rents,03-Aug-23,1908185092,Second Chance Housing,"1,050.00"
Manchester City Council,Manchester Leisure,Professional fees,03-Aug-23,1908185027,Youth Bank International,"10,000.00"
Manchester City Council,Manchester Leisure,Equipment,04-Aug-23,5105884768,Solon Security Ltd,"7,130.00"
Manchester City Council,Adult Social Care,Third party payments relating to Voluntary Organisations,04-Aug-23,5105884787,Gaddum Centre,"97,699.00"
Manchester City Council,Highways Services,Grounds Maintenance,04-Aug-23,5105884825,Utilities Design & Planning Ltd,-792.00
Manchester City Council,Highways Services,Grounds Maintenance,04-Aug-23,5105884826,Utilities Design & Planning Ltd,792.00
Manchester City Council,Highways Services,Payments to Sub-Contractors,04-Aug-23,5105884808,Utilities Design & Planning Ltd,"2,000.00"
Manchester City Council,Childrens & Education Services,Payments for services,04-Aug-23,5105884843,Reed Employment Plc,"-3,975.00"
Manchester City Council,Childrens & Education Services,Payments for services,04-Aug-23,5105884844,Reed Employment Plc,"19,594.28"
Manchester City Council,Childrens & Education Services,Payments for services,04-Aug-23,5105884845,Reed Employment Plc,"-6,620.31"
Manchester City Council,Childrens & Education Services,Payments for services,04-Aug-23,5105884846,Reed Employment Plc,"18,932.11"
Manchester City Council,Childrens & Education Services,Payments for services,04-Aug-23,5105884847,Reed Employment Plc,"15,643.37"
Manchester City Council,Childrens & Education Services,Payments for services,04-Aug-23,5105884848,Reed Employment Plc,"9,435.82"
Manchester City Council,Childrens & Education Services,Payments for services,04-Aug-23,5105884849,Reed Employment Plc,"8,755.29"
Manchester City Council,Environment and Operations,Construction Works,04-Aug-23,5105884699,Dowhigh Ltd,"107,971.69"
Manchester City Council,Environment and Operations,Construction Works,04-Aug-23,5105884827,Dowhigh Ltd,"-107,971.69"
Manchester City Council,Environment and Operations,Construction Works,04-Aug-23,5105884828,Dowhigh Ltd,"107,971.69"
Manchester City Council,Regeneration Finance,Professional fees,04-Aug-23,5105884824,Savills (UK) Ltd,"3,250.00"
Manchester City Council,Childrens & Education Services,Payments for services,04-Aug-23,5105884773,Central Mcr Uni Hospital t/a,"10,154.80"
Manchester City Council,Childrens & Education Services,Hire of Premises,04-Aug-23,5105884805,Quaker Trading Ltd,659.58
Manchester City Council,Highways Services,Payments to Sub-Contractors,04-Aug-23,5105884246,Transport for Greater Manchester,"4,115.49"
Manchester City Council,Regeneration Finance,Professional fees,04-Aug-23,5105884746,Manchester Care & Repair Ltd,"40,950.00"
Manchester City Council,Manchester Leisure,Cleaning Equipment and Materials,04-Aug-23,5105884819,Redgate Holdings Ltd,"20,243.30"
Manchester City Council,Manchester Leisure,Grounds Maintenance,04-Aug-23,5105884816,Redgate Holdings Ltd,"10,412.93"
Manchester City Council,Manchester Leisure,Disposables,04-Aug-23,5105884815,Redgate Holdings Ltd,"95,135.84"
Manchester City Council,Manchester Leisure,Liquid Contnr Recycl,04-Aug-23,5105884817,Redgate Holdings Ltd,"8,130.22"
Manchester City Council,Manchester Leisure,Tipping - Tonnage,04-Aug-23,5105884818,Redgate Holdings Ltd,"71,930.87"
Manchester City Council,Manchester Leisure,Tipping - Skips,04-Aug-23,5105884820,Redgate Holdings Ltd,"42,089.43"
Manchester City Council,Manchester Leisure,Recycling Facilities,04-Aug-23,5105884821,Redgate Holdings Ltd,"21,447.20"
Manchester City Council,Manchester Leisure,Refuse Collection,04-Aug-23,5105884814,Redgate Holdings Ltd,"62,708.94"
Manchester City Council,Manchester Leisure,Compensation Payments,04-Aug-23,1908185085,Express Solicitors,"4,000.00"
Manchester City Council,Manchester Leisure,Legal Fees,04-Aug-23,1908185085,Express Solicitors,"7,508.00"
Manchester City Council,Environment and Operations,Construction Works,04-Aug-23,5105884803,Rosgal Ltd,"41,955.32"
Manchester City Council,Chief Executives,Counsel Costs,04-Aug-23,1908184156,Redacted Personal Information,"21,639.59"
Manchester City Council,Manchester Leisure,Licences Purchase,04-Aug-23,5105884798,Insight Direct (Uk) Ltd,501.04
Manchester City Council,Housing Revenue Account,Vehicle Plant Furniture and Equipment,04-Aug-23,5105884766,Insight Direct (Uk) Ltd,"6,888.25"
Manchester City Council,Corporate Services,Stationery,04-Aug-23,5105884802,GMCA,"1,694.85"
Manchester City Council,Corporate Services,Machinery and equipment repairs,04-Aug-23,1908185952,Taranto Systems Ltd,"14,070.00"
Manchester City Council,Chief Executives,Hire of Equipment,04-Aug-23,5105884495,Sterling Event Group,"1,004.34"
Manchester City Council,Childrens & Education Services,Payments for services,04-Aug-23,5105884772,Redacted Personal Information,"6,358.68"
Manchester City Council,Chief Executives,Licences Purchase,04-Aug-23,5105884759,Trustmarque Solutions Ltd,"1,000.00"
Manchester City Council,Manchester Leisure,Special Event,04-Aug-23,5105884685,World Academy of Sport,"30,000.00"
Manchester City Council,Chief Executives,Hire of Equipment,04-Aug-23,5105884527,Universal Live,"1,512.26"
Manchester City Council,Regeneration Finance,Grounds Maintenance,04-Aug-23,5105884750,Biffa Municipal Limited,"3,575.72"
Manchester City Council,Childrens & Education Services,Third party payments to other Local Authorities,04-Aug-23,5105884775,The Orchards School,"6,720.00"
Manchester City Council,Childrens & Education Services,Payments for services,04-Aug-23,5105884776,Broadstones Independent Special Sch,"4,336.10"
Manchester City Council,Adult Social Care,Rents,04-Aug-23,5105884852,Housing Social Ltd,"4,720.00"
Manchester City Council,Adult Social Care,Rents,04-Aug-23,5105884769,District Homes Cic,"8,828.98"
Manchester City Council,Adult Social Care,Grant and subscriptions awarded,04-Aug-23,5105884822,On The Out CIC,"2,147.58"
Manchester City Council,Adult Social Care,Grant and subscriptions awarded,04-Aug-23,5105884823,On The Out CIC,"2,147.58"
Manchester City Council,Chief Executives,Counsel Costs,04-Aug-23,1908181373,Central Chambers,750.00
Manchester City Council,Chief Executives,Counsel Costs,04-Aug-23,1908184160,Central Chambers,850.00
Manchester City Council,Hospitality + Trading Services,Vehicle Fuel Costs,04-Aug-23,5105884257,Standard Fuels Oils,"22,464.62"
Manchester City Council,Hospitality + Trading Services,Vehicle Fuel Costs,04-Aug-23,5105884562,Standard Fuels Oils,"16,288.77"
Manchester City Council,Childrens & Education Services,Third party payments relating to Voluntary Organisations,04-Aug-23,5105884851,Healthy Body Healthy Mind CIC,"1,428.00"
Manchester City Council,Adult Social Care,Bed & Breakfast Acc,04-Aug-23,5105884836,Medlock House Ltd,"7,448.00"
Manchester City Council,Regeneration Finance,External repairs and maintenance for buildings,04-Aug-23,5105884833,Access UK Ltd,934.88
Manchester City Council,Regeneration Finance,Security,04-Aug-23,5105884582,MITIE SECURITY LIMITED,"120,282.07"
Manchester City Council,Regeneration Finance,Security,04-Aug-23,5105884584,MITIE SECURITY LIMITED,"110,982.61"
Manchester City Council,Regeneration Finance,Security,04-Aug-23,5105884583,MITIE SECURITY LIMITED,851.06
Manchester City Council,Regeneration Finance,Security,04-Aug-23,5105884585,MITIE SECURITY LIMITED,768.18
Manchester City Council,Childrens & Education Services,Third party payments to other Local Authorities,04-Aug-23,5105884774,South Failsworth Primary,"4,853.00"
Manchester City Council,Environment and Operations,Construction Works,04-Aug-23,5105884689,Ventbrook,"4,789.00"
Manchester City Council,Environment and Operations,Construction Works,04-Aug-23,5105884690,Ventbrook,"10,074.50"
Manchester City Council,Highways Services,Building Materials for direct delivery,04-Aug-23,5105884801,STANDARD SIGNS & TRAFFIC SYSTEMS,746.90
Manchester City Council,Chief Executives,Works and associated costs for Land and Buildings,04-Aug-23,5105884218,Allied London Campfield,"330,987.34"
Manchester City Council,Adult Social Care,Counsel Costs,04-Aug-23,1908185064,Andrew Kearins,720.00
Manchester City Council,Manchester Leisure,Water - Unmetered,04-Aug-23,1908176698,Business Stream,"8,849.35"
Manchester City Council,Manchester Leisure,Water - Unmetered,04-Aug-23,1908176701,Business Stream,"3,560.89"
Manchester City Council,Manchester Leisure,Water - Unmetered,04-Aug-23,1908176703,Business Stream,701.36
Manchester City Council,Manchester Leisure,Water - Unmetered,04-Aug-23,1908176704,Business Stream,"1,969.15"
Manchester City Council,Regeneration Finance,Grant and subscriptions awarded,04-Aug-23,1908185037,Charter St Mission,"53,568.80"
Manchester City Council,Regeneration Finance,Grant and subscriptions awarded,04-Aug-23,1908185038,Charter St Mission,"14,636.42"
Manchester City Council,Adult Social Care,Professional fees,04-Aug-23,1908130424,Disability Positive,610.95
Manchester City Council,Chief Executives,Professional fees,04-Aug-23,1908185052,Expert Psychology Consultancy Ltd,"2,377.46"
Manchester City Council,Chief Executives,Professional fees,04-Aug-23,1908185053,Expert Psychology Consultancy Ltd,973.46
Manchester City Council,Chief Executives,Professional fees,04-Aug-23,1908185057,Expert Psychology Consultancy Ltd,999.40
Manchester City Council,Manchester Leisure,Water - Unmetered,04-Aug-23,1908176718,Flint Bishop LLP,"17,249.95"
Manchester City Council,Childrens & Education Services,Professional fees,04-Aug-23,1908179998,Halo Project,"2,790.00"
Manchester City Council,Corporate Services,Works and associated costs for Land and Buildings,04-Aug-23,1908185951,HOWARD FITTON SOLICITORS,"170,476.17"
Manchester City Council,Adult Social Care,Computer Licenses,04-Aug-23,1908106499,IESE Innovations Ltd,"24,000.00"
Manchester City Council,Adult Social Care,Rents,04-Aug-23,1908185946,Michael Gallagher,"12,923.76"
Manchester City Council,Adult Social Care,Rents,04-Aug-23,1908185950,QASIM ASIF,"1,590.00"
Manchester City Council,Childrens & Education Services,PCard Recovery,05-Aug-23,1908185968,Diversity Travel Ltd,973.69
Manchester City Council,Childrens & Education Services,PCard Recovery,05-Aug-23,1908185969,Diversity Travel Ltd,757.66
Manchester City Council,Adult Social Care,Subsistence and Conference Expenses,05-Aug-23,5105884986,Diversity Travel Ltd,"1,658.43"
Manchester City Council,Chief Executives,Subsistence and Conference Expenses,05-Aug-23,5105884967,Diversity Travel Ltd,"1,085.32"
Manchester City Council,Manchester Leisure,Travel,05-Aug-23,5105884935,Diversity Travel Ltd,"1,274.69"
Manchester City Council,Manchester Leisure,Works and associated costs for Land and Buildings,07-Aug-23,5105884997,Kompan Ltd,"2,257.63"
Manchester City Council,Highways Services,Professional fees,07-Aug-23,5105884635,Ove Arup & Partners Ltd,"19,748.00"
Manchester City Council,Highways Services,Professional fees,07-Aug-23,5105884933,Ove Arup & Partners Ltd,"-19,748.00"
Manchester City Council,Manchester Leisure,I T Provision,07-Aug-23,5105884879,BT PLC,"1,052.13"
Manchester City Council,Manchester Leisure,I T Provision,07-Aug-23,5105884880,BT PLC,"1,871.24"
Manchester City Council,Corporate Services,Agency staff provision,07-Aug-23,5105884932,Michael Page International,672.00
Manchester City Council,Corporate Services,Agency staff provision,07-Aug-23,5105885021,Michael Page International,672.00
Manchester City Council,Corporate Services,Agency staff provision,07-Aug-23,5105885022,Michael Page International,672.00
Manchester City Council,Manchester Leisure,Contract Cleaning External,07-Aug-23,5105884786,Clearview Event Services Limited,"11,576.25"
Manchester City Council,Adult Social Care,Day Care Payments,07-Aug-23,5105885044,Age Concern Manchester,"14,165.43"
Manchester City Council,Adult Social Care,Day Care Payments,07-Aug-23,5105885045,Age Concern Manchester,"10,000.00"
Manchester City Council,Adult Social Care,Day Care Payments,07-Aug-23,5105885047,Age Concern Manchester,"10,520.49"
Manchester City Council,Housing General Fund,Building Works,07-Aug-23,1908186733,Handicare Accessibility Ltd,"2,672.00"
Manchester City Council,Highways Services,Grounds Maintenance,07-Aug-23,5105885011,Utilities Design & Planning Ltd,-792.00
Manchester City Council,Highways Services,Grounds Maintenance,07-Aug-23,5105885012,Utilities Design & Planning Ltd,792.00
Manchester City Council,Manchester Leisure,Works and associated costs for Land and Buildings,07-Aug-23,5105884698,Laing O'Rourke Construction Ltd,"387,221.37"
Manchester City Council,Chief Executives,Agency staff provision,07-Aug-23,5105884994,Adecco Uk Ltd,"2,000.00"
Manchester City Council,Chief Executives,Agency staff provision,07-Aug-23,5105884995,Adecco Uk Ltd,"2,036.00"
Manchester City Council,Manchester Leisure,Payments to Sub-Contractors,07-Aug-23,5105884926,Rigby Taylor Ltd,"7,280.00"
Manchester City Council,Chief Executives,Agency staff provision,07-Aug-23,5105885009,Eden Brown Synergy,"4,524.05"
Manchester City Council,Chief Executives,Agency staff provision,07-Aug-23,5105885010,Eden Brown Synergy,"11,705.70"
Manchester City Council,Highways Services,Building Materials for direct delivery,07-Aug-23,5105884779,TARMAC,"1,465.00"
Manchester City Council,Highways Services,Building Materials for direct delivery,07-Aug-23,5105884891,TARMAC,"1,265.11"
Manchester City Council,Adult Social Care,Third party payments relating to Voluntary Organisations,07-Aug-23,5105884929,Afro Carribean Care Group,"25,000.00"
Manchester City Council,Manchester Leisure,Hire of Premises,07-Aug-23,5105884392,Halle Concerts Society,"1,285.00"
Manchester City Council,Housing General Fund,Building Works,07-Aug-23,1908186735,Stannah Lift Services Ltd,"7,224.00"
Manchester City Council,Housing General Fund,Building Works,07-Aug-23,1908186736,Stannah Lift Services Ltd,"6,492.00"
Manchester City Council,Housing General Fund,Building Works,07-Aug-23,1908186739,Stannah Lift Services Ltd,"3,489.00"
Manchester City Council,Housing General Fund,Building Works,07-Aug-23,1908186734,Stannah Lift Services Ltd,"3,744.00"
Manchester City Council,Housing General Fund,Building Works,07-Aug-23,1908186737,Stannah Lift Services Ltd,"3,350.00"
Manchester City Council,Chief Executives,Hire of Premises,07-Aug-23,5105884267,Quaker Trading Ltd,600.00
Manchester City Council,Environment and Operations,Infrastructure Fees,07-Aug-23,1908185916,Transport for Greater Manchester,"87,774.61"
Manchester City Council,Adult Social Care,Third party payments relating to Voluntary Organisations,07-Aug-23,5105884885,Citizens Advice Manchester,"80,000.00"
Manchester City Council,Adult Social Care,Payments for services,07-Aug-23,5105885052,Brook,"16,102.40"
Manchester City Council,Adult Social Care,Third party payments relating to Voluntary Organisations,07-Aug-23,5105884888,The Depaul Trust,"100,000.00"
Manchester City Council,Childrens & Education Services,Third party payments to other Local Authorities,07-Aug-23,5105884457,Bury M.B.C.,"59,179.00"
Manchester City Council,Chief Executives,Printing,07-Aug-23,5105884915,Browns CTP Ltd,690.00
Manchester City Council,Regeneration Finance,External repairs and maintenance for buildings,07-Aug-23,5105884514,P Mcguinness & Co Ltd,565.00
Manchester City Council,Regeneration Finance,External repairs and maintenance for buildings,07-Aug-23,5105884515,P Mcguinness & Co Ltd,"7,050.00"
Manchester City Council,Childrens & Education Services,Professional fees,07-Aug-23,5105884999,Bennett Workplace Solutions Ltd,866.24
Manchester City Council,Chief Executives,Agency staff provision,07-Aug-23,5105885031,Hays Personnel,"55,494.18"
Manchester City Council,Regeneration Finance,Third party payments relating to Voluntary Organisations,07-Aug-23,5105884996,Proper Job Theatre company,"14,454.00"
Manchester City Council,Manchester Leisure,Equipment,07-Aug-23,5105884832,NU Fire & Security Ltd,583.00
Manchester City Council,Adult Social Care,Counsel Costs,07-Aug-23,1908185098,Gray's Inn Square Chambers Ltd,"1,750.00"
Manchester City Council,Hospitality + Trading Services,Equipment,07-Aug-23,1908186870,Stapletons Tyre Services,"3,595.36"
Manchester City Council,Childrens & Education Services,Day Care Payments,07-Aug-23,5105885025,Redacted Personal Information,"1,485.00"
Manchester City Council,Hospitality + Trading Services,Legal Fees,07-Aug-23,1908185940,Thompsons Solicitors,"2,500.00"
Manchester City Council,Manchester Leisure,Equipment,07-Aug-23,5105885027,MGB Plastics Limited,"15,804.00"
Manchester City Council,Hospitality + Trading Services,Vehicle Repairs,07-Aug-23,5105884949,Advanced Vehicle Technicians Ltd,"2,746.55"
Manchester City Council,Hospitality + Trading Services,Vehicle Repairs,07-Aug-23,5105885061,Advanced Vehicle Technicians Ltd,"1,395.58"
Manchester City Council,Manchester Leisure,Equipment,07-Aug-23,5105884590,Talurit (UK) Ltd,"1,370.00"
Manchester City Council,Childrens & Education Services,Equipment,07-Aug-23,1908187023,Asda Group Ltd (CARD ONLY),748.00
Manchester City Council,Manchester Leisure,Grant and subscriptions awarded,07-Aug-23,5105884883,Debdale Park Bowling & Social Club,"1,300.00"
Manchester City Council,Housing General Fund,Building Works,07-Aug-23,1908186738,UPS Building & Maintenance Ltd,"18,912.77"
Manchester City Council,Adult Social Care,Rents,07-Aug-23,5105884868,T15 Consultancy Ltd,"136,629.71"
Manchester City Council,Environment and Operations,Professional fees,07-Aug-23,5105884945,Smile Mediation,"2,970.00"
Manchester City Council,Adult Social Care,Rents,07-Aug-23,5105884291,K L Properties,"17,053.43"
Manchester City Council,Chief Executives,Payments to Sub-Contractors,07-Aug-23,5105884876,Redacted Personal Information,"1,141.35"
Manchester City Council,Chief Executives,Payments to Sub-Contractors,07-Aug-23,5105884913,Redacted Personal Information,735.30
Manchester City Council,Chief Executives,Catering,07-Aug-23,5105884917,Manchester Art Gallery,"1,333.10"
Manchester City Council,Chief Executives,Payments to Sub-Contractors,07-Aug-23,5105884790,Redacted Personal Information,"1,331.50"
Manchester City Council,Chief Executives,Professional fees,07-Aug-23,1908185839,Lextox,831.77
Manchester City Council,Adult Social Care,Payments for services,07-Aug-23,5105884916,Kaleidoscope Project,"3,000.00"
Manchester City Council,Adult Social Care,Rents,07-Aug-23,5105884925,District Homes Cic,"2,109.22"
Manchester City Council,Chief Executives,Payments to Sub-Contractors,07-Aug-23,5105884877,Anisa Abdi,512.21
Manchester City Council,Childrens & Education Services,Professional fees,07-Aug-23,5105885002,Prospero Teaching,500.00
Manchester City Council,Childrens & Education Services,Professional fees,07-Aug-23,5105885003,Prospero Teaching,500.00
Manchester City Council,Childrens & Education Services,Professional fees,07-Aug-23,5105885004,Prospero Teaching,500.00
Manchester City Council,Regeneration Finance,Hire of Premises,07-Aug-23,5105884850,Customer First Venue Services,"4,792.50"
Manchester City Council,Childrens & Education Services,Payments for services,07-Aug-23,5105884861,A S K Healthcare Ltd,920.00
Manchester City Council,Childrens & Education Services,Payments for services,07-Aug-23,5105884863,A S K Healthcare Ltd,920.00
Manchester City Council,Childrens & Education Services,Payments for services,07-Aug-23,5105884864,A S K Healthcare Ltd,920.00
Manchester City Council,Childrens & Education Services,Payments for services,07-Aug-23,5105884865,A S K Healthcare Ltd,"1,380.00"
Manchester City Council,Childrens & Education Services,Payments for services,07-Aug-23,5105884866,A S K Healthcare Ltd,"1,288.00"
Manchester City Council,Corporate Services,WPS Awards,07-Aug-23,5105884556,Furniture Resource Centre Ltd,581.61
Manchester City Council,Hospitality + Trading Services,Goods purchased for resale in Council outlets,07-Aug-23,5105885038,C.J. Imports Ltd,"4,240.00"
Manchester City Council,Hospitality + Trading Services,Goods purchased for resale in Council outlets,07-Aug-23,5105885040,C.J. Imports Ltd,660.00
Manchester City Council,Chief Executives,Counsel Costs,07-Aug-23,1908185137,Redacted Personal Information,"2,729.16"
Manchester City Council,Regeneration Finance,Security,07-Aug-23,5105884588,MITIE SECURITY LIMITED,"119,154.13"
Manchester City Council,Regeneration Finance,Security,07-Aug-23,5105884587,MITIE SECURITY LIMITED,"4,020.51"
Manchester City Council,Chief Executives,Licences Purchase,07-Aug-23,5105884806,Rightmove Group Limited,"5,000.04"
Manchester City Council,Adult Social Care,External repairs and maintenance for buildings,07-Aug-23,5105885039,T F Jones Property Services Ltd,828.52
Manchester City Council,Childrens & Education Services,Payments for services,07-Aug-23,5105884902,4syte Funding Limited,507.63
Manchester City Council,Childrens & Education Services,Payments for services,07-Aug-23,5105885042,4syte Funding Limited,507.63
Manchester City Council,Manchester Leisure,Counsel Costs,07-Aug-23,1908186009,Trinity Chambers,800.00
Manchester City Council,Regeneration Finance,I T Provision,07-Aug-23,5105884903,DMS Group,695.20
Manchester City Council,Manchester Leisure,Contract Cleaning External,07-Aug-23,5105884837,aAFD Services Ltd,"4,707.68"
Manchester City Council,Manchester Leisure,Contract Cleaning External,07-Aug-23,5105884923,aAFD Services Ltd,"-4,707.68"
Manchester City Council,Childrens & Education Services,Payments for services,07-Aug-23,5105885034,Redacted Personal Information,"-2,070.00"
Manchester City Council,Manchester Leisure,Grant and subscriptions awarded,07-Aug-23,5105885014,Self Care Creatives CIC,"1,515.00"
Manchester City Council,Manchester Leisure,Grant and subscriptions awarded,07-Aug-23,5105885014,Self Care Creatives CIC,"1,515.00"
Manchester City Council,Manchester Leisure,Grant and subscriptions awarded,07-Aug-23,5105885015,Mandem Meetup CIC,799.00
Manchester City Council,Manchester Leisure,Grant and subscriptions awarded,07-Aug-23,5105885015,Mandem Meetup CIC,799.00
Manchester City Council,Manchester Leisure,"Consumable items eg Toilet rolls, soap etc",07-Aug-23,1908186839,ABSOLUTEPRODUCT.CO,"1,226.58"
Manchester City Council,Childrens & Education Services,Personal needs of client,07-Aug-23,1908187027,ATLANTICA OSASIS&GARDENS,545.06
Manchester City Council,Chief Executives,"Consumable items eg Toilet rolls, soap etc",07-Aug-23,1908187038,C2E860801131T UKVI,"3,199.00"
Manchester City Council,Regeneration Finance,Joint Financing Cont,07-Aug-23,1908181334,Chalkstream Ltd,"5,975.00"
Manchester City Council,Adult Social Care,Rents,07-Aug-23,1908187089,Cheung Kong Asset Management Ltd,"1,350.00"
Manchester City Council,Childrens & Education Services,PNOR-Other Amenities,07-Aug-23,1908186963,DAVES CARPET WAREHOUSE LT,563.00
Manchester City Council,Highways Services,Compensation Payments,07-Aug-23,1908186012,Elmsleys Solicitors,"9,320.00"
Manchester City Council,Manchester Leisure,Hire of Equipment,07-Aug-23,1908187095,Generator Power Limited,"10,302.90"
Manchester City Council,Adult Social Care,Rents,07-Aug-23,1908187087,Harish Valji Raghvani,"1,050.00"
Manchester City Council,Adult Social Care,Rents,07-Aug-23,1908186802,Henry Wiltshire Limited,"1,615.38"
Manchester City Council,Adult Social Care,Rents,07-Aug-23,1908186802,Henry Wiltshire Limited,"2,750.00"
Manchester City Council,Childrens & Education Services,Bed & Breakfast Acc,07-Aug-23,1908187070,JENSA LTD,630.00
Manchester City Council,Childrens & Education Services,Childminding Fee Pay,07-Aug-23,1908187052,LITTLE FACES NURSE,834.60
Manchester City Council,Manchester Leisure,Compensation Payments,07-Aug-23,1908185944,NLS Law Solicitors,"7,000.00"
Manchester City Council,Childrens & Education Services,Training and Development,07-Aug-23,1908187055,PST BUSINESS SERVICES,714.00
Manchester City Council,Adult Social Care,Rents,07-Aug-23,1908187085,Qasim Asaf,840.00
Manchester City Council,Adult Social Care,Rents,07-Aug-23,1908186798,Qasim Asiaf,840.00
Manchester City Council,Childrens & Education Services,PNOR-Other Amenities,07-Aug-23,1908186921,RBCMOTO,544.09
Manchester City Council,Adult Social Care,Rents,07-Aug-23,1908186799,RR Property Company Ltd,"1,500.00"
Manchester City Council,Childrens & Education Services,Personal needs of client,07-Aug-23,1908187093,Serenity Welfare Limited,"2,394.33"
Manchester City Council,Manchester Leisure,"Consumable items eg Toilet rolls, soap etc",07-Aug-23,1908186829,SFL MOBILE RADIO LIMITED,"1,895.98"
Manchester City Council,Childrens & Education Services,Public Transport,07-Aug-23,1908186993,STENA LINE TRAVEL,512.00
Manchester City Council,Corporate Services,Training and Development,07-Aug-23,1908186811,THE RETROFIT ACADEMY,"4,500.00"
Manchester City Council,Childrens & Education Services,Bed & Breakfast Acc,07-Aug-23,1908186947,VICTORIA PARK  RE,"1,050.00"
Manchester City Council,Childrens & Education Services,Bed & Breakfast Acc,07-Aug-23,1908187022,VICTORIA PARK  RE,"1,050.00"
Manchester City Council,Manchester Leisure,Professional fees,08-Aug-23,5105885241,Redacted Personal Information,500.00
Manchester City Council,Childrens & Education Services,Payments for services,08-Aug-23,5105885310,The Together Trust,"3,949.45"
Manchester City Council,Childrens & Education Services,Payments for services,08-Aug-23,5105885311,The Together Trust,"4,426.48"
Manchester City Council,Childrens & Education Services,Payments for services,08-Aug-23,5105885312,The Together Trust,916.38
Manchester City Council,Childrens & Education Services,Payments for services,08-Aug-23,5105885314,The Together Trust,"4,608.02"
Manchester City Council,Childrens & Education Services,Payments for services,08-Aug-23,5105885315,The Together Trust,788.95
Manchester City Council,Adult Social Care,Personal needs of client,08-Aug-23,5105885303,Tunstall Healthcare (UK) Ltd,"4,680.00"
Manchester City Council,Libraries and Theatres,Works and associated costs for Land and Buildings,08-Aug-23,1908181364,Eversheds Llp,"1,472.00"
Manchester City Council,Adult Social Care,Equipment,08-Aug-23,5105885067,Sarabec Limited,"2,397.00"
Manchester City Council,Manchester Leisure,Library Materials Acquisition,08-Aug-23,1908187171,Martin-Lavell Limited,"1,480.66"
Manchester City Council,Adult Social Care,Works and associated costs for Land and Buildings,08-Aug-23,5105885266,Grantfen Fire & Security Ltd,"11,667.00"
Manchester City Council,Highways Services,Professional fees,08-Aug-23,5105885065,Mace Ltd,"10,636.20"
Manchester City Council,Childrens & Education Services,Payments for services,08-Aug-23,5105885318,Reed Employment Plc,"4,453.92"
Manchester City Council,Chief Executives,Agency staff provision,08-Aug-23,5105885082,Adecco Uk Ltd,"1,685.40"
Manchester City Council,Regeneration Finance,Removal and Storage of Furniture,08-Aug-23,5105885188,Master Moves Ltd,766.79
Manchester City Council,Adult Social Care,Professional fees,08-Aug-23,5105885304,Manchester Metropolitan University,"10,337.00"
Manchester City Council,Childrens & Education Services,Transport Taxis,08-Aug-23,5105885249,M Travel,-601.40
Manchester City Council,Childrens & Education Services,Transport Taxis,08-Aug-23,5105885252,M Travel,"60,140.00"
Manchester City Council,Childrens & Education Services,Payments for services,08-Aug-23,5105885216,Pontville Residential School,"52,641.00"
Manchester City Council,Childrens & Education Services,Payments for services,08-Aug-23,5105885220,Pontville Residential School,"52,641.00"
Manchester City Council,Childrens & Education Services,Payments for services,08-Aug-23,5105885221,Pontville Residential School,"29,568.41"
Manchester City Council,Regeneration Finance,Grounds Maintenance,08-Aug-23,5105885225,Arboricultural Services Treework,600.00
Manchester City Council,Manchester Leisure,Payments to Sub-Contractors,08-Aug-23,5105885269,Arboricultural Services Treework,600.00
Manchester City Council,Manchester Leisure,Contract Cleaning External,08-Aug-23,5105884928,Holt Brothers (Horwich) Ltd,670.00
Manchester City Council,Childrens & Education Services,Transport Coach Hire,08-Aug-23,5105885290,Redacted Personal Information,"-3,300.80"
Manchester City Council,Chief Executives,ICT Sup & Maintnance,08-Aug-23,5105885268,Civica UK Ltd,"4,000.00"
Manchester City Council,Regeneration Finance,Third party payments relating to Voluntary Organisations,08-Aug-23,5105885085,Caritas Diocese of Salford,"9,428.00"
Manchester City Council,Highways Services,Private Finance and Public Private partnership initiatives,08-Aug-23,5105884882,Amey Highways Lighting (Manchester),"750,571.79"
Manchester City Council,Manchester Leisure,Professional fees,08-Aug-23,5105885192,Wythenshawe Forum Trust Ltd,"5,846.40"
Manchester City Council,Childrens & Education Services,Gas,08-Aug-23,5105885215,Manchester School Services Limited,"80,017.95"
Manchester City Council,Childrens & Education Services,Private Finance and Public Private partnership initiatives,08-Aug-23,5105885218,Manchester School Services Limited,"457,087.67"
Manchester City Council,Environment and Operations,Construction Works,08-Aug-23,5105884904,P Casey & Co Ltd,"71,408.00"
Manchester City Council,Manchester Leisure,Works and associated costs for Land and Buildings,08-Aug-23,5105885334,Fairway Landscapes Ltd,"1,120.00"
Manchester City Council,Manchester Leisure,Cleaning Equipment,08-Aug-23,5105885267,The Helping Hand Company Ltd,"-4,636.19"
Manchester City Council,Highways Services,Legal Fees,08-Aug-23,5105885226,Redacted Personal Information,525.00
Manchester City Council,Regeneration Finance,Licences Purchase,08-Aug-23,5105885272,Insight Direct (Uk) Ltd,501.04
Manchester City Council,Manchester Leisure,Furniture,08-Aug-23,5105885084,Bennett Workplace Solutions Ltd,"1,236.20"
Manchester City Council,Adult Social Care,Rents,08-Aug-23,5105885294,Ashley Property services,"1,000.00"
Manchester City Council,Manchester Leisure,Library Materials Acquisition,08-Aug-23,1908187202,Peters Bookselling Services,811.74
Manchester City Council,Childrens & Education Services,Rates,08-Aug-23,5105885306,Tiddlywinks Day Nursery Ltd,989.79
Manchester City Council,Chief Executives,Postage,08-Aug-23,5105885087,Whistl North Ltd,"12,445.07"
Manchester City Council,Chief Executives,Legal Fees,08-Aug-23,5105885194,Russell & Russell Solicitors LLP,"1,284.69"
Manchester City Council,Childrens & Education Services,Rates,08-Aug-23,5105885313,Tiddlywinks Day Nursery,745.10
Manchester City Council,Adult Social Care,Third party payments to Health Authority,08-Aug-23,5105885239,UK HEALTH SECURITY AGENCY,"30,000.00"
Manchester City Council,Insurance Fund,Insurance,08-Aug-23,1908184138,Weightmans LLP Solicitors,"5,371.40"
Manchester City Council,Highways Services,Professional fees,08-Aug-23,5105885288,Wilde Consultants Ltd,"11,927.31"
Manchester City Council,Hospitality + Trading Services,Vehicle Repairs,08-Aug-23,5105885320,Advanced Vehicle Technicians Ltd,"3,407.72"
Manchester City Council,Manchester Leisure,Building Materials for direct delivery,08-Aug-23,5105885275,Landscape Supply Company,742.03
Manchester City Council,GMIST (Greater Mcr Integrated),Professional fees,08-Aug-23,5105885199,DeepStore,709.11
Manchester City Council,Regeneration Finance,I T Provision,08-Aug-23,5105885189,Locata (Housing Services) Ltd,"6,594.75"
Manchester City Council,Regeneration Finance,I T Provision,08-Aug-23,5105885190,Locata (Housing Services) Ltd,"1,300.00"
Manchester City Council,Adult Social Care,Rents,08-Aug-23,5105885066,MJ Rental Ltd,"98,419.15"
Manchester City Council,Housing Revenue Account,Council Dwelling Fees,08-Aug-23,5105884427,Life Environmental Services,"1,740.00"
Manchester City Council,Regeneration Finance,Hire of Premises,08-Aug-23,5105885231,Greater Manchester Chamber of,"1,445.00"
Manchester City Council,Childrens & Education Services,Grounds Maintenance,08-Aug-23,5105885059,Tiddlywinks Nursery-Clayton No.4 Ac,"1,165.50"
Manchester City Council,Adult Social Care,Third party payments to Health Authority,08-Aug-23,5105885060,NHS Supply Chain,514.40
Manchester City Council,Manchester Leisure,Equipment,08-Aug-23,5105885284,Willfab Ltd,860.00
Manchester City Council,Regeneration Finance,Training and Development,08-Aug-23,5105885286,The Education and Training Foundati,725.00
Manchester City Council,Chief Executives,Payments to Sub-Contractors,08-Aug-23,5105885224,Redacted Personal Information,644.40
Manchester City Council,Chief Executives,Payments to Sub-Contractors,08-Aug-23,5105885242,Redacted Personal Information,824.12
Manchester City Council,Chief Executives,Payments to Sub-Contractors,08-Aug-23,5105885229,Redacted Personal Information,684.60
Manchester City Council,Chief Executives,Payments to Sub-Contractors,08-Aug-23,5105885219,Redacted Personal Information,544.84
Manchester City Council,Chief Executives,Agency staff provision,08-Aug-23,5105885057,Tripod Partners,"6,814.95"
Manchester City Council,Childrens & Education Services,Transport Coach Hire,08-Aug-23,5105885078,Sumi Travel Ltd.,"9,820.00"
Manchester City Council,Hospitality + Trading Services,Internal Repairs and Maintenance for buildings,08-Aug-23,5105884632,Facultatieve Technologies Ltd,"32,725.30"
Manchester City Council,Manchester Leisure,Rents,08-Aug-23,1908168038,Vanguard Holdings Ltd,"20,000.00"
Manchester City Council,Adult Social Care,Grant and subscriptions awarded,08-Aug-23,5105885243,On The Out CIC,"20,985.58"
Manchester City Council,Adult Social Care,Grant and subscriptions awarded,08-Aug-23,5105885245,On The Out CIC,"2,147.58"
Manchester City Council,Adult Social Care,Grant and subscriptions awarded,08-Aug-23,5105885246,On The Out CIC,"3,113.60"
Manchester City Council,Adult Social Care,Grant and subscriptions awarded,08-Aug-23,5105885247,On The Out CIC,"3,113.60"
Manchester City Council,Regeneration Finance,Payments to Sub-Contractors,08-Aug-23,5105885026,Synectics Security Limited,"1,589.49"
Manchester City Council,Regeneration Finance,Public Transport,08-Aug-23,5105885309,Greater Manchester Travelcards Ltd,"-9,995.00"
Manchester City Council,Regeneration Finance,Planning Invalid,08-Aug-23,1908185083,PortalPlanQuest Ltd,924.00
Manchester City Council,Regeneration Finance,Planning Invalid,08-Aug-23,1908185093,PortalPlanQuest Ltd,924.00
Manchester City Council,Chief Executives,Legal Fees,08-Aug-23,5105885196,Waddington & Son Solicitors,"1,400.00"
Manchester City Council,Chief Executives,Legal Fees,08-Aug-23,5105885285,Waddington & Son Solicitors,"2,375.63"
Manchester City Council,Corporate Services,WPS Awards,08-Aug-23,5105885018,Furniture Resource Centre Ltd,598.63
Manchester City Council,Corporate Services,WPS Awards,08-Aug-23,5105885019,Furniture Resource Centre Ltd,645.92
Manchester City Council,Adult Social Care,Rents,08-Aug-23,5105885193,M&D Residential Ltd,"13,812.28"
Manchester City Council,Manchester Leisure,Counsel Costs,08-Aug-23,1908184135,Trinity Chambers,"1,200.00"
Manchester City Council,Manchester Leisure,Counsel Costs,08-Aug-23,1908184136,Trinity Chambers,"2,250.00"
Manchester City Council,Adult Social Care,Grant and subscriptions awarded,08-Aug-23,5105885212,Divrse Ltd,"57,195.00"
Manchester City Council,Childrens & Education Services,Grant Payments,08-Aug-23,1908186795,Paypoint,"10,253.82"
Manchester City Council,Chief Executives,Works and associated costs for Land and Buildings,08-Aug-23,5105884890,Bowmer & Kirkland Ltd,"602,266.30"
Manchester City Council,Regeneration Finance,Grant and subscriptions awarded,08-Aug-23,5105885321,Factory of Creativity,"8,719.80"
Manchester City Council,Childrens & Education Services,Professional fees,08-Aug-23,5105885281,The Movez Movement,"2,697.50"
Manchester City Council,Manchester Leisure,Special Event,08-Aug-23,5105885233,Redacted Personal Information,"3,500.00"
Manchester City Council,Adult Social Care,Rents,08-Aug-23,5105885089,Devon Homes,"5,051.00"
Manchester City Council,Manchester Leisure,Grant and subscriptions awarded,08-Aug-23,5105885234,Brotherhood of the Cross,"2,000.00"
Manchester City Council,Adult Social Care,Rents,08-Aug-23,1908187255,Alex Kennedy,"5,250.00"
Manchester City Council,Manchester Leisure,Professional fees,08-Aug-23,1908187103,Daniel Zahiri,775.48
Manchester City Council,Hospitality + Trading Services,Compensation Payments,08-Aug-23,1908186784,Driscoll Kingston & Co Ltd � Client,"2,519.42"
Manchester City Council,Adult Social Care,Rents,08-Aug-23,1908187253,INNER CITY PROPERTY MANAGEMENT SERV,"5,400.00"
Manchester City Council,Adult Social Care,Rents,08-Aug-23,1908187257,MR P J OLEY,"3,000.00"
Manchester City Council,Adult Social Care,Rents,08-Aug-23,1908187254,Mr Yami Sultani,"10,023.76"
Manchester City Council,Insurance Fund,Insurance,08-Aug-23,1908187260,Verlingue Limited,"61,268.63"
Manchester City Council,Insurance Fund,Insurance,08-Aug-23,1908187261,Verlingue Limited,"28,645.60"
Manchester City Council,Insurance Fund,Insurance,08-Aug-23,1908187262,Verlingue Limited,"5,122.95"
Manchester City Council,Insurance Fund,Insurance,08-Aug-23,1908187263,Verlingue Limited,"3,630.00"
Manchester City Council,Insurance Fund,Insurance,08-Aug-23,1908187264,Verlingue Limited,"1,663.67"
Manchester City Council,Manchester Leisure,Professional fees,08-Aug-23,1908185147,Wainam Design,"1,225.00"
Manchester City Council,Chief Executives,Works and associated costs for Land and Buildings,09-Aug-23,1908185152,Eversheds Llp,"8,730.00"
Manchester City Council,Adult Social Care,Equipment,09-Aug-23,5105885360,Prism Medical UK Carefree Division,"5,990.00"
Manchester City Council,Regeneration Finance,Furniture,09-Aug-23,5105885395,BCL,664.66
Manchester City Council,Corporate Services,Accounts Asset Valua,09-Aug-23,5105885445,GVA Grimley Ltd,"52,500.00"
Manchester City Council,Adult Social Care,Rents,09-Aug-23,5105885517,Johnnie Johnson Housing,"3,307.07"
Manchester City Council,Adult Social Care,Rents,09-Aug-23,5105885519,Johnnie Johnson Housing,"2,614.17"
Manchester City Council,Manchester Leisure,I T Provision,09-Aug-23,5105885498,Cobweb Information Ltd,"22,455.00"
Manchester City Council,Adult Social Care,Payments for services,09-Aug-23,5105885432,ADFERIAD RECOVERY,"4,725.00"
Manchester City Council,Manchester Leisure,Hire of Equipment,09-Aug-23,5105885440,Flowbird Smart City Uk Ltd,853.40
Manchester City Council,Corporate Services,Hire of Equipment,09-Aug-23,5105885439,Flowbird Smart City Uk Ltd,"11,744.40"
Manchester City Council,Corporate Services,Works and associated costs for Land and Buildings,09-Aug-23,5105885376,Ove Arup & Partners Ltd,"15,129.60"
Manchester City Council,Corporate Services,Works and associated costs for Land and Buildings,09-Aug-23,5105885377,Ove Arup & Partners Ltd,819.92
Manchester City Council,Corporate Services,Works and associated costs for Land and Buildings,09-Aug-23,5105885379,Ove Arup & Partners Ltd,"2,332.50"
Manchester City Council,Corporate Services,Works and associated costs for Land and Buildings,09-Aug-23,5105885391,Ove Arup & Partners Ltd,"5,626.00"
Manchester City Council,Manchester Leisure,ICT Hardware,09-Aug-23,5105885561,BT PLC,"3,606.88"
Manchester City Council,Adult Social Care,Supporting People Payments,09-Aug-23,5105884905,Making Space,694.97
Manchester City Council,Adult Social Care,Supporting People Payments,09-Aug-23,5105885559,Making Space,-694.97
Manchester City Council,Adult Social Care,Supporting People Payments,09-Aug-23,5105885583,Making Space,"8,871.01"
Manchester City Council,Corporate Services,Works and associated costs for Land and Buildings,09-Aug-23,5105885396,Mace Ltd,"33,298.00"
Manchester City Council,Corporate Services,Works and associated costs for Land and Buildings,09-Aug-23,5105885396,Mace Ltd,680.00
Manchester City Council,Chief Executives,Agency staff provision,09-Aug-23,5105885484,Adecco Uk Ltd,"1,600.00"
Manchester City Council,Manchester Leisure,Contract Cleaning External,09-Aug-23,5105884947,Master Moves Ltd,776.91
Manchester City Council,Chief Executives,Legal Fees,09-Aug-23,5105885400,Kings Chambers,526.67
Manchester City Council,Manchester Leisure,Grounds Maintenance,09-Aug-23,5105885209,Rigby Taylor Ltd,"7,280.00"
Manchester City Council,Manchester Leisure,Payments to Sub-Contractors,09-Aug-23,5105885208,Rigby Taylor Ltd,"27,975.00"
Manchester City Council,Highways Services,Hire of Machinery,09-Aug-23,5105885408,Kloeckner Metals UK,"10,176.00"
Manchester City Council,Highways Services,Building Materials for direct delivery,09-Aug-23,5105884625,TARMAC,"1,037.88"
Manchester City Council,Highways Services,Building Materials for direct delivery,09-Aug-23,5105885521,TARMAC,"-1,037.88"
Manchester City Council,Highways Services,Building Materials for direct delivery,09-Aug-23,5105885522,TARMAC,996.88
Manchester City Council,Highways Services,Building Materials for direct delivery,09-Aug-23,5105885523,TARMAC,"1,492.11"
Manchester City Council,Housing Revenue Account,Surplus property Fees,09-Aug-23,1908190227,Peasegoods,"190,000.00"
Manchester City Council,Childrens & Education Services,Transport Coach Hire,09-Aug-23,5105885289,Redacted Personal Information,"2,063.00"
Manchester City Council,Chief Executives,Licences Purchase,09-Aug-23,5105885054,Civica UK Ltd,"20,980.00"
Manchester City Council,Environment and Operations,Construction Works,09-Aug-23,5105885020,Amey Highways Lighting (Manchester),"17,824.75"
Manchester City Council,Housing Revenue Account,Council Dwelling Adaptations,09-Aug-23,5105885336,Stannah Lift Services Ltd,"6,416.00"
Manchester City Council,Housing Revenue Account,Council Dwelling Adaptations,09-Aug-23,5105885499,Stannah Lift Services Ltd,"6,530.00"
Manchester City Council,Childrens & Education Services,Payments for services,09-Aug-23,5105885381,4CT Limited,"21,492.00"
Manchester City Council,Chief Executives,Printing,09-Aug-23,5105885351,Wallace Printers Ltd,835.00
Manchester City Council,Highways Services,Payments to Sub-Contractors,09-Aug-23,5105885335,Fairway Landscapes Ltd,"11,932.00"
Manchester City Council,Highways Services,Payments to Sub-Contractors,09-Aug-23,5105885367,Rosgal Ltd,"10,725.00"
Manchester City Council,Childrens & Education Services,Supporting People Payments,09-Aug-23,5105885572,Child Action Northwest,"2,820.35"
Manchester City Council,Adult Social Care,Supporting People Payments,09-Aug-23,5105885572,Child Action Northwest,"3,810.12"
Manchester City Council,Regeneration Finance,Professional fees,09-Aug-23,5105885403,P Mcguinness & Co Ltd,"1,809.50"
Manchester City Council,Chief Executives,Grant and subscriptions awarded,09-Aug-23,5105885340,Manchester Jewish Museum,"5,797.35"
Manchester City Council,Leasing,Professional fees,09-Aug-23,5105885480,Link Asset Services,750.00
Manchester City Council,Hospitality + Trading Services,Window Cleaning,09-Aug-23,5105885560,CG Cleaning Ltd,740.84
Manchester City Council,Hospitality + Trading Services,Window Cleaning,09-Aug-23,5105885576,CG Cleaning Ltd,740.84
Manchester City Council,Hospitality + Trading Services,Window Cleaning,09-Aug-23,5105885577,CG Cleaning Ltd,740.84
Manchester City Council,Hospitality + Trading Services,Window Cleaning,09-Aug-23,5105885579,CG Cleaning Ltd,740.84
Manchester City Council,Corporate Services,Works and associated costs for Land and Buildings,09-Aug-23,5105885393,Faithful & Gould Ltd,"37,000.00"
Manchester City Council,Chief Executives,Legal Fees,09-Aug-23,5105885348,Russell & Russell Solicitors LLP,"3,174.00"
Manchester City Council,Chief Executives,Legal Fees,09-Aug-23,5105885349,Russell & Russell Solicitors LLP,"2,731.00"
Manchester City Council,Chief Executives,Legal Fees,09-Aug-23,5105885455,Russell & Russell Solicitors LLP,"2,406.25"
Manchester City Council,Chief Executives,Legal Fees,09-Aug-23,5105885456,Russell & Russell Solicitors LLP,"5,221.75"
Manchester City Council,Chief Executives,Legal Fees,09-Aug-23,5105885457,Russell & Russell Solicitors LLP,"2,959.95"
Manchester City Council,Adult Social Care,Rents,09-Aug-23,5105885418,Accommodation Links Ltd,"87,916.00"
Manchester City Council,Manchester Leisure,Grant and subscriptions awarded,09-Aug-23,5105885363,Somali Adult Social Care Agency,"1,666.00"
Manchester City Council,Adult Social Care,Equipment,09-Aug-23,5105885562,Aidapt Bathrooms Ltd,"12,993.00"
Manchester City Council,Adult Social Care,Equipment,09-Aug-23,5105885564,Aidapt Bathrooms Ltd,"1,050.00"
Manchester City Council,Adult Social Care,Equipment,09-Aug-23,5105885565,Aidapt Bathrooms Ltd,690.00
Manchester City Council,Regeneration Finance,Professional fees,09-Aug-23,5105885032,Steer Davies & Geave Limited,"24,941.50"
Manchester City Council,Corporate Services,Works and associated costs for Land and Buildings,09-Aug-23,5105885375,Mather & Co Limited,"2,950.00"
Manchester City Council,Chief Executives,Agency staff provision,09-Aug-23,5105885080,Ashberry Recruitment Ltd,"1,968.30"
Manchester City Council,Childrens & Education Services,Payments for services,09-Aug-23,5105885473,NISAI Virtual Academy,"38,525.00"
Manchester City Council,Corporate Services,Works and associated costs for Land and Buildings,09-Aug-23,5105885397,Planit,"3,360.00"
Manchester City Council,Chief Executives,Counsel Costs,09-Aug-23,5105885458,11KBW,"7,500.00"
Manchester City Council,Childrens & Education Services,Transport Coach Hire,09-Aug-23,5105885475,Communitytransportservices.co.uk,"97,736.38"
Manchester City Council,Housing Revenue Account,Council Dwelling Fees,09-Aug-23,5105885581,Life Environmental Services,830.00
Manchester City Council,Corporate Services,Heart of Manc Bid,09-Aug-23,5105885361,Heart of Manchester BID Co Ltd,"120,000.00"
Manchester City Council,Adult Social Care,Grant and subscriptions awarded,09-Aug-23,5105885270,Manchester Mind,"18,117.50"
Manchester City Council,Adult Social Care,Third party payments to Health Authority,09-Aug-23,1908185149,Walsall Healthcare NHS Trust,522.00
Manchester City Council,Adult Social Care,Third party payments relating to Voluntary Organisations,09-Aug-23,5105885567,Wythenshawe Community Housing Group,"4,551.28"
Manchester City Council,Chief Executives,Hire of Equipment,09-Aug-23,5105885282,Nuway Audio Visual Ltd,"7,950.00"
Manchester City Council,Chief Executives,Printing,09-Aug-23,5105885398,NB Colour Print Limited,787.00
Manchester City Council,Chief Executives,Agency staff provision,09-Aug-23,5105885374,Buckingham Futures Limited,"3,567.72"
Manchester City Council,Adult Social Care,Bed & Breakfast Acc,09-Aug-23,5105885406,Redacted Personal Information,"2,390.00"
Manchester City Council,Adult Social Care,Bed & Breakfast Acc,09-Aug-23,5105885407,Redacted Personal Information,500.00
Manchester City Council,Adult Social Care,Personal needs of client,09-Aug-23,5105885506,Doro Care Ltd,"5,320.00"
Manchester City Council,Childrens Services,Building Works,09-Aug-23,5105885414,Pioneer House High School,"283,713.99"
Manchester City Council,Childrens & Education Services,Third party payments to other Local Authorities,09-Aug-23,5105885326,The Orchards School,"13,439.00"
Manchester City Council,Adult Social Care,Hire of Premises,09-Aug-23,5105885558,Irish Town Manchester Ltd,500.00
Manchester City Council,Chief Executives,Payments to Sub-Contractors,09-Aug-23,5105885362,Redacted Personal Information,"1,182.75"
Manchester City Council,Chief Executives,Occupational Health services,09-Aug-23,5105885417,Health Assured Ltd,"69,745.00"
Manchester City Council,Regeneration Finance,Removal and Storage of Furniture,09-Aug-23,5105885372,Restore PLC,657.34
Manchester City Council,Adult Social Care,Payments for services,09-Aug-23,5105885516,Kaleidoscope Project,"5,600.00"
Manchester City Council,Adult Social Care,Third party payments relating to Voluntary Organisations,09-Aug-23,5105885474,District Homes Cic,"66,075.87"
Manchester City Council,Regeneration Finance,Agency staff provision,09-Aug-23,5105885497,Proventure Consulting,"5,333.34"
Manchester City Council,Regeneration Finance,Internal Repairs and Maintenance for buildings,09-Aug-23,5105885502,EQUANS Services Limited,"43,935.21"
Manchester City Council,Chief Executives,Advertising,09-Aug-23,5105885479,Spacehouse Ltd,562.50
Manchester City Council,Manchester Leisure,Grant and subscriptions awarded,09-Aug-23,5105885501,Greenheys Residents Association,"1,250.00"
Manchester City Council,Manchester Leisure,Payments to Sub-Contractors,09-Aug-23,5105885296,Synectics Security Limited,853.00
Manchester City Council,Regeneration Finance,Public Transport,09-Aug-23,5105885344,Greater Manchester Travelcards Ltd,"9,995.00"
Manchester City Council,Chief Executives,Legal Fees,09-Aug-23,5105885339,Waddington & Son Solicitors,"1,125.00"
Manchester City Council,Chief Executives,Legal Fees,09-Aug-23,5105885345,Waddington & Son Solicitors,"4,967.00"
Manchester City Council,Chief Executives,Legal Fees,09-Aug-23,5105885346,Waddington & Son Solicitors,"1,037.50"
Manchester City Council,Chief Executives,Legal Fees,09-Aug-23,5105885347,Waddington & Son Solicitors,"1,160.75"
Manchester City Council,Chief Executives,Legal Fees,09-Aug-23,5105885401,Waddington & Son Solicitors,"2,293.75"
Manchester City Council,Chief Executives,Legal Fees,09-Aug-23,5105885449,Waddington & Son Solicitors,"4,100.00"
Manchester City Council,Chief Executives,Legal Fees,09-Aug-23,5105885450,Waddington & Son Solicitors,"2,110.75"
Manchester City Council,Chief Executives,Legal Fees,09-Aug-23,5105885452,Waddington & Son Solicitors,"2,356.25"
Manchester City Council,Chief Executives,Legal Fees,09-Aug-23,5105885453,Waddington & Son Solicitors,"1,550.35"
Manchester City Council,Corporate Services,WPS Awards,09-Aug-23,5105885425,Furniture Resource Centre Ltd,857.11
Manchester City Council,Corporate Services,WPS Awards,09-Aug-23,5105885429,Furniture Resource Centre Ltd,807.81
Manchester City Council,Corporate Services,WPS Awards,09-Aug-23,5105885524,Furniture Resource Centre Ltd,612.51
Manchester City Council,Corporate Services,WPS Awards,09-Aug-23,5105885571,Furniture Resource Centre Ltd,"1,365.43"
Manchester City Council,Corporate Services,WPS Awards,09-Aug-23,5105885574,Furniture Resource Centre Ltd,508.78
Manchester City Council,Childrens & Education Services,Payments for services,09-Aug-23,5105885485,Thompsons Academy Ltd,"2,450.00"
Manchester City Council,Chief Executives,Printing,09-Aug-23,5105885504,Psycho Peacock Limited,"2,311.97"
Manchester City Council,Adult Social Care,Security,09-Aug-23,5105885593,UNIQUE SPECIALIST SERVICES,"1,404.00"
Manchester City Council,Childrens & Education Services,Hire of Premises,09-Aug-23,5105885446,Manchester Vineyard,"-1,166.64"
Manchester City Council,Childrens & Education Services,Hire of Premises,09-Aug-23,5105885451,Manchester Vineyard,"1,306.68"
Manchester City Council,Childrens & Education Services,Transport Taxis,09-Aug-23,5105885594,MS Minibuses Ltd,"4,666.00"
Manchester City Council,Adult Social Care,Rents,09-Aug-23,5105885373,M&D Residential Ltd,"14,450.52"
Manchester City Council,Housing Revenue Account,Professional fees,09-Aug-23,1908187082,Morgan Sindall Property,"12,100.75"
Manchester City Council,Manchester Leisure,Grant and subscriptions awarded,09-Aug-23,5105885329,Friends of Oswald Road Pocket Park,"1,275.00"
Manchester City Council,Manchester Leisure,ICT Sup & Maintnance,09-Aug-23,5105885352,TELEF�NICA TECH NI LTD,"-31,144.50"
Manchester City Council,Manchester Leisure,ICT Sup & Maintnance,09-Aug-23,5105885415,TELEF�NICA TECH NI LTD,"49,712.50"
Manchester City Council,Manchester Leisure,ICT Sup & Maintnance,09-Aug-23,5105885416,TELEF�NICA TECH NI LTD,"49,712.50"
Manchester City Council,Manchester Leisure,I T Provision,09-Aug-23,5105885461,Eldercare (UK) Ltd,"1,473.98"
Manchester City Council,Housing Revenue Account,Works and associated costs for Land and Buildings,09-Aug-23,1908190233,Northern Gateway (FEC) No.10 Limite,"3,948.84"
Manchester City Council,Housing Revenue Account,Works and associated costs for Land and Buildings,09-Aug-23,1908190233,Northern Gateway (FEC) No.10 Limite,"197,442.00"
Manchester City Council,Childrens & Education Services,Bed & Breakfast Acc,09-Aug-23,5105885342,Trafford Domestic Abuse Services,"1,531.88"
Manchester City Council,Environment and Operations,Construction Works,09-Aug-23,5105885358,Yunex Ltd,"8,742.40"
Manchester City Council,Environment and Operations,Construction Works,09-Aug-23,5105885489,Yunex Ltd,"-8,742.40"
Manchester City Council,Adult Social Care,Bed & Breakfast Acc,09-Aug-23,5105885405,Manchester Stay Hotel,"24,273.00"
Manchester City Council,Childrens & Education Services,Equipment,09-Aug-23,5105885382,Thriiver Limited,560.00
Manchester City Council,Childrens & Education Services,Professional fees,09-Aug-23,5105885419,All In One Learning Centre,"3,600.00"
Manchester City Council,Childrens & Education Services,Professional fees,09-Aug-23,5105885420,All In One Learning Centre,"3,850.00"
Manchester City Council,Childrens & Education Services,Professional fees,09-Aug-23,5105885471,All In One Learning Centre,"23,880.00"
Manchester City Council,Adult Social Care,Rents,09-Aug-23,5105885330,Redacted Personal Information,"2,001.94"
Manchester City Council,Adult Social Care,Rents,09-Aug-23,5105885353,Redacted Personal Information,"2,140.00"
Manchester City Council,Adult Social Care,Rents,09-Aug-23,5105885354,Redacted Personal Information,"2,140.00"
Manchester City Council,Adult Social Care,ICT Sup & Maintnance,09-Aug-23,1908181385,CPGM Healthcare Ltd,500.00
Manchester City Council,Manchester Leisure,Professional fees,09-Aug-23,1908187290,Digital Communities Limited,"1,730.00"
Manchester City Council,Adult Social Care,Rents,09-Aug-23,1908190230,Glenthorpe Homes,"11,270.00"
Manchester City Council,Adult Social Care,Rents,09-Aug-23,1908190231,Glenthorpe Homes,"11,270.00"
Manchester City Council,Corporate Services,Compensation Payments,09-Aug-23,1908187297,Gowing Law Solicitors,"5,750.00"
Manchester City Council,Adult Social Care,Rents,09-Aug-23,1908190232,Grovewell properties Ltd Client,"1,250.00"
Manchester City Council,Manchester Leisure,Professional fees,09-Aug-23,1908187272,HGS Security Limited,"1,091.60"
Manchester City Council,Adult Social Care,Grant and subscriptions awarded,09-Aug-23,1908181384,Hong Kong Nursing Associ UK CIC,"7,500.00"
Manchester City Council,Corporate Services,Professional fees,09-Aug-23,1908190178,JISC,"2,480.00"
Manchester City Council,Childrens & Education Services,Payments for services,09-Aug-23,1908187106,K. J. Beisly,"1,560.00"
Manchester City Council,Childrens & Education Services,Training and Development,09-Aug-23,1908186756,Kate Wood Consultancy,"18,000.00"
Manchester City Council,Manchester Leisure,Bank Charges,09-Aug-23,1908190234,KJ MCDWYER,693.52
Manchester City Council,Housing General Fund,Building Works,09-Aug-23,1908183926,Mrs M. Shahnaz,"18,375.89"
Manchester City Council,Adult Social Care,Training and Development,09-Aug-23,1908175949,Park Inn � Radisson,"1,062.30"
Manchester City Council,Childrens & Education Services,Electricity,09-Aug-23,1908167949,POZITIVE ENERGY LTD,587.96
Manchester City Council,Childrens & Education Services,Electricity,09-Aug-23,1908167951,POZITIVE ENERGY LTD,814.74
Manchester City Council,Manchester Leisure,Special Event,09-Aug-23,1908176734,Priscilla Mante,822.00
Manchester City Council,Adult Social Care,Furniture,09-Aug-23,1908190229,Qasim Asaf,"2,400.00"
Manchester City Council,Adult Social Care,Rents,09-Aug-23,1908190228,Shakira Surve,"10,500.00"
Manchester City Council,Manchester Leisure,Professional fees,09-Aug-23,1908187273,Torch Beam Training & Development,500.00
Manchester City Council,Adult Social Care,Professional fees,10-Aug-23,5105885730,Wythenshawe Community Initiative,"6,579.00"
Manchester City Council,Childrens & Education Services,Furniture,10-Aug-23,5105885595,BCL,898.63
Manchester City Council,Adult Social Care,Gas,10-Aug-23,1700155536,Scottish & Southern Energy Plc,"-1,106.99"
Manchester City Council,Adult Social Care,Gas,10-Aug-23,1700155546,Scottish & Southern Energy Plc,"-1,819.03"
Manchester City Council,Adult Social Care,Gas,10-Aug-23,1700155547,Scottish & Southern Energy Plc,"-1,015.04"
Manchester City Council,Adult Social Care,Gas,10-Aug-23,1700155552,Scottish & Southern Energy Plc,-618.56
Manchester City Council,Adult Social Care,Gas,10-Aug-23,1700155553,Scottish & Southern Energy Plc,-814.78
Manchester City Council,Adult Social Care,Gas,10-Aug-23,1700155556,Scottish & Southern Energy Plc,-738.60
Manchester City Council,Adult Social Care,Gas,10-Aug-23,1700155561,Scottish & Southern Energy Plc,-825.70
Manchester City Council,Adult Social Care,Gas,10-Aug-23,1700155562,Scottish & Southern Energy Plc,-557.18
Manchester City Council,Adult Social Care,Gas,10-Aug-23,1700155564,Scottish & Southern Energy Plc,-537.20
Manchester City Council,Adult Social Care,Gas,10-Aug-23,1700155571,Scottish & Southern Energy Plc,-865.93
Manchester City Council,Adult Social Care,Gas,10-Aug-23,1700155611,Scottish & Southern Energy Plc,-796.51
Manchester City Council,Adult Social Care,Gas,10-Aug-23,1700155620,Scottish & Southern Energy Plc,"-1,877.27"
Manchester City Council,Adult Social Care,Gas,10-Aug-23,1700155621,Scottish & Southern Energy Plc,"-1,111.56"
Manchester City Council,Adult Social Care,Gas,10-Aug-23,1700155624,Scottish & Southern Energy Plc,"-1,901.98"
Manchester City Council,Adult Social Care,Gas,10-Aug-23,1700155631,Scottish & Southern Energy Plc,-976.12
Manchester City Council,Adult Social Care,Gas,10-Aug-23,1700155632,Scottish & Southern Energy Plc,"-1,887.77"
Manchester City Council,Adult Social Care,Gas,10-Aug-23,1700155633,Scottish & Southern Energy Plc,"-1,332.50"
Manchester City Council,Adult Social Care,Gas,10-Aug-23,1700155634,Scottish & Southern Energy Plc,"-1,550.40"
Manchester City Council,Adult Social Care,Gas,10-Aug-23,1700155646,Scottish & Southern Energy Plc,"-1,661.83"
Manchester City Council,Adult Social Care,Gas,10-Aug-23,1908190865,Scottish & Southern Energy Plc,"1,161.65"
Manchester City Council,Adult Social Care,Gas,10-Aug-23,1908190866,Scottish & Southern Energy Plc,631.69
Manchester City Council,Adult Social Care,Gas,10-Aug-23,1908190879,Scottish & Southern Energy Plc,"1,886.63"
Manchester City Council,Adult Social Care,Gas,10-Aug-23,1908190880,Scottish & Southern Energy Plc,"1,926.99"
Manchester City Council,Adult Social Care,Gas,10-Aug-23,1908190881,Scottish & Southern Energy Plc,"1,064.67"
Manchester City Council,Adult Social Care,Gas,10-Aug-23,1908190882,Scottish & Southern Energy Plc,583.71
Manchester City Council,Adult Social Care,Gas,10-Aug-23,1908190891,Scottish & Southern Energy Plc,650.47
Manchester City Council,Adult Social Care,Gas,10-Aug-23,1908190892,Scottish & Southern Energy Plc,"1,628.29"
Manchester City Council,Adult Social Care,Gas,10-Aug-23,1908190893,Scottish & Southern Energy Plc,866.82
Manchester City Council,Adult Social Care,Gas,10-Aug-23,1908190901,Scottish & Southern Energy Plc,809.74
Manchester City Council,Adult Social Care,Gas,10-Aug-23,1908190909,Scottish & Southern Energy Plc,883.91
Manchester City Council,Adult Social Care,Gas,10-Aug-23,1908190910,Scottish & Southern Energy Plc,590.34
Manchester City Council,Adult Social Care,Gas,10-Aug-23,1908190915,Scottish & Southern Energy Plc,568.90
Manchester City Council,Adult Social Care,Gas,10-Aug-23,1908190926,Scottish & Southern Energy Plc,"2,652.10"
Manchester City Council,Adult Social Care,Gas,10-Aug-23,1908190933,Scottish & Southern Energy Plc,"1,325.39"
Manchester City Council,Adult Social Care,Gas,10-Aug-23,1908190939,Scottish & Southern Energy Plc,"1,939.36"
Manchester City Council,Adult Social Care,Gas,10-Aug-23,1908190980,Scottish & Southern Energy Plc,"1,607.46"
Manchester City Council,Adult Social Care,Gas,10-Aug-23,1908190988,Scottish & Southern Energy Plc,851.26
Manchester City Council,Adult Social Care,Gas,10-Aug-23,1908191008,Scottish & Southern Energy Plc,"1,924.88"
Manchester City Council,Adult Social Care,Gas,10-Aug-23,1908191009,Scottish & Southern Energy Plc,"1,153.00"
Manchester City Council,Adult Social Care,Gas,10-Aug-23,1908191010,Scottish & Southern Energy Plc,504.52
Manchester City Council,Adult Social Care,Gas,10-Aug-23,1908191015,Scottish & Southern Energy Plc,"2,066.40"
Manchester City Council,Adult Social Care,Gas,10-Aug-23,1908191024,Scottish & Southern Energy Plc,"1,067.10"
Manchester City Council,Adult Social Care,Gas,10-Aug-23,1908191029,Scottish & Southern Energy Plc,"1,054.56"
Manchester City Council,Adult Social Care,Gas,10-Aug-23,1908191030,Scottish & Southern Energy Plc,"2,098.15"
Manchester City Council,Adult Social Care,Gas,10-Aug-23,1908191031,Scottish & Southern Energy Plc,"1,383.03"
Manchester City Council,Adult Social Care,Gas,10-Aug-23,1908191032,Scottish & Southern Energy Plc,"19,585.57"
Manchester City Council,Adult Social Care,Gas,10-Aug-23,1908191033,Scottish & Southern Energy Plc,"1,662.33"
Manchester City Council,Adult Social Care,Gas,10-Aug-23,1908191053,Scottish & Southern Energy Plc,"1,790.05"
Manchester City Council,Adult Social Care,Gas,10-Aug-23,1908191054,Scottish & Southern Energy Plc,738.27
Manchester City Council,Adult Social Care,Gas,10-Aug-23,1908191056,Scottish & Southern Energy Plc,772.09
Manchester City Council,Adult Social Care,Gas,10-Aug-23,1908191057,Scottish & Southern Energy Plc,690.83
Manchester City Council,Housing Revenue Account,Gas,10-Aug-23,1700155535,Scottish & Southern Energy Plc,-659.78
Manchester City Council,Housing Revenue Account,Gas,10-Aug-23,1700155537,Scottish & Southern Energy Plc,"-2,083.51"
Manchester City Council,Housing Revenue Account,Gas,10-Aug-23,1700155538,Scottish & Southern Energy Plc,"-1,651.00"
Manchester City Council,Housing Revenue Account,Gas,10-Aug-23,1700155539,Scottish & Southern Energy Plc,"-2,905.94"
Manchester City Council,Housing Revenue Account,Gas,10-Aug-23,1700155540,Scottish & Southern Energy Plc,-721.45
Manchester City Council,Housing Revenue Account,Gas,10-Aug-23,1700155541,Scottish & Southern Energy Plc,"-1,464.23"
Manchester City Council,Housing Revenue Account,Gas,10-Aug-23,1700155543,Scottish & Southern Energy Plc,-568.73
Manchester City Council,Housing Revenue Account,Gas,10-Aug-23,1700155545,Scottish & Southern Energy Plc,"-2,009.87"
Manchester City Council,Housing Revenue Account,Gas,10-Aug-23,1700155548,Scottish & Southern Energy Plc,"-1,315.12"
Manchester City Council,Housing Revenue Account,Gas,10-Aug-23,1700155549,Scottish & Southern Energy Plc,"-4,194.78"
Manchester City Council,Housing Revenue Account,Gas,10-Aug-23,1700155551,Scottish & Southern Energy Plc,-793.49
Manchester City Council,Housing Revenue Account,Gas,10-Aug-23,1700155555,Scottish & Southern Energy Plc,"-1,153.66"
Manchester City Council,Housing Revenue Account,Gas,10-Aug-23,1700155557,Scottish & Southern Energy Plc,"-2,391.65"
Manchester City Council,Housing Revenue Account,Gas,10-Aug-23,1700155558,Scottish & Southern Energy Plc,"-1,956.90"
Manchester City Council,Housing Revenue Account,Gas,10-Aug-23,1700155559,Scottish & Southern Energy Plc,-909.51
Manchester City Council,Housing Revenue Account,Gas,10-Aug-23,1700155560,Scottish & Southern Energy Plc,"-4,639.93"
Manchester City Council,Housing Revenue Account,Gas,10-Aug-23,1700155563,Scottish & Southern Energy Plc,"-1,841.20"
Manchester City Council,Housing Revenue Account,Gas,10-Aug-23,1700155566,Scottish & Southern Energy Plc,-748.43
Manchester City Council,Housing Revenue Account,Gas,10-Aug-23,1700155567,Scottish & Southern Energy Plc,-642.96
Manchester City Council,Housing Revenue Account,Gas,10-Aug-23,1700155568,Scottish & Southern Energy Plc,"-1,859.89"
Manchester City Council,Housing Revenue Account,Gas,10-Aug-23,1700155569,Scottish & Southern Energy Plc,"-3,090.11"
Manchester City Council,Housing Revenue Account,Gas,10-Aug-23,1700155570,Scottish & Southern Energy Plc,"-1,467.19"
Manchester City Council,Housing Revenue Account,Gas,10-Aug-23,1700155572,Scottish & Southern Energy Plc,-995.42
Manchester City Council,Housing Revenue Account,Gas,10-Aug-23,1700155573,Scottish & Southern Energy Plc,"-1,249.18"
Manchester City Council,Housing Revenue Account,Gas,10-Aug-23,1700155574,Scottish & Southern Energy Plc,"-3,918.92"
Manchester City Council,Housing Revenue Account,Gas,10-Aug-23,1700155576,Scottish & Southern Energy Plc,"-2,123.44"
Manchester City Council,Housing Revenue Account,Gas,10-Aug-23,1700155577,Scottish & Southern Energy Plc,"-1,269.53"
Manchester City Council,Housing Revenue Account,Gas,10-Aug-23,1700155579,Scottish & Southern Energy Plc,"-1,285.67"
Manchester City Council,Housing Revenue Account,Gas,10-Aug-23,1700155580,Scottish & Southern Energy Plc,"-1,351.05"
Manchester City Council,Housing Revenue Account,Gas,10-Aug-23,1700155581,Scottish & Southern Energy Plc,"-1,007.52"
Manchester City Council,Housing Revenue Account,Gas,10-Aug-23,1700155582,Scottish & Southern Energy Plc,"-1,171.26"
Manchester City Council,Housing Revenue Account,Gas,10-Aug-23,1700155583,Scottish & Southern Energy Plc,-755.50
Manchester City Council,Housing Revenue Account,Gas,10-Aug-23,1700155586,Scottish & Southern Energy Plc,-650.89
Manchester City Council,Housing Revenue Account,Gas,10-Aug-23,1700155587,Scottish & Southern Energy Plc,"-1,028.09"
Manchester City Council,Housing Revenue Account,Gas,10-Aug-23,1700155588,Scottish & Southern Energy Plc,-853.31
Manchester City Council,Housing Revenue Account,Gas,10-Aug-23,1700155589,Scottish & Southern Energy Plc,-522.33
Manchester City Council,Housing Revenue Account,Gas,10-Aug-23,1700155590,Scottish & Southern Energy Plc,"-2,496.15"
Manchester City Council,Housing Revenue Account,Gas,10-Aug-23,1700155595,Scottish & Southern Energy Plc,"-2,906.91"
Manchester City Council,Housing Revenue Account,Gas,10-Aug-23,1700155597,Scottish & Southern Energy Plc,-641.21
Manchester City Council,Housing Revenue Account,Gas,10-Aug-23,1700155600,Scottish & Southern Energy Plc,"-2,084.42"
Manchester City Council,Housing Revenue Account,Gas,10-Aug-23,1700155601,Scottish & Southern Energy Plc,"-2,286.75"
Manchester City Council,Housing Revenue Account,Gas,10-Aug-23,1700155602,Scottish & Southern Energy Plc,"-2,231.33"
Manchester City Council,Housing Revenue Account,Gas,10-Aug-23,1700155603,Scottish & Southern Energy Plc,"-1,796.07"
Manchester City Council,Housing Revenue Account,Gas,10-Aug-23,1700155606,Scottish & Southern Energy Plc,"-1,046.02"
Manchester City Council,Housing Revenue Account,Gas,10-Aug-23,1700155607,Scottish & Southern Energy Plc,"-3,861.28"
Manchester City Council,Housing Revenue Account,Gas,10-Aug-23,1700155608,Scottish & Southern Energy Plc,"-1,880.02"
Manchester City Council,Housing Revenue Account,Gas,10-Aug-23,1700155609,Scottish & Southern Energy Plc,-819.89
Manchester City Council,Housing Revenue Account,Gas,10-Aug-23,1700155610,Scottish & Southern Energy Plc,"-1,902.79"
Manchester City Council,Housing Revenue Account,Gas,10-Aug-23,1700155612,Scottish & Southern Energy Plc,"-1,857.89"
Manchester City Council,Housing Revenue Account,Gas,10-Aug-23,1700155613,Scottish & Southern Energy Plc,"-3,240.87"
Manchester City Council,Housing Revenue Account,Gas,10-Aug-23,1700155614,Scottish & Southern Energy Plc,"-1,413.81"
Manchester City Council,Housing Revenue Account,Gas,10-Aug-23,1700155615,Scottish & Southern Energy Plc,"-3,033.49"
Manchester City Council,Housing Revenue Account,Gas,10-Aug-23,1700155616,Scottish & Southern Energy Plc,-952.04
Manchester City Council,Housing Revenue Account,Gas,10-Aug-23,1700155617,Scottish & Southern Energy Plc,"-2,167.83"
Manchester City Council,Housing Revenue Account,Gas,10-Aug-23,1700155618,Scottish & Southern Energy Plc,-665.33
Manchester City Council,Housing Revenue Account,Gas,10-Aug-23,1700155619,Scottish & Southern Energy Plc,"-1,554.53"
Manchester City Council,Housing Revenue Account,Gas,10-Aug-23,1700155622,Scottish & Southern Energy Plc,"-1,992.14"
Manchester City Council,Housing Revenue Account,Gas,10-Aug-23,1700155623,Scottish & Southern Energy Plc,-633.38
Manchester City Council,Housing Revenue Account,Gas,10-Aug-23,1700155625,Scottish & Southern Energy Plc,-546.49
Manchester City Council,Housing Revenue Account,Gas,10-Aug-23,1700155626,Scottish & Southern Energy Plc,"-1,202.99"
Manchester City Council,Housing Revenue Account,Gas,10-Aug-23,1700155627,Scottish & Southern Energy Plc,"-1,769.39"
Manchester City Council,Housing Revenue Account,Gas,10-Aug-23,1700155628,Scottish & Southern Energy Plc,"-1,130.74"
Manchester City Council,Housing Revenue Account,Gas,10-Aug-23,1700155629,Scottish & Southern Energy Plc,"-1,614.43"
Manchester City Council,Housing Revenue Account,Gas,10-Aug-23,1700155630,Scottish & Southern Energy Plc,"-1,014.60"
Manchester City Council,Housing Revenue Account,Gas,10-Aug-23,1700155635,Scottish & Southern Energy Plc,"-2,530.71"
Manchester City Council,Housing Revenue Account,Gas,10-Aug-23,1700155636,Scottish & Southern Energy Plc,-981.47
Manchester City Council,Housing Revenue Account,Gas,10-Aug-23,1700155637,Scottish & Southern Energy Plc,"-1,996.93"
Manchester City Council,Housing Revenue Account,Gas,10-Aug-23,1700155638,Scottish & Southern Energy Plc,-776.87
Manchester City Council,Housing Revenue Account,Gas,10-Aug-23,1700155639,Scottish & Southern Energy Plc,"-1,037.02"
Manchester City Council,Housing Revenue Account,Gas,10-Aug-23,1700155640,Scottish & Southern Energy Plc,"-2,254.53"
Manchester City Council,Housing Revenue Account,Gas,10-Aug-23,1700155641,Scottish & Southern Energy Plc,"-1,772.91"
Manchester City Council,Housing Revenue Account,Gas,10-Aug-23,1700155642,Scottish & Southern Energy Plc,"-3,744.84"
Manchester City Council,Housing Revenue Account,Gas,10-Aug-23,1908190864,Scottish & Southern Energy Plc,658.34
Manchester City Council,Housing Revenue Account,Gas,10-Aug-23,1908190869,Scottish & Southern Energy Plc,"1,725.97"
Manchester City Council,Housing Revenue Account,Gas,10-Aug-23,1908190870,Scottish & Southern Energy Plc,751.59
Manchester City Council,Housing Revenue Account,Gas,10-Aug-23,1908190871,Scottish & Southern Energy Plc,871.10
Manchester City Council,Housing Revenue Account,Gas,10-Aug-23,1908190872,Scottish & Southern Energy Plc,"1,053.40"
Manchester City Council,Housing Revenue Account,Gas,10-Aug-23,1908190873,Scottish & Southern Energy Plc,865.40
Manchester City Council,Housing Revenue Account,Gas,10-Aug-23,1908190874,Scottish & Southern Energy Plc,"1,013.73"
Manchester City Council,Housing Revenue Account,Gas,10-Aug-23,1908190875,Scottish & Southern Energy Plc,"1,164.05"
Manchester City Council,Housing Revenue Account,Gas,10-Aug-23,1908190883,Scottish & Southern Energy Plc,"1,373.79"
Manchester City Council,Housing Revenue Account,Gas,10-Aug-23,1908190884,Scottish & Southern Energy Plc,"1,658.24"
Manchester City Council,Housing Revenue Account,Gas,10-Aug-23,1908190885,Scottish & Southern Energy Plc,"4,393.02"
Manchester City Council,Housing Revenue Account,Gas,10-Aug-23,1908190886,Scottish & Southern Energy Plc,"4,556.12"
Manchester City Council,Housing Revenue Account,Gas,10-Aug-23,1908190888,Scottish & Southern Energy Plc,"18,332.90"
Manchester City Council,Housing Revenue Account,Gas,10-Aug-23,1908190897,Scottish & Southern Energy Plc,"1,204.50"
Manchester City Council,Housing Revenue Account,Gas,10-Aug-23,1908190898,Scottish & Southern Energy Plc,"1,461.42"
Manchester City Council,Housing Revenue Account,Gas,10-Aug-23,1908190899,Scottish & Southern Energy Plc,"1,682.75"
Manchester City Council,Housing Revenue Account,Gas,10-Aug-23,1908190902,Scottish & Southern Energy Plc,"2,502.51"
Manchester City Council,Housing Revenue Account,Gas,10-Aug-23,1908190903,Scottish & Southern Energy Plc,"1,441.07"
Manchester City Council,Housing Revenue Account,Gas,10-Aug-23,1908190904,Scottish & Southern Energy Plc,"2,046.68"
Manchester City Council,Housing Revenue Account,Gas,10-Aug-23,1908190905,Scottish & Southern Energy Plc,"1,365.49"
Manchester City Council,Housing Revenue Account,Gas,10-Aug-23,1908190906,Scottish & Southern Energy Plc,"1,203.19"
Manchester City Council,Housing Revenue Account,Gas,10-Aug-23,1908190907,Scottish & Southern Energy Plc,897.43
Manchester City Council,Housing Revenue Account,Gas,10-Aug-23,1908190908,Scottish & Southern Energy Plc,"1,285.57"
Manchester City Council,Housing Revenue Account,Gas,10-Aug-23,1908190913,Scottish & Southern Energy Plc,"1,925.38"
Manchester City Council,Housing Revenue Account,Gas,10-Aug-23,1908190914,Scottish & Southern Energy Plc,"1,051.35"
Manchester City Council,Housing Revenue Account,Gas,10-Aug-23,1908190919,Scottish & Southern Energy Plc,"2,445.48"
Manchester City Council,Housing Revenue Account,Gas,10-Aug-23,1908190920,Scottish & Southern Energy Plc,669.07
Manchester City Council,Housing Revenue Account,Gas,10-Aug-23,1908190921,Scottish & Southern Energy Plc,799.55
Manchester City Council,Housing Revenue Account,Gas,10-Aug-23,1908190923,Scottish & Southern Energy Plc,609.91
Manchester City Council,Housing Revenue Account,Gas,10-Aug-23,1908190927,Scottish & Southern Energy Plc,"1,029.68"
Manchester City Council,Housing Revenue Account,Gas,10-Aug-23,1908190928,Scottish & Southern Energy Plc,"1,346.05"
Manchester City Council,Housing Revenue Account,Gas,10-Aug-23,1908190929,Scottish & Southern Energy Plc,784.76
Manchester City Council,Housing Revenue Account,Gas,10-Aug-23,1908190930,Scottish & Southern Energy Plc,816.69
Manchester City Council,Housing Revenue Account,Gas,10-Aug-23,1908190931,Scottish & Southern Energy Plc,"4,126.84"
Manchester City Council,Housing Revenue Account,Gas,10-Aug-23,1908190940,Scottish & Southern Energy Plc,"1,411.47"
Manchester City Council,Housing Revenue Account,Gas,10-Aug-23,1908190941,Scottish & Southern Energy Plc,"1,712.53"
Manchester City Council,Housing Revenue Account,Gas,10-Aug-23,1908190942,Scottish & Southern Energy Plc,"1,051.30"
Manchester City Council,Housing Revenue Account,Gas,10-Aug-23,1908190943,Scottish & Southern Energy Plc,"1,264.77"
Manchester City Council,Housing Revenue Account,Gas,10-Aug-23,1908190945,Scottish & Southern Energy Plc,504.52
Manchester City Council,Housing Revenue Account,Gas,10-Aug-23,1908190946,Scottish & Southern Energy Plc,787.06
Manchester City Council,Housing Revenue Account,Gas,10-Aug-23,1908190947,Scottish & Southern Energy Plc,941.04
Manchester City Council,Housing Revenue Account,Gas,10-Aug-23,1908190949,Scottish & Southern Energy Plc,"1,382.28"
Manchester City Council,Housing Revenue Account,Gas,10-Aug-23,1908190950,Scottish & Southern Energy Plc,508.52
Manchester City Council,Housing Revenue Account,Gas,10-Aug-23,1908190951,Scottish & Southern Energy Plc,599.52
Manchester City Council,Housing Revenue Account,Gas,10-Aug-23,1908190952,Scottish & Southern Energy Plc,677.37
Manchester City Council,Housing Revenue Account,Gas,10-Aug-23,1908190953,Scottish & Southern Energy Plc,809.14
Manchester City Council,Housing Revenue Account,Gas,10-Aug-23,1908190954,Scottish & Southern Energy Plc,"1,072.86"
Manchester City Council,Housing Revenue Account,Gas,10-Aug-23,1908190955,Scottish & Southern Energy Plc,"1,230.67"
Manchester City Council,Housing Revenue Account,Gas,10-Aug-23,1908190958,Scottish & Southern Energy Plc,554.23
Manchester City Council,Housing Revenue Account,Gas,10-Aug-23,1908190965,Scottish & Southern Energy Plc,551.11
Manchester City Council,Housing Revenue Account,Gas,10-Aug-23,1908190971,Scottish & Southern Energy Plc,"1,133.73"
Manchester City Council,Housing Revenue Account,Gas,10-Aug-23,1908190972,Scottish & Southern Energy Plc,"1,312.12"
Manchester City Council,Housing Revenue Account,Gas,10-Aug-23,1908190976,Scottish & Southern Energy Plc,971.56
Manchester City Council,Housing Revenue Account,Gas,10-Aug-23,1908190977,Scottish & Southern Energy Plc,"1,183.53"
Manchester City Council,Housing Revenue Account,Gas,10-Aug-23,1908190978,Scottish & Southern Energy Plc,965.89
Manchester City Council,Housing Revenue Account,Gas,10-Aug-23,1908190979,Scottish & Southern Energy Plc,"4,172.48"
Manchester City Council,Housing Revenue Account,Gas,10-Aug-23,1908190981,Scottish & Southern Energy Plc,"1,091.66"
Manchester City Council,Housing Revenue Account,Gas,10-Aug-23,1908190987,Scottish & Southern Energy Plc,518.08
Manchester City Council,Housing Revenue Account,Gas,10-Aug-23,1908190989,Scottish & Southern Energy Plc,"1,942.88"
Manchester City Council,Housing Revenue Account,Gas,10-Aug-23,1908190990,Scottish & Southern Energy Plc,572.39
Manchester City Council,Housing Revenue Account,Gas,10-Aug-23,1908190991,Scottish & Southern Energy Plc,"1,598.55"
Manchester City Council,Housing Revenue Account,Gas,10-Aug-23,1908190992,Scottish & Southern Energy Plc,612.86
Manchester City Council,Housing Revenue Account,Gas,10-Aug-23,1908190993,Scottish & Southern Energy Plc,629.28
Manchester City Council,Housing Revenue Account,Gas,10-Aug-23,1908190994,Scottish & Southern Energy Plc,"1,913.18"
Manchester City Council,Housing Revenue Account,Gas,10-Aug-23,1908190995,Scottish & Southern Energy Plc,"1,477.27"
Manchester City Council,Housing Revenue Account,Gas,10-Aug-23,1908190996,Scottish & Southern Energy Plc,647.03
Manchester City Council,Housing Revenue Account,Gas,10-Aug-23,1908190997,Scottish & Southern Energy Plc,"3,193.13"
Manchester City Council,Housing Revenue Account,Gas,10-Aug-23,1908190998,Scottish & Southern Energy Plc,"4,325.37"
Manchester City Council,Housing Revenue Account,Gas,10-Aug-23,1908190999,Scottish & Southern Energy Plc,993.13
Manchester City Council,Housing Revenue Account,Gas,10-Aug-23,1908191000,Scottish & Southern Energy Plc,"1,192.83"
Manchester City Council,Housing Revenue Account,Gas,10-Aug-23,1908191001,Scottish & Southern Energy Plc,887.25
Manchester City Council,Housing Revenue Account,Gas,10-Aug-23,1908191002,Scottish & Southern Energy Plc,918.49
Manchester City Council,Housing Revenue Account,Gas,10-Aug-23,1908191004,Scottish & Southern Energy Plc,695.91
Manchester City Council,Housing Revenue Account,Gas,10-Aug-23,1908191005,Scottish & Southern Energy Plc,660.61
Manchester City Council,Housing Revenue Account,Gas,10-Aug-23,1908191011,Scottish & Southern Energy Plc,"2,095.03"
Manchester City Council,Housing Revenue Account,Gas,10-Aug-23,1908191012,Scottish & Southern Energy Plc,"2,159.27"
Manchester City Council,Housing Revenue Account,Gas,10-Aug-23,1908191013,Scottish & Southern Energy Plc,659.03
Manchester City Council,Housing Revenue Account,Gas,10-Aug-23,1908191014,Scottish & Southern Energy Plc,789.56
Manchester City Council,Housing Revenue Account,Gas,10-Aug-23,1908191016,Scottish & Southern Energy Plc,591.47
Manchester City Council,Housing Revenue Account,Gas,10-Aug-23,1908191017,Scottish & Southern Energy Plc,"1,256.23"
Manchester City Council,Housing Revenue Account,Gas,10-Aug-23,1908191018,Scottish & Southern Energy Plc,"2,248.66"
Manchester City Council,Housing Revenue Account,Gas,10-Aug-23,1908191022,Scottish & Southern Energy Plc,"1,186.68"
Manchester City Council,Housing Revenue Account,Gas,10-Aug-23,1908191025,Scottish & Southern Energy Plc,"1,696.75"
Manchester City Council,Housing Revenue Account,Gas,10-Aug-23,1908191026,Scottish & Southern Energy Plc,592.74
Manchester City Council,Housing Revenue Account,Gas,10-Aug-23,1908191027,Scottish & Southern Energy Plc,"1,058.71"
Manchester City Council,Housing Revenue Account,Gas,10-Aug-23,1908191028,Scottish & Southern Energy Plc,"1,257.83"
Manchester City Council,Housing Revenue Account,Gas,10-Aug-23,1908191034,Scottish & Southern Energy Plc,"2,648.30"
Manchester City Council,Housing Revenue Account,Gas,10-Aug-23,1908191035,Scottish & Southern Energy Plc,"1,739.68"
Manchester City Council,Housing Revenue Account,Gas,10-Aug-23,1908191038,Scottish & Southern Energy Plc,"2,088.65"
Manchester City Council,Housing Revenue Account,Gas,10-Aug-23,1908191039,Scottish & Southern Energy Plc,"2,852.67"
Manchester City Council,Housing Revenue Account,Gas,10-Aug-23,1908191040,Scottish & Southern Energy Plc,809.45
Manchester City Council,Housing Revenue Account,Gas,10-Aug-23,1908191041,Scottish & Southern Energy Plc,972.80
Manchester City Council,Housing Revenue Account,Gas,10-Aug-23,1908191042,Scottish & Southern Energy Plc,"1,082.22"
Manchester City Council,Housing Revenue Account,Gas,10-Aug-23,1908191043,Scottish & Southern Energy Plc,"1,305.34"
Manchester City Council,Housing Revenue Account,Gas,10-Aug-23,1908191046,Scottish & Southern Energy Plc,651.78
Manchester City Council,Housing Revenue Account,Gas,10-Aug-23,1908191048,Scottish & Southern Energy Plc,"1,030.20"
Manchester City Council,Housing Revenue Account,Gas,10-Aug-23,1908191049,Scottish & Southern Energy Plc,592.34
Manchester City Council,Highways Services,Professional fees,10-Aug-23,5105885459,Mott Macdonald Uk Limited,"10,829.99"
Manchester City Council,Highways Services,Professional fees,10-Aug-23,5105884634,Ove Arup & Partners Ltd,"19,748.00"
Manchester City Council,Manchester Leisure,Payments to Sub-Contractors,10-Aug-23,5105885569,Initial Washroom Solutions,513.35
Manchester City Council,Adult Social Care,Supporting People Payments,10-Aug-23,5105884372,Making Space,"8,871.01"
Manchester City Council,Adult Social Care,Supporting People Payments,10-Aug-23,5105884373,Making Space,"8,871.01"
Manchester City Council,Adult Social Care,Supporting People Payments,10-Aug-23,5105884374,Making Space,"8,871.01"
Manchester City Council,Corporate Services,Professional fees,10-Aug-23,5105884716,Mace Ltd,"7,439.00"
Manchester City Council,Childrens & Education Services,Catering,10-Aug-23,5105884637,Spie Limited,"27,216.00"
Manchester City Council,Childrens & Education Services,Catering,10-Aug-23,5105884638,Spie Limited,"17,054.80"
Manchester City Council,Childrens & Education Services,Payments for services,10-Aug-23,5105885626,Reed Employment Plc,"7,061.49"
Manchester City Council,Childrens & Education Services,Grant and subscriptions awarded,10-Aug-23,5105884887,"Groundwork Manchester, Salford","38,120.00"
Manchester City Council,Adult Social Care,Counsel Costs,10-Aug-23,5105885647,Kings Chambers,760.00
Manchester City Council,Adult Social Care,Third party payments relating to Voluntary Organisations,10-Aug-23,5105885731,The Children'S Society Services Ltd,"19,166.66"
Manchester City Council,Adult Social Care,Third party payments relating to Voluntary Organisations,10-Aug-23,5105885732,The Children'S Society Services Ltd,"19,166.66"
Manchester City Council,Environment and Operations,Construction Works,10-Aug-23,5105884700,Dowhigh Ltd,"38,072.93"
Manchester City Council,Corporate Services,Compensation Payments,10-Aug-23,1908181320,Antony Hodari Holding Ltd,"15,361.50"
Manchester City Council,Chief Executives,Third party payments relating to Voluntary Organisations,10-Aug-23,5105884717,HOME,"105,699.50"
Manchester City Council,Adult Social Care,Supporting People Payments,10-Aug-23,5105885657,Creative Support Ltd,"154,898.12"
Manchester City Council,Adult Social Care,Third party payments to Health Authority,10-Aug-23,5105885600,Central Mcr Uni Hospital t/a,"63,985.75"
Manchester City Council,Adult Social Care,Third party payments to Health Authority,10-Aug-23,5105885601,Central Mcr Uni Hospital t/a,"2,500.00"
Manchester City Council,Adult Social Care,Third party payments to Health Authority,10-Aug-23,5105885602,Central Mcr Uni Hospital t/a,"3,040.59"
Manchester City Council,Adult Social Care,Third party payments to Health Authority,10-Aug-23,5105885603,Central Mcr Uni Hospital t/a,"15,972.75"
Manchester City Council,Childrens & Education Services,Professional fees,10-Aug-23,5105885640,Stockport Metropolitan Borough,"8,408.37"
Manchester City Council,Housing General Fund,Building Works,10-Aug-23,5105885694,Manchester Care & Repair Ltd,"62,256.02"
Manchester City Council,Housing General Fund,Building Works,10-Aug-23,5105885695,Manchester Care & Repair Ltd,"25,105.00"
Manchester City Council,Housing General Fund,Building Works,10-Aug-23,5105885696,Manchester Care & Repair Ltd,"2,510.50"
Manchester City Council,Childrens & Education Services,Hire of Premises,10-Aug-23,5105885598,Timpson Ltd,"1,173.35"
Manchester City Council,Regeneration Finance,Grounds Maintenance,10-Aug-23,5105884458,Rosgal Ltd,"12,446.00"
Manchester City Council,Highways Services,Payments to Sub-Contractors,10-Aug-23,5105885699,Rosgal Ltd,"8,250.00"
Manchester City Council,Highways Services,Payments to Sub-Contractors,10-Aug-23,5105885702,Rosgal Ltd,975.00
Manchester City Council,Childrens & Education Services,Third party payments relating to Voluntary Organisations,10-Aug-23,5105884870,The Big Life Company,"34,286.50"
Manchester City Council,Childrens & Education Services,Third party payments relating to Voluntary Organisations,10-Aug-23,5105884881,The Big Life Company,"99,110.00"
Manchester City Council,Highways Services,Compensation Payments,10-Aug-23,1908182825,Department For Work & Pensions,725.00
Manchester City Council,Highways Services,Legal Fees,10-Aug-23,1908184596,Department For Work & Pensions,743.00
Manchester City Council,Chief Executives,Subsistence and Conference Expenses,10-Aug-23,5105885616,Local Government Association,-555.90
Manchester City Council,Chief Executives,Subsistence and Conference Expenses,10-Aug-23,5105885617,Local Government Association,555.90
Manchester City Council,Chief Executives,Legal Fees,10-Aug-23,5105885643,Warwickshire County Council,"2,201.94"
Manchester City Council,Chief Executives,Legal Fees,10-Aug-23,5105885644,Warwickshire County Council,"2,410.75"
Manchester City Council,Manchester Leisure,Electricity,10-Aug-23,1908190858,Corona Energy Ltd,"3,913.70"
Manchester City Council,Manchester Leisure,Electricity,10-Aug-23,1908190859,Corona Energy Ltd,"4,503.78"
Manchester City Council,Manchester Leisure,Electricity,10-Aug-23,1908190860,Corona Energy Ltd,"6,652.42"
Manchester City Council,Manchester Leisure,Electricity,10-Aug-23,1908190861,Corona Energy Ltd,"7,082.56"
Manchester City Council,Manchester Leisure,Electricity,10-Aug-23,1908190862,Corona Energy Ltd,"6,385.71"
Manchester City Council,Corporate Services,Travel Season TLS,10-Aug-23,5105884652,Northern Trains Limited,"1,362.40"
Manchester City Council,Adult Social Care,Bed & Breakfast Acc,10-Aug-23,5105885606,Redacted Personal Information,"2,170.00"
Manchester City Council,Adult Social Care,Equipment,10-Aug-23,5105885711,Drive Devilbiss Healthcare Ltd,"1,620.00"
Manchester City Council,Chief Executives,Postage,10-Aug-23,5105885610,Whistl North Ltd,"7,639.79"
Manchester City Council,Childrens & Education Services,Professional fees,10-Aug-23,5105885623,NT&AS,603.00
Manchester City Council,Childrens & Education Services,Professional fees,10-Aug-23,5105885674,NT&AS,"1,748.50"
Manchester City Council,Childrens & Education Services,Professional fees,10-Aug-23,5105885612,Museum of Science & Industry,"2,065.00"
Manchester City Council,Highways Services,Payments to Sub-Contractors,10-Aug-23,5105884250,Northern Marking Limited,"4,500.00"
Manchester City Council,Highways Services,Payments to Sub-Contractors,10-Aug-23,5105884651,Northern Marking Limited,856.58
Manchester City Council,Housing Revenue Account,CD - Acquisition,10-Aug-23,1908191454,H M Revenues and Customs,"3,300.00"
Manchester City Council,Manchester Leisure,Professional fees,10-Aug-23,5105885460,Petmedics (CVS) Limited,504.64
Manchester City Council,Corporate Services,Works and associated costs for Land and Buildings,10-Aug-23,5105885240,Rider Levett Bucknall UK Ltd,"12,320.00"
Manchester City Council,Childrens & Education Services,Payments for services,10-Aug-23,5105885717,Time Specialist Support Ltd,"14,808.00"
Manchester City Council,Childrens & Education Services,Payments for services,10-Aug-23,5105885718,Time Specialist Support Ltd,"1,727.60"
Manchester City Council,Housing Revenue Account,Vehicle Plant Furniture and Equipment,10-Aug-23,5105884713,Trustmarque Solutions Ltd,"57,474.24"
Manchester City Council,Adult Social Care,Rents,10-Aug-23,5105884570,United Property Management Ltd,"25,581.70"
Manchester City Council,Childrens & Education Services,Payments for services,10-Aug-23,5105885608,Jump Space Ltd,"2,154.96"
Manchester City Council,Chief Executives,Works and associated costs for Land and Buildings,10-Aug-23,5105885697,Ryder Architecture Ltd,"60,000.00"
Manchester City Council,Adult Social Care,Counsel Costs,10-Aug-23,5105885646,Redacted Personal Information,"1,012.50"
Manchester City Council,Childrens & Education Services,Transport Coach Hire,10-Aug-23,5105885624,Royton Minibuses Ltd,"14,430.00"
Manchester City Council,Childrens & Education Services,Transport Coach Hire,10-Aug-23,5105884715,Westfield Minibuses,"111,550.23"
Manchester City Council,Adult Social Care,Rents,10-Aug-23,5105885680,MJ Rental Ltd,900.00
Manchester City Council,Adult Social Care,Rents,10-Aug-23,5105885721,MJ Rental Ltd,"1,225.00"
Manchester City Council,Adult Social Care,Rents,10-Aug-23,5105885722,MJ Rental Ltd,550.00
Manchester City Council,Manchester Leisure,Grant and subscriptions awarded,10-Aug-23,5105885708,The Willows Primary School Academy,"2,000.00"
Manchester City Council,Childrens & Education Services,Grounds Maintenance,10-Aug-23,5105885597,Tiddlywinks Nursery-Clayton No.4 Ac,"2,014.50"
Manchester City Council,Manchester Leisure,Bed & Breakfast Acc,10-Aug-23,5105885575,Greenwich Leisure Limited,"7,278.60"
Manchester City Council,Childrens & Education Services,Third party payments relating to Voluntary Organisations,10-Aug-23,5105885705,Home - Start Manchester South,"109,399.00"
Manchester City Council,Regeneration Finance,Electricity,10-Aug-23,1908183871,SSE Enterprise Telecoms,"1,838.07"
Manchester City Council,Corporate Services,Elec Car L-VAT contr,10-Aug-23,1700155647,Northumbria Healthcare NHS FT,-982.70
Manchester City Council,Corporate Services,Elec Car L-VAT contr,10-Aug-23,1700155648,Northumbria Healthcare NHS FT,-647.54
Manchester City Council,Corporate Services,Elec Car L-VAT contr,10-Aug-23,1700155649,Northumbria Healthcare NHS FT,"-2,202.32"
Manchester City Council,Corporate Services,Elec Car L-VAT contr,10-Aug-23,1700155650,Northumbria Healthcare NHS FT,"-2,457.37"
Manchester City Council,Corporate Services,Elec Car L-VAT contr,10-Aug-23,1908191127,Northumbria Healthcare NHS FT,982.70
Manchester City Council,Corporate Services,Elec Car L-VAT contr,10-Aug-23,1908191330,Northumbria Healthcare NHS FT,647.54
Manchester City Council,Corporate Services,Elec Car L-VAT contr,10-Aug-23,1908191332,Northumbria Healthcare NHS FT,"2,202.32"
Manchester City Council,Corporate Services,Elec Car L-VAT contr,10-Aug-23,1908191334,Northumbria Healthcare NHS FT,"2,457.37"
Manchester City Council,Corporate Services,Elec Car Lease,10-Aug-23,1700155647,Northumbria Healthcare NHS FT,-978.62
Manchester City Council,Corporate Services,Elec Car Lease,10-Aug-23,1700155648,Northumbria Healthcare NHS FT,-619.47
Manchester City Council,Corporate Services,Elec Car Lease,10-Aug-23,1700155649,Northumbria Healthcare NHS FT,"-2,314.37"
Manchester City Council,Corporate Services,Elec Car Lease,10-Aug-23,1700155650,Northumbria Healthcare NHS FT,"-2,526.91"
Manchester City Council,Corporate Services,Elec Car Lease,10-Aug-23,1700155651,Northumbria Healthcare NHS FT,"-4,149.64"
Manchester City Council,Corporate Services,Elec Car Lease,10-Aug-23,1700155652,Northumbria Healthcare NHS FT,"4,149.64"
Manchester City Council,Corporate Services,Elec Car Lease,10-Aug-23,1700155653,Northumbria Healthcare NHS FT,"-4,149.64"
Manchester City Council,Corporate Services,Elec Car Lease,10-Aug-23,1700155654,Northumbria Healthcare NHS FT,"-4,574.71"
Manchester City Council,Corporate Services,Elec Car Lease,10-Aug-23,1908191127,Northumbria Healthcare NHS FT,978.62
Manchester City Council,Corporate Services,Elec Car Lease,10-Aug-23,1908191330,Northumbria Healthcare NHS FT,619.47
Manchester City Council,Corporate Services,Elec Car Lease,10-Aug-23,1908191332,Northumbria Healthcare NHS FT,"2,314.37"
Manchester City Council,Corporate Services,Elec Car Lease,10-Aug-23,1908191334,Northumbria Healthcare NHS FT,"2,526.91"
Manchester City Council,Corporate Services,Elec Car Lease,10-Aug-23,1908191432,Northumbria Healthcare NHS FT,"1,797.54"
Manchester City Council,Corporate Services,Elec Car Lease,10-Aug-23,1908191437,Northumbria Healthcare NHS FT,"1,159.09"
Manchester City Council,Corporate Services,Elec Car Lease,10-Aug-23,1908191439,Northumbria Healthcare NHS FT,"4,149.64"
Manchester City Council,Corporate Services,Elec Car Lease,10-Aug-23,1908191441,Northumbria Healthcare NHS FT,"4,574.71"
Manchester City Council,Childrens & Education Services,Professional fees,10-Aug-23,5105885675,Aim Sky High,750.00
Manchester City Council,Adult Social Care,Personal needs of client,10-Aug-23,5105884745,Doro Care Ltd,"37,800.00"
Manchester City Council,Chief Executives,Payments to Sub-Contractors,10-Aug-23,5105885651,Redacted Personal Information,"1,714.07"
Manchester City Council,Chief Executives,Payments to Sub-Contractors,10-Aug-23,5105884914,Redacted Personal Information,724.05
Manchester City Council,Chief Executives,Payments to Sub-Contractors,10-Aug-23,5105885656,Redacted Personal Information,871.74
Manchester City Council,Hospitality + Trading Services,Water - Unmetered,10-Aug-23,1908191058,Water Plus Limited,656.79
Manchester City Council,Libraries and Theatres,Vehicle Plant Furniture and Equipment,10-Aug-23,5105885620,Gariff Construction,"2,670.00"
Manchester City Council,Childrens & Education Services,Payments for services,10-Aug-23,5105884347,National Offender Mgt Services,"25,020.00"
Manchester City Council,Childrens & Education Services,Payments for services,10-Aug-23,5105884348,National Offender Mgt Services,"25,854.00"
Manchester City Council,Childrens & Education Services,Payments for services,10-Aug-23,5105884349,National Offender Mgt Services,"9,840.00"
Manchester City Council,Childrens & Education Services,Payments for services,10-Aug-23,5105884350,National Offender Mgt Services,"9,840.00"
Manchester City Council,Childrens & Education Services,Payments for services,10-Aug-23,5105884361,National Offender Mgt Services,"9,840.00"
Manchester City Council,Childrens & Education Services,Payments for services,10-Aug-23,5105884362,National Offender Mgt Services,"9,840.00"
Manchester City Council,Childrens & Education Services,Payments for services,10-Aug-23,5105884364,National Offender Mgt Services,"25,140.00"
Manchester City Council,Childrens & Education Services,Payments for services,10-Aug-23,5105884365,National Offender Mgt Services,"8,856.00"
Manchester City Council,Childrens & Education Services,Payments for services,10-Aug-23,5105884367,National Offender Mgt Services,"2,502.00"
Manchester City Council,Childrens & Education Services,Payments for services,10-Aug-23,5105884369,National Offender Mgt Services,"9,840.00"
Manchester City Council,Chief Executives,Printing,10-Aug-23,5105885673,Geiger Limited,590.00
Manchester City Council,Adult Social Care,Grant and subscriptions awarded,10-Aug-23,5105885704,On The Out CIC,"20,985.58"
Manchester City Council,Manchester Leisure,Security,10-Aug-23,5105885277,Synectics Security Limited,"1,214.98"
Manchester City Council,Corporate Services,WPS Awards,10-Aug-23,5105885204,Furniture Resource Centre Ltd,640.50
Manchester City Council,Corporate Services,WPS Awards,10-Aug-23,5105885428,Furniture Resource Centre Ltd,969.71
Manchester City Council,Corporate Services,Professional fees,10-Aug-23,5105884589,Pick Everard,"5,434.00"
Manchester City Council,Regeneration Finance,Travel,10-Aug-23,5105885665,Purcell Architecture Limited,"1,317.23"
Manchester City Council,Corporate Services,Works and associated costs for Land and Buildings,10-Aug-23,5105885665,Purcell Architecture Limited,"35,000.00"
Manchester City Council,Corporate Services,Works and associated costs for Land and Buildings,10-Aug-23,5105885667,Purcell Architecture Limited,734.68
Manchester City Council,Corporate Services,Works and associated costs for Land and Buildings,10-Aug-23,5105885668,Purcell Architecture Limited,"7,000.00"
Manchester City Council,Corporate Services,Works and associated costs for Land and Buildings,10-Aug-23,5105885669,Purcell Architecture Limited,"6,637.50"
Manchester City Council,Corporate Services,Works and associated costs for Land and Buildings,10-Aug-23,5105885670,Purcell Architecture Limited,"2,587.50"
Manchester City Council,Corporate Services,Works and associated costs for Land and Buildings,10-Aug-23,5105885681,Purcell Architecture Limited,"4,125.00"
Manchester City Council,Corporate Services,Works and associated costs for Land and Buildings,10-Aug-23,5105885682,Purcell Architecture Limited,"1,256.25"
Manchester City Council,Corporate Services,Works and associated costs for Land and Buildings,10-Aug-23,5105885683,Purcell Architecture Limited,"7,575.00"
Manchester City Council,Corporate Services,Works and associated costs for Land and Buildings,10-Aug-23,5105885684,Purcell Architecture Limited,"1,462.50"
Manchester City Council,Corporate Services,Works and associated costs for Land and Buildings,10-Aug-23,5105885685,Purcell Architecture Limited,656.25
Manchester City Council,Corporate Services,Works and associated costs for Land and Buildings,10-Aug-23,5105885686,Purcell Architecture Limited,"2,700.00"
Manchester City Council,Corporate Services,Works and associated costs for Land and Buildings,10-Aug-23,5105885687,Purcell Architecture Limited,"4,462.50"
Manchester City Council,Corporate Services,Works and associated costs for Land and Buildings,10-Aug-23,5105885688,Purcell Architecture Limited,675.00
Manchester City Council,Corporate Services,Works and associated costs for Land and Buildings,10-Aug-23,5105885691,Purcell Architecture Limited,"5,925.00"
Manchester City Council,Corporate Services,Works and associated costs for Land and Buildings,10-Aug-23,5105885692,Purcell Architecture Limited,"6,885.37"
Manchester City Council,Childrens & Education Services,Transport Coach Hire,10-Aug-23,1908191452,PDR Travel Ltd,"4,200.00"
Manchester City Council,Childrens & Education Services,Transport Coach Hire,10-Aug-23,5105884573,RK Travel Ltd,"2,645.00"
Manchester City Council,Chief Executives,Legal Fees,10-Aug-23,5105885629,Isherwood Legal Limited,864.00
Manchester City Council,Childrens & Education Services,Contract Cleaning External,10-Aug-23,5105885645,Freshwave Cleaning Services Ltd,748.00
Manchester City Council,Childrens & Education Services,Professional fees,10-Aug-23,5105885700,Redacted Personal Information,"6,565.00"
Manchester City Council,Chief Executives,Payments to Sub-Contractors,10-Aug-23,5105885652,Redacted Personal Information,667.50
Manchester City Council,Chief Executives,Payments to Sub-Contractors,10-Aug-23,5105885719,Redacted Personal Information,712.50
Manchester City Council,Corporate Services,Car Parking Permits,10-Aug-23,5105885633,Yunex Ltd,"-7,097.65"
Manchester City Council,Corporate Services,Car Parking Permits,10-Aug-23,5105885635,Yunex Ltd,"7,097.65"
Manchester City Council,Manchester Leisure,ICT Sup & Maintnance,10-Aug-23,5105885402,House-on-the-Hill Software Ltd,"2,736.00"
Manchester City Council,Regeneration Finance,Electricity,10-Aug-23,1908173031,M\cr Heat Network Supply Co Ltd,"55,172.96"
Manchester City Council,Highways Services,Payments to Sub-Contractors,10-Aug-23,5105885399,Project Centre,"4,400.00"
Manchester City Council,Corporate Services,I T Provision,10-Aug-23,5105885550,ThinkProject UK Limited,"2,250.00"
Manchester City Council,Childrens & Education Services,Grant Payments,10-Aug-23,5105885693,Caritas Diocese of Shrewsbury,"20,000.00"
Manchester City Council,Manchester Leisure,"Consumable items eg Toilet rolls, soap etc",10-Aug-23,1908185846,Aquapax - Just Drinking Water Ltd,"1,134.00"
Manchester City Council,Childrens & Education Services,Training and Development,10-Aug-23,1908180330,Chris Garland Training,"1,949.97"
Manchester City Council,Manchester Leisure,Compensation Payments,10-Aug-23,1908190226,Driscoll Kingston,"1,500.00"
Manchester City Council,Childrens & Education Services,PNOR-Other Amenities,10-Aug-23,1908181310,Jeffrey Wotherspoon LTD,886.09
Manchester City Council,Adult Social Care,Rents,10-Aug-23,1908191448,Mr Mohammed  ILyas,"9,126.44"
Manchester City Council,Adult Social Care,Rents,10-Aug-23,1908191457,Mujeeb Rehman Maitlo,"14,347.12"
Manchester City Council,Adult Social Care,Rents,10-Aug-23,1908191451,Newswift Management Ltd,"5,400.00"
Manchester City Council,Adult Social Care,Rents,10-Aug-23,1908191451,Newswift Management Ltd,"7,700.00"
Manchester City Council,Corporate Services,Electricity,10-Aug-23,1908185072,PAYPOINT NETWORK LTD,"1,571.52"
Manchester City Council,Adult Social Care,Rents,10-Aug-23,1908191458,RCL ESTATES LTD,"10,903.84"
Manchester City Council,Adult Social Care,Rents,10-Aug-23,1908191449,Samantha Douglas,"1,650.00"
Manchester City Council,Adult Social Care,Rents,10-Aug-23,1908191459,Willkates Ltd,"1,500.00"
Manchester City Council,Manchester Leisure,Grant and subscriptions awarded,10-Aug-23,1908188693,"Women�s CHAI Project Care, Help","5,000.00"
Manchester City Council,Childrens & Education Services,Ind Budget Payment,11-Aug-23,1700155656,Redacted Personal Information,"-4,410.00"
Manchester City Council,Childrens & Education Services,Ind Budget Payment,11-Aug-23,1908191956,Redacted Personal Information,"4,410.00"
Manchester City Council,Corporate Services,Postage,11-Aug-23,5105885912,Royal Mail Group Plc,"7,919.23"
Manchester City Council,Corporate Services,Postage,11-Aug-23,5105885913,Royal Mail Group Plc,"8,513.04"
Manchester City Council,Corporate Services,Postage,11-Aug-23,5105885916,Royal Mail Group Plc,"10,157.24"
Manchester City Council,Adult Social Care,Third party payments relating to Voluntary Organisations,11-Aug-23,5105884719,Nacro,"117,306.00"
Manchester City Council,Corporate Services,Legal Fees,11-Aug-23,1908180340,Eversheds Llp,"2,136.00"
Manchester City Council,Regeneration Finance,Professional fees,11-Aug-23,5105885707,Idox Software Ltd,"92,545.20"
Manchester City Council,Regeneration Finance,Sanitary/Medcal Wast,11-Aug-23,5105885754,Initial Medical Services,"1,037.66"
Manchester City Council,Chief Executives,Agency staff provision,11-Aug-23,5105885758,Osborne Richardson,"3,474.30"
Manchester City Council,Chief Executives,Agency staff provision,11-Aug-23,5105885760,Osborne Richardson,"7,359.30"
Manchester City Council,Manchester Leisure,Refuse Collection,11-Aug-23,5105885969,GTS Steam Cleaners,607.17
Manchester City Council,Highways Services,Payments to Sub-Contractors,11-Aug-23,5105885820,Utilities Design & Planning Ltd,"2,000.00"
Manchester City Council,Hospitality + Trading Services,Hire of Machinery,11-Aug-23,5105885850,R & M Developments Ltd,858.80
Manchester City Council,Hospitality + Trading Services,Hire of Machinery,11-Aug-23,5105885891,R & M Developments Ltd,"1,073.50"
Manchester City Council,Chief Executives,Agency staff provision,11-Aug-23,5105885753,Adecco Uk Ltd,"1,685.40"
Manchester City Council,Adult Social Care,Third party payments relating to Voluntary Organisations,11-Aug-23,5105885551,LGBT Foundation,"12,500.00"
Manchester City Council,Adult Social Care,Payments for services,11-Aug-23,5105885945,Standwalk Ltd,"349,370.41"
Manchester City Council,Highways Services,Building Materials for direct delivery,11-Aug-23,5105885544,TARMAC,"1,240.74"
Manchester City Council,Corporate Services,Professional fees,11-Aug-23,5105885745,Kpmg Llp,"12,715.00"
Manchester City Council,Corporate Services,Professional fees,11-Aug-23,5105885874,Kpmg Llp,"-12,715.00"
Manchester City Council,Corporate Services,Professional fees,11-Aug-23,5105885876,Kpmg Llp,"12,715.00"
Manchester City Council,Manchester Leisure,Professional fees,11-Aug-23,5105885803,Wai Yin Society,500.00
Manchester City Council,Childrens & Education Services,Professional fees,11-Aug-23,5105885779,Civica UK Ltd,"2,500.00"
Manchester City Council,Chief Executives,Professional fees,11-Aug-23,5105885778,Civica UK Ltd,"13,587.50"
Manchester City Council,Chief Executives,Professional fees,11-Aug-23,5105885780,Civica UK Ltd,"5,118.75"
Manchester City Council,Childrens & Education Services,Payments for services,11-Aug-23,5105885766,Rossendale School Priory,"5,586.34"
Manchester City Council,Chief Executives,Works and associated costs for Land and Buildings,11-Aug-23,5105885784,Manchester International Festival,"247,094.00"
Manchester City Council,Environment and Operations,Construction Works,11-Aug-23,5105885638,Stockport Metropolitan Borough,750.00
Manchester City Council,Adult Social Care,Payments for services,11-Aug-23,5105884741,Brook,"44,851.65"
Manchester City Council,Housing Revenue Account,Private Finance and Public Private partnership initiatives,11-Aug-23,5105885637,Grove Village Ltd,"580,108.63"
Manchester City Council,Corporate Services,Works and associated costs for Land and Buildings,11-Aug-23,5105885769,Hilti (Gt.Britain) Ltd,"1,170.00"
Manchester City Council,Adult Social Care,Grant and subscriptions awarded,11-Aug-23,5105885759,Manchester Action On Street Health,"11,098.34"
Manchester City Council,Adult Social Care,Third party payments relating to Voluntary Organisations,11-Aug-23,5105885756,Manchester Action On Street Health,"16,686.08"
Manchester City Council,Adult Social Care,Third party payments relating to Voluntary Organisations,11-Aug-23,5105885757,Manchester Action On Street Health,"3,294.08"
Manchester City Council,Environment and Operations,Construction Works,11-Aug-23,5105885662,Eric Wright Civil Engineering Limit,"64,448.76"
Manchester City Council,Adult Social Care,Personal needs of client,11-Aug-23,5105885698,Powell Hardware Ltd,786.00
Manchester City Council,Chief Executives,Legal Fees,11-Aug-23,5105885815,Warwickshire County Council,"18,803.17"
Manchester City Council,Corporate Services,I T Provision,11-Aug-23,5105885967,Taranto Systems Ltd,"3,405.80"
Manchester City Council,Adult Social Care,Equipment,11-Aug-23,5105885752,Drive Devilbiss Healthcare Ltd,"1,121.00"
Manchester City Council,Chief Executives,Advertising,11-Aug-23,5105885963,Bay Media,"4,257.90"
Manchester City Council,Childrens & Education Services,Transport Coach Hire,11-Aug-23,5105885951,Redacted Personal Information,"4,550.00"
Manchester City Council,Childrens & Education Services,Transport Coach Hire,11-Aug-23,5105885952,Redacted Personal Information,"4,080.00"
Manchester City Council,Chief Executives,Counsel Costs,11-Aug-23,1908186781,18 St John Street Chambers,880.00
Manchester City Council,Chief Executives,Counsel Costs,11-Aug-23,1908187267,18 St John Street Chambers,650.00
Manchester City Council,Chief Executives,Counsel Costs,11-Aug-23,1908190206,18 St John Street Chambers,650.00
Manchester City Council,Hospitality + Trading Services,Professional fees,11-Aug-23,5105885908,Triscan Systems Ltd,605.00
Manchester City Council,Childrens & Education Services,Legal Fees,11-Aug-23,1908168051,Simpson Millar LLP,"7,500.00"
Manchester City Council,Childrens & Education Services,Hire of Premises,11-Aug-23,5105885923,The Monastery Manchester Ltd,"4,208.33"
Manchester City Council,Chief Executives,Legal Fees,11-Aug-23,5105885838,Russell & Russell Solicitors LLP,"4,066.20"
Manchester City Council,Childrens & Education Services,Catering,11-Aug-23,5105885774,Hopewell,"1,000.00"
Manchester City Council,Regeneration Finance,Training and Development,11-Aug-23,5105885821,Pearson Education Ltd,767.70
Manchester City Council,Hospitality + Trading Services,Vehicle Repairs,11-Aug-23,5105885909,Advanced Vehicle Technicians Ltd,"2,379.08"
Manchester City Council,Hospitality + Trading Services,Vehicle Hire Costs,11-Aug-23,5105885848,Peter Douglass Platforms,"1,400.00"
Manchester City Council,Hospitality + Trading Services,Vehicle Hire Costs,11-Aug-23,5105885849,Peter Douglass Platforms,"2,000.00"
Manchester City Council,Manchester Leisure,Payments to Sub-Contractors,11-Aug-23,5105885890,Scrutiny Cleaning Services,"3,898.00"
Manchester City Council,Chief Executives,Licences Purchase,11-Aug-23,5105885817,Smartsurvey Ltd,"4,644.00"
Manchester City Council,Manchester Leisure,Grant and subscriptions awarded,11-Aug-23,5105885463,Mirfield Road Community Gardens,-689.00
Manchester City Council,Manchester Leisure,GRIR,11-Aug-23,5105885463,Mirfield Road Community Gardens,"-2,097.00"
Manchester City Council,Manchester Leisure,Professional fees,11-Aug-23,5105885802,Manchester BME Network,"1,000.00"
Manchester City Council,Chief Executives,Rents,11-Aug-23,5105884830,ANS Group PLC,"50,020.00"
Manchester City Council,Manchester Leisure,Special Event,11-Aug-23,5105885761,British Taekwondo Limited,"1,174.46"
Manchester City Council,Manchester Leisure,Special Event,11-Aug-23,5105885762,British Taekwondo Limited,"15,000.00"
Manchester City Council,Housing General Fund,Building Works,11-Aug-23,5105885941,Wythenshawe Community Housing Group,"257,575.73"
Manchester City Council,Adult Social Care,Third party payments relating to Voluntary Organisations,11-Aug-23,5105885786,Wythenshawe Community Housing Group,"4,550.91"
Manchester City Council,Chief Executives,Professional fees,11-Aug-23,1908187163,Alpha Biolaboratories Limited,551.67
Manchester City Council,Childrens & Education Services,Subsistence and Conference Expenses,11-Aug-23,5105885413,Career Connect,"62,311.76"
Manchester City Council,Manchester Leisure,Building Materials for direct delivery,11-Aug-23,5105885261,Biffa Municipal Limited,"9,972.00"
Manchester City Council,Manchester Leisure,"Consumable items eg Toilet rolls, soap etc",11-Aug-23,5105885256,Biffa Municipal Limited,"7,500.00"
Manchester City Council,Manchester Leisure,Payments to Contractors,11-Aug-23,5105885250,Biffa Municipal Limited,"221,814.06"
Manchester City Council,Manchester Leisure,Payments to Sub-Contractors,11-Aug-23,5105885257,Biffa Municipal Limited,"47,250.00"
Manchester City Council,Manchester Leisure,Payments to Sub-Contractors,11-Aug-23,5105885259,Biffa Municipal Limited,"29,032.83"
Manchester City Council,Manchester Leisure,Professional fees,11-Aug-23,5105885258,Biffa Municipal Limited,"4,454.34"
Manchester City Council,Manchester Leisure,Refuse Collection,11-Aug-23,5105885255,Biffa Municipal Limited,"51,128.51"
Manchester City Council,Manchester Leisure,Refuse Collection,11-Aug-23,5105885260,Biffa Municipal Limited,"56,606.56"
Manchester City Council,Hospitality + Trading Services,Refuse Collection,11-Aug-23,5105885251,Biffa Municipal Limited,"118,087.86"
Manchester City Council,Chief Executives,Works and associated costs for Land and Buildings,11-Aug-23,5105885831,Charcoalblue LLP,"10,500.00"
Manchester City Council,Chief Executives,Works and associated costs for Land and Buildings,11-Aug-23,5105885832,Charcoalblue LLP,"16,000.00"
Manchester City Council,Chief Executives,Works and associated costs for Land and Buildings,11-Aug-23,5105885833,Charcoalblue LLP,"16,500.00"
Manchester City Council,Chief Executives,Works and associated costs for Land and Buildings,11-Aug-23,5105885834,Charcoalblue LLP,"16,500.00"
Manchester City Council,Chief Executives,Works and associated costs for Land and Buildings,11-Aug-23,5105885836,Charcoalblue LLP,"19,000.00"
Manchester City Council,Manchester Leisure,Equipment,11-Aug-23,5105885878,Cromwell Polythene Limited,"10,883.60"
Manchester City Council,Chief Executives,Professional fees,11-Aug-23,1908185941,Forensic Testing Service Ltd,546.00
Manchester City Council,Manchester Leisure,Professional fees,11-Aug-23,5105885804,Redacted Personal Information,500.00
Manchester City Council,Chief Executives,Payments to Sub-Contractors,11-Aug-23,5105885230,Redacted Personal Information,654.00
Manchester City Council,Adult Social Care,Rents,11-Aug-23,5105885777,Housing Social Ltd,"4,720.00"
Manchester City Council,Chief Executives,Advertising,11-Aug-23,5105885966,Place North West,"1,400.00"
Manchester City Council,Chief Executives,Professional fees,11-Aug-23,1908186766,Pickering Psychology Services Ltd,978.33
Manchester City Council,Chief Executives,Professional fees,11-Aug-23,1908186774,Pickering Psychology Services Ltd,593.70
Manchester City Council,Chief Executives,Professional fees,11-Aug-23,1908187104,Pickering Psychology Services Ltd,869.13
Manchester City Council,Childrens & Education Services,Supporting People Payments,11-Aug-23,5105885787,Action For Children Services Ltd,"99,108.25"
Manchester City Council,Childrens & Education Services,Payments for services,11-Aug-23,5105885827,Fairfield Care Ltd,"4,642.52"
Manchester City Council,Childrens & Education Services,Payments for services,11-Aug-23,5105885828,Fairfield Care Ltd,"1,274.28"
Manchester City Council,Childrens & Education Services,Payments for services,11-Aug-23,5105885829,Fairfield Care Ltd,"2,665.90"
Manchester City Council,Chief Executives,Printing,11-Aug-23,5105885510,Impression (Bolton) Ltd,670.00
Manchester City Council,Manchester Leisure,Grant and subscriptions awarded,11-Aug-23,5105885783,Ivy Manchester Ltd,"1,000.00"
Manchester City Council,Adult Social Care,Personal needs of client,11-Aug-23,5105885590,Accora,"1,995.00"
Manchester City Council,Chief Executives,Counsel Costs,11-Aug-23,1908186792,Central Chambers,"1,500.00"
Manchester City Council,Chief Executives,Counsel Costs,11-Aug-23,1908186806,Central Chambers,700.00
Manchester City Council,Chief Executives,Counsel Costs,11-Aug-23,1908187266,Central Chambers,850.00
Manchester City Council,Chief Executives,Counsel Costs,11-Aug-23,1908187282,Central Chambers,"1,850.00"
Manchester City Council,Chief Executives,Counsel Costs,11-Aug-23,1908187284,Central Chambers,"2,200.00"
Manchester City Council,Chief Executives,Counsel Costs,11-Aug-23,1908187294,Central Chambers,550.00
Manchester City Council,Chief Executives,Counsel Costs,11-Aug-23,1908187312,Central Chambers,750.00
Manchester City Council,Chief Executives,Advertising,11-Aug-23,5105885227,Imageit,"2,537.50"
Manchester City Council,Chief Executives,Legal Fees,11-Aug-23,5105885735,Waddington & Son Solicitors,"1,954.50"
Manchester City Council,Chief Executives,Legal Fees,11-Aug-23,5105885736,Waddington & Son Solicitors,"2,158.75"
Manchester City Council,Chief Executives,Legal Fees,11-Aug-23,5105885738,Waddington & Son Solicitors,"5,318.75"
Manchester City Council,Chief Executives,Legal Fees,11-Aug-23,5105885740,Waddington & Son Solicitors,"1,036.60"
Manchester City Council,Chief Executives,Legal Fees,11-Aug-23,5105885791,Waddington & Son Solicitors,"1,975.00"
Manchester City Council,Chief Executives,Legal Fees,11-Aug-23,5105885793,Waddington & Son Solicitors,"2,075.00"
Manchester City Council,Chief Executives,Legal Fees,11-Aug-23,5105885794,Waddington & Son Solicitors,"6,158.22"
Manchester City Council,Chief Executives,Legal Fees,11-Aug-23,5105885795,Waddington & Son Solicitors,"4,219.66"
Manchester City Council,Chief Executives,Legal Fees,11-Aug-23,5105885796,Waddington & Son Solicitors,"1,081.25"
Manchester City Council,Corporate Services,WPS Awards,11-Aug-23,5105885866,Furniture Resource Centre Ltd,568.16
Manchester City Council,Corporate Services,WPS Awards,11-Aug-23,5105885881,Furniture Resource Centre Ltd,679.19
Manchester City Council,Corporate Services,WPS Awards,11-Aug-23,5105885927,Furniture Resource Centre Ltd,568.05
Manchester City Council,Corporate Services,WPS Awards,11-Aug-23,5105885953,Furniture Resource Centre Ltd,807.83
Manchester City Council,Adult Social Care,Professional fees,11-Aug-23,5105885755,YOURmedpack Ltd,811.00
Manchester City Council,Chief Executives,Counsel Costs,11-Aug-23,1908186807,Redacted Personal Information,550.00
Manchester City Council,Regeneration Finance,Contract Cleaning External,11-Aug-23,5105885879,Westgrove Support Services Ltd,892.04
Manchester City Council,Highways Services,Payments to Sub-Contractors,11-Aug-23,5105884742,Pell Frischmann Consultants Ltd,"8,408.75"
Manchester City Council,Corporate Services,Professional fees,11-Aug-23,5105885287,NE1 Procurement Services Limited,"9,230.77"
Manchester City Council,Highways Services,Professional fees,11-Aug-23,5105884762,Waterman Infrastructure and,"5,070.84"
Manchester City Council,Highways Services,Professional fees,11-Aug-23,5105884763,Waterman Infrastructure and,"-8,408.33"
Manchester City Council,Highways Services,Professional fees,11-Aug-23,5105885632,Waterman Infrastructure and,"19,188.00"
Manchester City Council,Adult Social Care,Rents,11-Aug-23,5105885910,M&D Residential Ltd,"14,552.30"
Manchester City Council,Corporate Services,Professional fees,11-Aug-23,5105885781,Sir Frederick Snow & Partners Ltd,"2,653.00"
Manchester City Council,Corporate Services,Professional fees,11-Aug-23,5105885782,Sir Frederick Snow & Partners Ltd,"3,209.60"
Manchester City Council,Childrens & Education Services,Transport Taxis,11-Aug-23,5105885956,Britannia Minibuses Ltd,"2,125.00"
Manchester City Council,Childrens & Education Services,Transport Taxis,11-Aug-23,5105885958,Britannia Minibuses Ltd,"2,550.00"
Manchester City Council,Environment and Operations,Construction Works,11-Aug-23,5105885862,Yunex Ltd,"-3,706.00"
Manchester City Council,Environment and Operations,Construction Works,11-Aug-23,5105885865,Yunex Ltd,"3,706.00"
Manchester City Council,Corporate Services,Car Parking Permits,11-Aug-23,5105885851,Yunex Ltd,"-7,097.65"
Manchester City Council,Corporate Services,Car Parking Permits,11-Aug-23,5105885853,Yunex Ltd,"7,097.65"
Manchester City Council,Corporate Services,Car Parking Permits,11-Aug-23,5105885857,Yunex Ltd,"-18,726.38"
Manchester City Council,Corporate Services,Car Parking Permits,11-Aug-23,5105885859,Yunex Ltd,"18,726.38"
Manchester City Council,Corporate Services,Car Parking Permits,11-Aug-23,5105885867,Yunex Ltd,"-11,227.14"
Manchester City Council,Corporate Services,Car Parking Permits,11-Aug-23,5105885868,Yunex Ltd,"11,277.14"
Manchester City Council,Corporate Services,Payments to Contractors,11-Aug-23,5105885854,Yunex Ltd,"-16,620.51"
Manchester City Council,Corporate Services,Payments to Contractors,11-Aug-23,5105885855,Yunex Ltd,"16,620.51"
Manchester City Council,Housing Revenue Account,Council Dwelling Fees,11-Aug-23,5105885905,Wardell Armstrong LLP,893.00
Manchester City Council,Chief Executives,Signers/Interpreters,11-Aug-23,5105885886,Redacted Personal Information,"1,776.50"
Manchester City Council,Adult Social Care,Rents,11-Aug-23,5105885733,NWA Housing Ltd,"1,245.09"
Manchester City Council,Adult Social Care,Furniture,11-Aug-23,5105885771,Rtech Group Limited,"4,379.17"
Manchester City Council,Adult Social Care,Furniture,11-Aug-23,5105885772,Rtech Group Limited,"2,312.50"
Manchester City Council,Adult Social Care,Furniture,11-Aug-23,5105885775,Rtech Group Limited,"7,687.50"
Manchester City Council,Childrens & Education Services,Payments for services,11-Aug-23,5105885825,SENsational Tutors Ltd,"1,105.00"
Manchester City Council,Corporate Services,Works and associated costs for Land and Buildings,11-Aug-23,5105885919,Redacted Personal Information,"2,125.00"
Manchester City Council,Chief Executives,I T Provision,11-Aug-23,5105885768,Verint Systems UK Ltd,"169,785.01"
Manchester City Council,Childrens & Education Services,Payments for services,11-Aug-23,5105885709,Connect AP Ltd,"10,032.00"
Manchester City Council,Regeneration Finance,External repairs and maintenance for buildings,11-Aug-23,5105885788,Temple Studios,"4,100.00"
Manchester City Council,Chief Executives,Professional fees,11-Aug-23,1908187243,Aneela Pilkington,"1,363.52"
Manchester City Council,Chief Executives,Counsel Costs,11-Aug-23,1908185945,Callum Brook,687.50
Manchester City Council,Chief Executives,Counsel Costs,11-Aug-23,1908187313,Cobden House Chambers,650.00
Manchester City Council,Chief Executives,Professional fees,11-Aug-23,1908190244,Colonsay Paediatrics,567.00
Manchester City Council,Manchester Leisure,Compensation Payments,11-Aug-23,1700155655,Coyne Learmonth,"-12,500.00"
Manchester City Council,Manchester Leisure,Compensation Payments,11-Aug-23,1908191963,Coyne Learmonth,"12,500.00"
Manchester City Council,Chief Executives,Professional fees,11-Aug-23,1908187154,Expert Psychology,"2,340.00"
Manchester City Council,Chief Executives,Counsel Costs,11-Aug-23,1908187161,Garden Court North Chambers,500.00
Manchester City Council,Childrens & Education Services,Ind Budget Payment,11-Aug-23,1908191967,Gemma Stewart,"4,410.00"
Manchester City Council,Chief Executives,Counsel Costs,11-Aug-23,1908186005,Helen Maguire,510.42
Manchester City Council,Chief Executives,Counsel Costs,11-Aug-23,1908186740,Helen Maguire,937.50
Manchester City Council,Chief Executives,Counsel Costs,11-Aug-23,1908186787,Holborn Chambers,525.00
Manchester City Council,Chief Executives,Counsel Costs,11-Aug-23,1908186797,Holborn Chambers,625.00
Manchester City Council,Chief Executives,Counsel Costs,11-Aug-23,1908187308,Holborn Chambers,550.00
Manchester City Council,Manchester Leisure,Special Event,11-Aug-23,1908191964,IDTM,"7,092.66"
Manchester City Council,Manchester Leisure,Payments for services,11-Aug-23,1908187276,Manchester Urban Diggers,918.33
Manchester City Council,Chief Executives,Counsel Costs,11-Aug-23,1908190250,Mark Roberts,510.42
Manchester City Council,Adult Social Care,Rents,11-Aug-23,1908191961,Michael Gallagher,"1,000.00"
Manchester City Council,Manchester Leisure,Compensation Payments,11-Aug-23,1908186015,Peter Nolan,500.00
Manchester City Council,Highways Services,Training-Day Release,11-Aug-23,1908185056,PLATINUM MANAGEMENT SOLUTIONS LTD,710.00
Manchester City Council,Regeneration Finance,Professional fees,11-Aug-23,1908185068,Property Made to Order,"1,250.00"
Manchester City Council,Adult Social Care,Training and Development,11-Aug-23,1908179890,Safelives,"2,450.00"
Manchester City Council,Corporate Services,Printing,14-Aug-23,5105886001,Mail Solutions,"2,773.50"
Manchester City Council,Chief Executives,Postage,14-Aug-23,5105884886,Royal Mail Group Plc,"34,316.50"
Manchester City Council,Childrens & Education Services,Furniture,14-Aug-23,5105886214,Eps Supplies Ltd,669.33
Manchester City Council,Corporate Services,Works and associated costs for Land and Buildings,14-Aug-23,5105885661,GVA Grimley Ltd,"10,250.00"
Manchester City Council,Regeneration Finance,Rents,14-Aug-23,1908191623,Knight Frank LLP,"1,523.74"
Manchester City Council,Housing General Fund,Works and associated costs for Land and Buildings,14-Aug-23,5105885237,Wates Construction Ltd,"741,957.66"
Manchester City Council,Chief Executives,Agency staff provision,14-Aug-23,5105886018,Michael Page International,"6,496.00"
Manchester City Council,Chief Executives,Agency staff provision,14-Aug-23,5105886019,Michael Page International,"2,912.00"
Manchester City Council,Hospitality + Trading Services,Hire of Machinery,14-Aug-23,5105886030,R & M Developments Ltd,511.33
Manchester City Council,Hospitality + Trading Services,Hire of Machinery,14-Aug-23,5105886054,R & M Developments Ltd,541.67
Manchester City Council,Hospitality + Trading Services,Hire of Machinery,14-Aug-23,5105886151,R & M Developments Ltd,-511.33
Manchester City Council,Hospitality + Trading Services,Hire of Machinery,14-Aug-23,5105886152,R & M Developments Ltd,511.33
Manchester City Council,Hospitality + Trading Services,Hire of Machinery,14-Aug-23,5105886153,R & M Developments Ltd,511.33
Manchester City Council,Hospitality + Trading Services,Hire of Machinery,14-Aug-23,5105886154,R & M Developments Ltd,606.67
Manchester City Council,Hospitality + Trading Services,Hire of Machinery,14-Aug-23,5105886155,R & M Developments Ltd,511.33
Manchester City Council,Corporate Services,Professional fees,14-Aug-23,5105884884,Mace Ltd,"7,524.45"
Manchester City Council,Highways Services,Professional fees,14-Aug-23,5105885181,Mace Ltd,"4,906.58"
Manchester City Council,Highways Services,Professional fees,14-Aug-23,5105885182,Mace Ltd,"7,269.00"
Manchester City Council,Highways Services,Professional fees,14-Aug-23,5105885184,Mace Ltd,"8,511.90"
Manchester City Council,Highways Services,Professional fees,14-Aug-23,5105885185,Mace Ltd,"11,755.80"
Manchester City Council,Manchester Leisure,Removal and Storage of Furniture,14-Aug-23,5105886035,Master Moves Ltd,661.01
Manchester City Council,Environment and Operations,Construction Works,14-Aug-23,5105886004,J.Hopkins (Contractors) Ltd.,"12,664.60"
Manchester City Council,Environment and Operations,Construction Works,14-Aug-23,5105886005,J.Hopkins (Contractors) Ltd.,"5,650.00"
Manchester City Council,Environment and Operations,Construction Works,14-Aug-23,5105886007,J.Hopkins (Contractors) Ltd.,"1,569.00"
Manchester City Council,Environment and Operations,Construction Works,14-Aug-23,5105886008,J.Hopkins (Contractors) Ltd.,"5,674.12"
Manchester City Council,Environment and Operations,Construction Works,14-Aug-23,5105886009,J.Hopkins (Contractors) Ltd.,"11,693.21"
Manchester City Council,Environment and Operations,Construction Works,14-Aug-23,5105886010,J.Hopkins (Contractors) Ltd.,"5,450.00"
Manchester City Council,Environment and Operations,Construction Works,14-Aug-23,5105886053,J.Hopkins (Contractors) Ltd.,"5,100.00"
Manchester City Council,Environment and Operations,Construction Works,14-Aug-23,5105886124,J.Hopkins (Contractors) Ltd.,"5,100.00"
Manchester City Council,Environment and Operations,Construction Works,14-Aug-23,5105886128,J.Hopkins (Contractors) Ltd.,574.12
Manchester City Council,Manchester Leisure,Building Materials for direct delivery,14-Aug-23,5105886027,Arboricultural Services Treework,"1,820.00"
Manchester City Council,Adult Social Care,Payments for services,14-Aug-23,5105885063,Big Life Centres,"238,508.00"
Manchester City Council,Adult Social Care,Payments for services,14-Aug-23,5105885946,Creative Support Ltd,"50,810.72"
Manchester City Council,Adult Social Care,Payments for services,14-Aug-23,5105886052,Creative Support Ltd,"21,608.59"
Manchester City Council,Adult Social Care,Payments for services,14-Aug-23,5105886112,Creative Support Ltd,"3,216.80"
Manchester City Council,Regeneration Finance,I T Provision,14-Aug-23,5105886122,Tribal Education,"23,996.28"
Manchester City Council,Manchester Leisure,Gas,14-Aug-23,5105885785,Wythenshawe Forum Trust Ltd,"3,971.41"
Manchester City Council,Manchester Leisure,Electricity,14-Aug-23,5105885785,Wythenshawe Forum Trust Ltd,"28,379.84"
Manchester City Council,Manchester Leisure,Grant and subscriptions awarded,14-Aug-23,5105885124,4CT Limited,"2,500.00"
Manchester City Council,Manchester Leisure,Grant and subscriptions awarded,14-Aug-23,5105885178,4CT Limited,"2,500.00"
Manchester City Council,Hospitality + Trading Services,Vehicle Hire Costs,14-Aug-23,5105885981,Verizon Connect UK Ltd,"1,398.60"
Manchester City Council,Environment and Operations,Construction Works,14-Aug-23,5105885845,Eric Wright Civil Engineering Limit,"61,353.77"
Manchester City Council,Housing Revenue Account,Works and associated costs for Land and Buildings,14-Aug-23,5105885846,Rowlinson Constructions Ltd,"147,313.20"
Manchester City Council,Housing Revenue Account,Works and associated costs for Land and Buildings,14-Aug-23,5105885846,Rowlinson Constructions Ltd,"281,269.57"
Manchester City Council,Manchester Leisure,Vehicle Plant Furniture and Equipment,14-Aug-23,5105886032,Insight Direct (Uk) Ltd,"4,675.40"
Manchester City Council,Childrens & Education Services,Third party payments relating to Voluntary Organisations,14-Aug-23,5105885996,Afruca,"10,235.00"
Manchester City Council,Adult Social Care,Bed & Breakfast Acc,14-Aug-23,5105886002,Redacted Personal Information,"11,900.00"
Manchester City Council,Regeneration Finance,Cleaning Equipment and Materials,14-Aug-23,5105886190,Alliance Disposables Ltd,"1,030.00"
Manchester City Council,Adult Social Care,Rents,14-Aug-23,5105886006,M & Q Properties Management Ltd,"3,128.00"
Manchester City Council,Corporate Services,Works and associated costs for Land and Buildings,14-Aug-23,5105884889,Morgan Sindall C & I Ltd,"1,336,190.63"
Manchester City Council,Chief Executives,Counsel Costs,14-Aug-23,1908191464,18 St John Street Chambers,"2,230.00"
Manchester City Council,Chief Executives,Counsel Costs,14-Aug-23,1908191466,18 St John Street Chambers,650.00
Manchester City Council,Childrens & Education Services,Contract Cleaning External,14-Aug-23,5105886118,Brighter Beginnings Day Nursery,"1,673.43"
Manchester City Council,Highways Services,Payments to Sub-Contractors,14-Aug-23,5105885950,Northern Marking Limited,"2,882.47"
Manchester City Council,Chief Executives,Legal Fees,14-Aug-23,1908191954,Weightmans LLP Solicitors,"6,532.00"
Manchester City Council,Chief Executives,Legal Fees,14-Aug-23,1908191955,Weightmans LLP Solicitors,"4,500.00"
Manchester City Council,Chief Executives,Legal Fees,14-Aug-23,1908191958,Weightmans LLP Solicitors,"51,007.10"
Manchester City Council,Adult Social Care,Legal Fees,14-Aug-23,5105886136,Cornerstone Barristers,-500.00
Manchester City Council,Adult Social Care,Personal needs of client,14-Aug-23,5105885746,Specialised Orthotic Services Ltd,"4,469.95"
Manchester City Council,Corporate Services,Contribution to PATROL,14-Aug-23,5105885979,Patrol Bus Lanes,"21,613.50"
Manchester City Council,Manchester Leisure,Special Event,14-Aug-23,5105885914,Greenwich Leisure Limited,"20,624.75"
Manchester City Council,Manchester Leisure,Special Event,14-Aug-23,5105885915,Greenwich Leisure Limited,"1,764.00"
Manchester City Council,Manchester Leisure,Special Event,14-Aug-23,5105885965,Greenwich Leisure Limited,"3,026.00"
Manchester City Council,Childrens & Education Services,Professional fees,14-Aug-23,5105885982,Redacted Personal Information,"2,800.00"
Manchester City Council,Manchester Leisure,Grant and subscriptions awarded,14-Aug-23,5105886135,Women's Voices CIC,"4,000.00"
Manchester City Council,Environment and Operations,Works and associated costs for Land and Buildings,14-Aug-23,1908184602,Redacted Personal Information,"3,000.00"
Manchester City Council,Adult Social Care,Funeral and coroner related services,14-Aug-23,5105885947,Greater Manchester Funeral Service,"1,455.00"
Manchester City Council,Manchester Leisure,Professional fees,14-Aug-23,5105885997,Pleydell Smithyman Limited,"19,375.00"
Manchester City Council,Corporate Services,WPS Awards,14-Aug-23,5105885380,Furniture Resource Centre Ltd,691.02
Manchester City Council,Corporate Services,Works and associated costs for Land and Buildings,14-Aug-23,5105885236,Seddon Construction Ltd,"38,125.08"
Manchester City Council,Corporate Services,Works and associated costs for Land and Buildings,14-Aug-23,5105885236,Seddon Construction Ltd,"36,280.26"
Manchester City Council,Housing Revenue Account,Surplus property Demolition,14-Aug-23,5105885706,Kaberry Construction Ltd,"91,799.44"
Manchester City Council,Adult Social Care,Grant and subscriptions awarded,14-Aug-23,5105885064,Revolving Doors Housing Trust,"49,824.00"
Manchester City Council,Manchester Leisure,Professional fees,14-Aug-23,5105885470,Redacted Personal Information,500.72
Manchester City Council,Corporate Services,Works and associated costs for Land and Buildings,14-Aug-23,5105885949,FEC Northern Gateway Development Lt,"1,666.67"
Manchester City Council,Manchester Leisure,Compensation Payments,14-Aug-23,1908191968,Bond Turner Solicitors,825.00
Manchester City Council,Manchester Leisure,Hire of Equipment,14-Aug-23,5105886038,Park NOW Limited,"3,591.84"
Manchester City Council,Chief Executives,Counsel Costs,14-Aug-23,1908186768,DEANS COURT CHAMBERS,850.00
Manchester City Council,Chief Executives,Printing,14-Aug-23,5105885605,The Purple Company (UK) Ltd,864.00
Manchester City Council,Chief Executives,Printing,14-Aug-23,5105885990,The Purple Company (UK) Ltd,-570.00
Manchester City Council,Chief Executives,Printing,14-Aug-23,5105885991,The Purple Company (UK) Ltd,"1,600.00"
Manchester City Council,Chief Executives,Printing,14-Aug-23,5105885991,The Purple Company (UK) Ltd,880.00
Manchester City Council,Chief Executives,Printing,14-Aug-23,5105885992,The Purple Company (UK) Ltd,570.00
Manchester City Council,Chief Executives,Printing,14-Aug-23,5105885999,The Purple Company (UK) Ltd,"1,129.00"
Manchester City Council,Chief Executives,Printing,14-Aug-23,5105886021,The Purple Company (UK) Ltd,538.00
Manchester City Council,Chief Executives,Signers/Interpreters,14-Aug-23,5105885978,Redacted Personal Information,"1,928.40"
Manchester City Council,Manchester Leisure,Goods purchased for resale in Council outlets,14-Aug-23,1908191625,Brigitte Jones,915.00
Manchester City Council,Adult Social Care,"Consumable items eg Toilet rolls, soap etc",14-Aug-23,1700155685,C2E859200493Z UKVI,"-3,199.00"
Manchester City Council,Adult Social Care,"Consumable items eg Toilet rolls, soap etc",14-Aug-23,1700155686,C2E859200771G UKVI,"-3,199.00"
Manchester City Council,Corporate Services,MABID,14-Aug-23,1908186002,Manchester Accommodation Business,"127,095.00"
Manchester City Council,Childrens & Education Services,Electricity,14-Aug-23,1908189738,POZITIVE ENERGY LTD,789.64
Manchester City Council,Adult Social Care,Professional fees,14-Aug-23,1908187270,Stitched Up Community Benefit Socie,946.00
Manchester City Council,Manchester Leisure,Professional fees,14-Aug-23,1908186785,Substance 2005 Limited,"2,030.00"
Manchester City Council,Regeneration Finance,BIS084 Learn&Skills,14-Aug-23,1908191436,Train-to-TEFL,"10,800.00"
Manchester City Council,Housing General Fund,Building Works,15-Aug-23,1908192873,Pollock Lifts Ltd,"11,377.00"
Manchester City Council,Housing General Fund,Building Works,15-Aug-23,1908192875,Pollock Lifts Ltd,"16,612.00"
Manchester City Council,Housing General Fund,Building Works,15-Aug-23,1908192877,Pollock Lifts Ltd,"13,241.00"
Manchester City Council,Chief Executives,I T Provision,15-Aug-23,5105885926,Iron Mountain,737.13
Manchester City Council,Chief Executives,I T Provision,15-Aug-23,5105886139,Iron Mountain,-737.13
Manchester City Council,Chief Executives,I T Provision,15-Aug-23,5105886140,Iron Mountain,737.13
Manchester City Council,Regeneration Finance,Compensation Payments,15-Aug-23,1908192781,Tranter Cleere & Co,"5,500.00"
Manchester City Council,Regeneration Finance,Legal Fees,15-Aug-23,1908192781,Tranter Cleere & Co,"2,718.00"
Manchester City Council,Highways Services,Purchase of stores for re-distribution,15-Aug-23,5105886125,Instarmac Group Ltd,"3,240.16"
Manchester City Council,Manchester Leisure,Water - Unmetered,15-Aug-23,1908185923,United Utilities Water Plc,500.48
Manchester City Council,Regeneration Finance,Furniture,15-Aug-23,5105886269,H Jenkinson & Co Ltd.,"1,004.00"
Manchester City Council,Regeneration Finance,Furniture,15-Aug-23,5105886270,H Jenkinson & Co Ltd.,974.25
Manchester City Council,Regeneration Finance,Removal and Storage of Furniture,15-Aug-23,5105886265,H Jenkinson & Co Ltd.,"1,050.00"
Manchester City Council,Corporate Services,Works and associated costs for Land and Buildings,15-Aug-23,5105886271,H Jenkinson & Co Ltd.,600.00
Manchester City Council,Corporate Services,Agency staff provision,15-Aug-23,5105885568,Michael Page International,672.00
Manchester City Council,Manchester Leisure,Works and associated costs for Land and Buildings,15-Aug-23,5105885325,Wicksteed Leisure Ltd,"12,052.12"
Manchester City Council,Hospitality + Trading Services,Hire of Machinery,15-Aug-23,5105886156,R & M Developments Ltd,606.67
Manchester City Council,Hospitality + Trading Services,Hire of Machinery,15-Aug-23,5105886157,R & M Developments Ltd,511.33
Manchester City Council,Hospitality + Trading Services,Hire of Machinery,15-Aug-23,5105886158,R & M Developments Ltd,606.67
Manchester City Council,Hospitality + Trading Services,Hire of Machinery,15-Aug-23,5105886159,R & M Developments Ltd,511.33
Manchester City Council,Hospitality + Trading Services,Hire of Machinery,15-Aug-23,5105886160,R & M Developments Ltd,541.67
Manchester City Council,Hospitality + Trading Services,Hire of Machinery,15-Aug-23,5105886162,R & M Developments Ltd,"1,073.50"
Manchester City Council,Hospitality + Trading Services,Hire of Machinery,15-Aug-23,5105886164,R & M Developments Ltd,"1,073.50"
Manchester City Council,Hospitality + Trading Services,Hire of Machinery,15-Aug-23,5105886168,R & M Developments Ltd,"1,073.50"
Manchester City Council,Hospitality + Trading Services,Hire of Machinery,15-Aug-23,5105886169,R & M Developments Ltd,"1,073.50"
Manchester City Council,Housing Revenue Account,Council Dwelling Adaptations,15-Aug-23,5105886179,Moores Furniture Group Limited,"2,572.43"
Manchester City Council,Housing Revenue Account,Council Dwelling Adaptations,15-Aug-23,5105886180,Moores Furniture Group Limited,"4,160.11"
Manchester City Council,Manchester Leisure,Grant and subscriptions awarded,15-Aug-23,5105886183,St John Ambulance Supplies,"3,300.00"
Manchester City Council,Regeneration Finance,Removal and Storage of Furniture,15-Aug-23,5105886165,Master Moves Ltd,"1,037.48"
Manchester City Council,Regeneration Finance,Removal and Storage of Furniture,15-Aug-23,5105886166,Master Moves Ltd,"1,054.72"
Manchester City Council,Regeneration Finance,Removal and Storage of Furniture,15-Aug-23,5105886167,Master Moves Ltd,805.14
Manchester City Council,Manchester Leisure,Payments to Sub-Contractors,15-Aug-23,5105885210,Rigby Taylor Ltd,"2,050.00"
Manchester City Council,Housing Revenue Account,Council Dwelling Adaptations,15-Aug-23,5105886306,Emanuel Whittaker Ltd,"60,853.57"
Manchester City Council,Highways Services,Building Materials for direct delivery,15-Aug-23,5105886199,Kloeckner Metals UK,"2,105.00"
Manchester City Council,Highways Services,Building Materials for direct delivery,15-Aug-23,5105886184,TARMAC,982.35
Manchester City Council,Highways Services,Building Materials for direct delivery,15-Aug-23,5105886185,TARMAC,"1,465.00"
Manchester City Council,Manchester Leisure,Payments to Sub-Contractors,15-Aug-23,5105886025,Arboricultural Services Treework,"1,200.00"
Manchester City Council,Manchester Leisure,Payments to Sub-Contractors,15-Aug-23,5105886026,Arboricultural Services Treework,"9,000.00"
Manchester City Council,Childrens & Education Services,Transport Coach Hire,15-Aug-23,5105886254,Redacted Personal Information,"2,600.00"
Manchester City Council,Manchester Leisure,Compensation Payments,15-Aug-23,1908192796,Antony Hodari Holding Ltd,"8,500.00"
Manchester City Council,Housing General Fund,Building Works,15-Aug-23,1908192866,Stannah Lift Services Ltd,"6,622.00"
Manchester City Council,Housing General Fund,Building Works,15-Aug-23,1908192867,Stannah Lift Services Ltd,"2,789.00"
Manchester City Council,Housing General Fund,Building Works,15-Aug-23,1908192868,Stannah Lift Services Ltd,"3,912.00"
Manchester City Council,Housing General Fund,Building Works,15-Aug-23,1908192872,Stannah Lift Services Ltd,"3,164.00"
Manchester City Council,Housing General Fund,Building Works,15-Aug-23,1908192876,Stannah Lift Services Ltd,"5,940.00"
Manchester City Council,Housing General Fund,Building Works,15-Aug-23,1908192869,Stannah Lift Services Ltd,"2,951.00"
Manchester City Council,Housing General Fund,Building Works,15-Aug-23,1908192870,Stannah Lift Services Ltd,"3,240.00"
Manchester City Council,Housing General Fund,Building Works,15-Aug-23,1908192874,Stannah Lift Services Ltd,"7,715.00"
Manchester City Council,Childrens & Education Services,Private Finance and Public Private partnership initiatives,15-Aug-23,5105884718,NU3PS,"91,494.92"
Manchester City Council,Adult Social Care,Third party payments relating to Voluntary Organisations,15-Aug-23,5105886037,The Depaul Trust,"10,603.50"
Manchester City Council,General Fund,Levies,15-Aug-23,#,GMCA,"3,905,500.00"
Manchester City Council,Housing General Fund,Building Works,15-Aug-23,1908192871,Hoist & Shower Chair Company,"2,938.00"
Manchester City Council,Chief Executives,Legal Fees,15-Aug-23,5105886201,Russell & Russell Solicitors LLP,"2,818.75"
Manchester City Council,Chief Executives,Rents,15-Aug-23,5105885108,Manchester Central,"12,195.35"
Manchester City Council,Chief Executives,Rents,15-Aug-23,5105886070,Manchester Central,"5,814.95"
Manchester City Council,Manchester Leisure,Catering,15-Aug-23,5105885113,Manchester Central,549.50
Manchester City Council,Chief Executives,Catering,15-Aug-23,5105885110,Manchester Central,"4,242.00"
Manchester City Council,Chief Executives,Catering,15-Aug-23,5105885112,Manchester Central,956.22
Manchester City Council,Corporate Services,Professional fees,15-Aug-23,5105886003,Turner & Townsend Project,"2,600.00"
Manchester City Council,Corporate Services,Works and associated costs for Land and Buildings,15-Aug-23,5105886041,Turner & Townsend Project,"9,550.00"
Manchester City Council,Adult Social Care,Equipment,15-Aug-23,5105886230,Aidapt Bathrooms Ltd,"5,100.00"
Manchester City Council,Adult Social Care,Equipment,15-Aug-23,5105886241,Aidapt Bathrooms Ltd,"2,352.00"
Manchester City Council,Regeneration Finance,Counsel Costs,15-Aug-23,1908187314,Redacted Personal Information,550.00
Manchester City Council,Chief Executives,Agency staff provision,15-Aug-23,5105886228,Triad Resourcing,"16,800.00"
Manchester City Council,Corporate Services,Vehicle Costs,15-Aug-23,1700155688,Cyclescheme Ltd,-713.34
Manchester City Council,Corporate Services,Vehicle Costs,15-Aug-23,1908192803,Cyclescheme Ltd,"1,603.33"
Manchester City Council,Corporate Services,Vehicle Costs,15-Aug-23,1908192804,Cyclescheme Ltd,"2,083.33"
Manchester City Council,Corporate Services,Vehicle Costs,15-Aug-23,1908192807,Cyclescheme Ltd,"5,360.83"
Manchester City Council,Childrens & Education Services,Payments for services,15-Aug-23,5105886223,Time Specialist Support Ltd,"1,443.11"
Manchester City Council,Childrens & Education Services,Professional fees,15-Aug-23,5105886255,Time Specialist Support Ltd,"1,380.00"
Manchester City Council,Chief Executives,ICT Sup & Maintnance,15-Aug-23,5105886043,Trustmarque Solutions Ltd,"2,000.00"
Manchester City Council,Manchester Leisure,Payments to Sub-Contractors,15-Aug-23,5105885902,Scrutiny Cleaning Services,"8,192.87"
Manchester City Council,Manchester Leisure,Payments to Sub-Contractors,15-Aug-23,5105885904,Scrutiny Cleaning Services,"1,125.00"
Manchester City Council,Regeneration Finance,Third party payments relating to Voluntary Organisations,15-Aug-23,5105886209,Reform Radio CIC,900.00
Manchester City Council,Adult Social Care,Rents,15-Aug-23,5105886044,Mack Residential Letting Ltd,"190,945.82"
Manchester City Council,Adult Social Care,Rents,15-Aug-23,5105886294,Mack Residential Letting Ltd,"198,220.40"
Manchester City Council,Corporate Services,Elec Car L-VAT contr,15-Aug-23,1908192821,Northumbria Healthcare NHS FT,"1,963.31"
Manchester City Council,Corporate Services,Elec Car Lease,15-Aug-23,1908192818,Northumbria Healthcare NHS FT,"2,432.46"
Manchester City Council,Corporate Services,Elec Car Lease,15-Aug-23,1908192821,Northumbria Healthcare NHS FT,"21,948.73"
Manchester City Council,Childrens & Education Services,Transport Coach Hire,15-Aug-23,5105886258,Liddle Hackney Carriage,"-4,400.00"
Manchester City Council,Housing Revenue Account,Council Dwelling Adaptations,15-Aug-23,5105886194,Nova Group Ltd,"18,762.11"
Manchester City Council,Adult Social Care,Rents,15-Aug-23,5105886308,K L Properties,"17,435.00"
Manchester City Council,Manchester Leisure,Payments to Sub-Contractors,15-Aug-23,5105884676,Greenfingers Landscape Ltd,"11,836.54"
Manchester City Council,Childrens & Education Services,Payments for services,15-Aug-23,5105886282,National Offender Mgt Services,"10,168.00"
Manchester City Council,Childrens & Education Services,Payments for services,15-Aug-23,5105886284,National Offender Mgt Services,"10,168.00"
Manchester City Council,Childrens & Education Services,Payments for services,15-Aug-23,5105886285,National Offender Mgt Services,"10,168.00"
Manchester City Council,Childrens & Education Services,Payments for services,15-Aug-23,5105886286,National Offender Mgt Services,"25,978.00"
Manchester City Council,Childrens & Education Services,Payments for services,15-Aug-23,5105886287,National Offender Mgt Services,"2,624.00"
Manchester City Council,Childrens & Education Services,Payments for services,15-Aug-23,5105886288,National Offender Mgt Services,"10,168.00"
Manchester City Council,Childrens & Education Services,Payments for services,15-Aug-23,5105886289,National Offender Mgt Services,"2,296.00"
Manchester City Council,Childrens & Education Services,Payments for services,15-Aug-23,5105886301,National Offender Mgt Services,"4,264.00"
Manchester City Council,Childrens & Education Services,Payments for services,15-Aug-23,5105886302,National Offender Mgt Services,"10,168.00"
Manchester City Council,Childrens & Education Services,Payments for services,15-Aug-23,5105886303,National Offender Mgt Services,"7,216.00"
Manchester City Council,Chief Executives,Counsel Costs,15-Aug-23,1908192837,Central Chambers,850.00
Manchester City Council,Chief Executives,CRB Fees,15-Aug-23,5105886283,Complete Background Screening Ltd,506.00
Manchester City Council,Chief Executives,CRB Fees,15-Aug-23,5105886290,Complete Background Screening Ltd,"1,483.50"
Manchester City Council,Corporate Services,WPS Awards,15-Aug-23,5105885444,Furniture Resource Centre Ltd,969.70
Manchester City Council,Corporate Services,WPS Awards,15-Aug-23,5105886279,Furniture Resource Centre Ltd,656.25
Manchester City Council,Corporate Services,Professional fees,15-Aug-23,5105886309,Pick Everard,"2,537.64"
Manchester City Council,Adult Social Care,Bed & Breakfast Acc,15-Aug-23,5105885954,Medlock House Ltd,"7,252.00"
Manchester City Council,Adult Social Care,External repairs and maintenance for buildings,15-Aug-23,5105886048,T F Jones Property Services Ltd,"1,006.06"
Manchester City Council,Adult Social Care,External repairs and maintenance for buildings,15-Aug-23,5105886213,T F Jones Property Services Ltd,650.98
Manchester City Council,Adult Social Care,External repairs and maintenance for buildings,15-Aug-23,5105886216,T F Jones Property Services Ltd,507.87
Manchester City Council,Adult Social Care,External repairs and maintenance for buildings,15-Aug-23,5105886217,T F Jones Property Services Ltd,591.80
Manchester City Council,Adult Social Care,External repairs and maintenance for buildings,15-Aug-23,5105886218,T F Jones Property Services Ltd,591.80
Manchester City Council,Regeneration Finance,Security,15-Aug-23,5105886200,NE1 Procurement Services Limited,"14,500.00"
Manchester City Council,Regeneration Finance,Security,15-Aug-23,5105886221,NE1 Procurement Services Limited,"11,874.99"
Manchester City Council,Chief Executives,Counsel Costs,15-Aug-23,1908192792,DEANS COURT CHAMBERS,"1,040.00"
Manchester City Council,Corporate Services,Counsel Costs,15-Aug-23,1908192815,Trinity Chambers,875.00
Manchester City Council,Childrens & Education Services,Grant Payments,15-Aug-23,1908192813,Paypoint,"11,157.17"
Manchester City Council,Adult Social Care,Grant and subscriptions awarded,15-Aug-23,5105886229,4Wings Northwest CIC,"6,450.00"
Manchester City Council,Chief Executives,Payments to Sub-Contractors,15-Aug-23,5105886225,Redacted Personal Information,869.28
Manchester City Council,Adult Social Care,Rents,15-Aug-23,1908193007,Sensory Housing Ltd,"1,350.00"
Manchester City Council,Adult Social Care,Rents,15-Aug-23,1908193008,Sensory Housing Ltd,"1,350.00"
Manchester City Council,Adult Social Care,Rents,15-Aug-23,1908193009,Sensory Housing Ltd,"1,680.00"
Manchester City Council,Adult Social Care,Rents,15-Aug-23,1908193010,Sensory Housing Ltd,"1,680.00"
Manchester City Council,Adult Social Care,Furniture,15-Aug-23,1908193009,Sensory Housing Ltd,"1,200.00"
Manchester City Council,Adult Social Care,Furniture,15-Aug-23,1908193010,Sensory Housing Ltd,"1,200.00"
Manchester City Council,Childrens & Education Services,Professional fees,15-Aug-23,5105886256,The Movez Movement,"2,697.50"
Manchester City Council,Regeneration Finance,External repairs and maintenance for buildings,15-Aug-23,5105886195,Redacted Personal Information,"3,041.40"
Manchester City Council,Childrens & Education Services,Professional fees,15-Aug-23,5105885472,All In One Learning Centre,"31,680.00"
Manchester City Council,Regeneration Finance,External repairs and maintenance for buildings,15-Aug-23,5105886305,Cesar Santos Cerejo,"1,561.56"
Manchester City Council,Regeneration Finance,Removal and Storage of Furniture,15-Aug-23,5105886305,Cesar Santos Cerejo,554.50
Manchester City Council,Childrens & Education Services,Professional fees,15-Aug-23,5105886182,Fair Futures CIC,"4,000.00"
Manchester City Council,Manchester Leisure,Grant and subscriptions awarded,15-Aug-23,5105886198,String of Hearts CIC,500.00
Manchester City Council,Manchester Leisure,Compensation Payments,15-Aug-23,1908192795,BAKER REIGN,"8,000.00"
Manchester City Council,Childrens & Education Services,Water - Metered,15-Aug-23,1908190251,Castle Water Limited,"1,372.91"
Manchester City Council,Manchester Leisure,Compensation Payments,15-Aug-23,1908192811,COYNE LEARMONTH,"12,500.00"
Manchester City Council,Highways Services,Compensation Payments,15-Aug-23,1908191408,Dorothy Blake,723.15
Manchester City Council,Manchester Leisure,Compensation Payments,15-Aug-23,1908192798,EMERALD LAW SOLICITORS,"2,000.00"
Manchester City Council,Manchester Leisure,Subsistence and Conference Expenses,15-Aug-23,1908190214,Ocean Media Group,585.00
Manchester City Council,Corporate Services,Electricity,15-Aug-23,1908190237,PAYPOINT NETWORK LTD,"1,571.52"
Manchester City Council,Adult Social Care,Payments for services,15-Aug-23,1908180050,Phoenix Futures,733.57
Manchester City Council,Chief Executives,Professional fees,15-Aug-23,1908187315,Spencer West LLP,"2,000.00"
Manchester City Council,Childrens & Education Services,PNOR-Other Amenities,15-Aug-23,1908186776,The Learning Station,"1,336.50"
Manchester City Council,Chief Executives,Grant and subscriptions awarded,15-Aug-23,1908190243,Whitehall & Industry Group,"5,950.00"
Manchester City Council,Childrens & Education Services,Payments for services,16-Aug-23,5105884341,Redacted Personal Information,"-1,925.00"
Manchester City Council,Childrens & Education Services,Payments for services,16-Aug-23,5105884342,Redacted Personal Information,"1,925.00"
Manchester City Council,Childrens & Education Services,Payments for services,16-Aug-23,5105886497,Redacted Personal Information,"1,050.00"
Manchester City Council,Chief Executives,Payments to Sub-Contractors,16-Aug-23,5105886471,Redacted Personal Information,647.38
Manchester City Council,Adult Social Care,Personal needs of client,16-Aug-23,5105886498,Tunstall Healthcare (UK) Ltd,"3,897.00"
Manchester City Council,Corporate Services,Accounts Asset Valua,16-Aug-23,5105886371,GVA Grimley Ltd,"-52,500.00"
Manchester City Council,Corporate Services,Accounts Asset Valua,16-Aug-23,5105886372,GVA Grimley Ltd,"52,500.00"
Manchester City Council,Adult Social Care,Professional fees,16-Aug-23,5105886483,Action First iPeople Ltd,500.00
Manchester City Council,Adult Social Care,Professional fees,16-Aug-23,5105886484,Action First iPeople Ltd,700.00
Manchester City Council,Adult Social Care,Professional fees,16-Aug-23,5105886496,Action First iPeople Ltd,500.00
Manchester City Council,Manchester Leisure,Electricity,16-Aug-23,5105886227,Switch2 Energey Limited,"1,839.34"
Manchester City Council,Childrens & Education Services,"Consumable items eg Toilet rolls, soap etc",16-Aug-23,1908195541,Argos Business Solutions,-645.93
Manchester City Council,Childrens & Education Services,"Consumable items eg Toilet rolls, soap etc",16-Aug-23,1908195896,Argos Business Solutions,731.95
Manchester City Council,Childrens & Education Services,"Consumable items eg Toilet rolls, soap etc",16-Aug-23,1908196420,Argos Business Solutions,641.05
Manchester City Council,Childrens & Education Services,"Consumable items eg Toilet rolls, soap etc",16-Aug-23,1908196649,Argos Business Solutions,613.50
Manchester City Council,Regeneration Finance,"Consumable items eg Toilet rolls, soap etc",16-Aug-23,1908196753,Argos Business Solutions,900.95
Manchester City Council,Manchester Leisure,Professional fees,16-Aug-23,5105884376,Lois Burton Ltd,"3,000.00"
Manchester City Council,Regeneration Finance,Training and Development,16-Aug-23,5105886187,Seta Ltd,"3,465.00"
Manchester City Council,Adult Social Care,Payments for services,16-Aug-23,5105886355,Care Concepts Ltd,"9,899.78"
Manchester City Council,Adult Social Care,Payments for services,16-Aug-23,5105886356,Care Concepts Ltd,"9,899.78"
Manchester City Council,Manchester Leisure,Grant and subscriptions awarded,16-Aug-23,5105886411,Zion Arts Centre Ltd,"1,000.00"
Manchester City Council,Adult Social Care,Payments for services,16-Aug-23,5105886422,Creative Support Ltd,"21,608.59"
Manchester City Council,Childrens & Education Services,Payments for services,16-Aug-23,5105886448,Rossendale School Priory,"6,367.40"
Manchester City Council,Childrens & Education Services,Payments for services,16-Aug-23,5105886449,Rossendale School Priory,"5,767.37"
Manchester City Council,Childrens & Education Services,Payments for services,16-Aug-23,5105886450,Rossendale School Priory,"5,772.55"
Manchester City Council,Environment and Operations,Construction Works,16-Aug-23,5105886172,Amey Highways Lighting (Manchester),"2,384.97"
Manchester City Council,Childrens & Education Services,Public Transport,16-Aug-23,5105886433,Transport for Greater Manchester,"27,274.40"
Manchester City Council,Childrens & Education Services,Public Transport,16-Aug-23,5105886434,Transport for Greater Manchester,"10,073.40"
Manchester City Council,Childrens & Education Services,Public Transport,16-Aug-23,5105886437,Transport for Greater Manchester,"9,548.10"
Manchester City Council,Adult Social Care,Extra Care Sheltd HP,16-Aug-23,5105884472,Premier Care  Ltd,"54,080.13"
Manchester City Council,Adult Social Care,Extra Care Sheltd HP,16-Aug-23,5105884473,Premier Care  Ltd,"32,903.12"
Manchester City Council,Adult Social Care,Extra Care Sheltd HP,16-Aug-23,5105884474,Premier Care  Ltd,"25,639.93"
Manchester City Council,Adult Social Care,Extra Care Sheltd HP,16-Aug-23,5105884476,Premier Care  Ltd,"23,889.76"
Manchester City Council,Manchester Leisure,Grant and subscriptions awarded,16-Aug-23,5105886420,Trinity House Community Resource Ce,"2,666.00"
Manchester City Council,Childrens & Education Services,Transport Taxis,16-Aug-23,5105886033,David'S Handy Rider,"2,775.00"
Manchester City Council,Corporate Services,Legal Fees,16-Aug-23,1908196748,HMCTS (Manchester),"1,018.00"
Manchester City Council,Chief Executives,Advertising,16-Aug-23,5105886444,Ocean Media Group Ltd,995.00
Manchester City Council,Childrens & Education Services,Transport Taxis,16-Aug-23,5105885587,Exec-Coach Services,"2,100.00"
Manchester City Council,Childrens & Education Services,Licences Purchase,16-Aug-23,5105885437,Insight Direct (Uk) Ltd,501.04
Manchester City Council,Corporate Services,Licences Purchase,16-Aug-23,5105885713,Insight Direct (Uk) Ltd,610.20
Manchester City Council,Chief Executives,Agency staff provision,16-Aug-23,5105886524,Hays Personnel,"34,452.63"
Manchester City Council,Adult Social Care,"Consumable items eg Toilet rolls, soap etc",16-Aug-23,1908196284,Amazon Co.Uk,"1,316.33"
Manchester City Council,Adult Social Care,"Consumable items eg Toilet rolls, soap etc",16-Aug-23,1908196443,Amazon Co.Uk,"3,500.00"
Manchester City Council,Adult Social Care,"Consumable items eg Toilet rolls, soap etc",16-Aug-23,1908196455,Amazon Co.Uk,"5,000.00"
Manchester City Council,Adult Social Care,"Consumable items eg Toilet rolls, soap etc",16-Aug-23,1908196532,Amazon Co.Uk,"2,000.00"
Manchester City Council,Adult Social Care,"Consumable items eg Toilet rolls, soap etc",16-Aug-23,1908196621,Amazon Co.Uk,"2,400.00"
Manchester City Council,Adult Social Care,"Consumable items eg Toilet rolls, soap etc",16-Aug-23,1908196651,Amazon Co.Uk,"1,000.00"
Manchester City Council,Adult Social Care,"Consumable items eg Toilet rolls, soap etc",16-Aug-23,1908196671,Amazon Co.Uk,"1,000.00"
Manchester City Council,Regeneration Finance,"Consumable items eg Toilet rolls, soap etc",16-Aug-23,1908196009,Amazon Co.Uk,"1,205.49"
Manchester City Council,Environment and Operations,Construction Works,16-Aug-23,5105886259,GMCA,"10,240.56"
Manchester City Council,Regeneration Finance,Training and Development,16-Aug-23,5105886481,GMCA,"1,694.85"
Manchester City Council,Adult Social Care,Extra Care Sheltd HP,16-Aug-23,5105884544,Sevacare (U K ) lTD,"44,843.00"
Manchester City Council,Adult Social Care,Extra Care Sheltd HP,16-Aug-23,5105884545,Sevacare (U K ) lTD,"27,254.10"
Manchester City Council,Adult Social Care,Extra Care Sheltd HP,16-Aug-23,5105884829,Sevacare (U K ) lTD,"41,447.13"
Manchester City Council,Adult Social Care,Equipment,16-Aug-23,5105886517,Drive Devilbiss Healthcare Ltd,"2,692.50"
Manchester City Council,Chief Executives,Legal Fees,16-Aug-23,5105886470,Russell & Russell Solicitors LLP,"5,314.42"
Manchester City Council,Childrens & Education Services,Contract Cleaning External,16-Aug-23,5105886359,Brighter Beginnings (Newton Heath),"2,231.00"
Manchester City Council,Childrens & Education Services,Contract Cleaning External,16-Aug-23,5105886360,Brighter Beginnings Day Nursery,"2,231.00"
Manchester City Council,Childrens & Education Services,Payments for services,16-Aug-23,5105886386,Cumberland & Westmorland,"24,435.18"
Manchester City Council,Childrens & Education Services,Payments for services,16-Aug-23,5105886443,Cumberland & Westmorland,"23,291.39"
Manchester City Council,Regeneration Finance,Professional fees,16-Aug-23,5105885767,Jacobs UK Ltd,"50,600.00"
Manchester City Council,Manchester Leisure,Professional fees,16-Aug-23,5105886347,Rackline Limited,500.00
Manchester City Council,Corporate Services,Subsistence and Conference Expenses,16-Aug-23,5105886413,Hbinfo Ltd,"1,000.00"
Manchester City Council,Corporate Services,Works and associated costs for Land and Buildings,16-Aug-23,5105886511,Mather & Co Limited,"1,250.00"
Manchester City Council,Manchester Leisure,Payments to Sub-Contractors,16-Aug-23,5105885903,Scrutiny Cleaning Services,"9,233.66"
Manchester City Council,Manchester Leisure,Works and associated costs for Land and Buildings,16-Aug-23,5105886311,ISG Construction Limited,"36,654.97"
Manchester City Council,Regeneration Finance,Equipment,16-Aug-23,5105886389,Planit,"2,500.00"
Manchester City Council,Regeneration Finance,External repairs and maintenance for buildings,16-Aug-23,5105886240,Energy Assets Limited,"6,481.13"
Manchester City Council,Corporate Services,Works and associated costs for Land and Buildings,16-Aug-23,5105885920,Janice Tullock Associates Ltd,"2,375.00"
Manchester City Council,Chief Executives,Rents,16-Aug-23,5105886316,ANS Group PLC,"31,000.00"
Manchester City Council,Chief Executives,Rents,16-Aug-23,5105886342,ANS Group PLC,"-31,000.00"
Manchester City Council,Childrens & Education Services,General Office expenses,16-Aug-23,1908196058,EE / Orange,764.50
Manchester City Council,Adult Social Care,"Consumable items eg Toilet rolls, soap etc",16-Aug-23,1908196311,Asda Group Ltd (CARD ONLY),539.69
Manchester City Council,Adult Social Care,Catering Provisions,16-Aug-23,1908196745,Asda Group Ltd (CARD ONLY),606.20
Manchester City Council,Adult Social Care,Catering Provisions,16-Aug-23,1908196757,Asda Group Ltd (CARD ONLY),658.98
Manchester City Council,Environment and Operations,Construction Works,16-Aug-23,5105886423,Civic Engineers,"2,675.00"
Manchester City Council,Corporate Services,Fees,16-Aug-23,5105886345,Pannone Corporate LLP,"13,739.60"
Manchester City Council,Manchester Leisure,Works and associated costs for Land and Buildings,16-Aug-23,5105886421,Willfab Ltd,645.00
Manchester City Council,Manchester Leisure,Refuse Collection,16-Aug-23,5105886220,Biffa Municipal Limited,"1,397,669.24"
Manchester City Council,Childrens & Education Services,Transport Coach Hire,16-Aug-23,5105886260,Liddle Hackney Carriage,"2,860.00"
Manchester City Council,Chief Executives,Professional fees,16-Aug-23,1908192993,Carter Brown The Expert Service,"1,386.90"
Manchester City Council,Adult Social Care,Personal needs of client,16-Aug-23,5105886388,Doro Care Ltd,"2,008.00"
Manchester City Council,Chief Executives,Data Links,16-Aug-23,5105885631,The Networking People (TNP) Ltd,502.66
Manchester City Council,Adult Social Care,Rents,16-Aug-23,5105886442,Eeven Homes Ltd.,"17,870.00"
Manchester City Council,Chief Executives,Printing,16-Aug-23,5105885998,Mortons Media Group Ltd,"6,742.00"
Manchester City Council,Chief Executives,Printing,16-Aug-23,5105885998,Mortons Media Group Ltd,587.00
Manchester City Council,Adult Social Care,Legal Fees,16-Aug-23,5105886435,Redacted Personal Information,"1,250.00"
Manchester City Council,Adult Social Care,Legal Fees,16-Aug-23,5105886439,Redacted Personal Information,500.00
Manchester City Council,Regeneration Finance,Agency staff provision,16-Aug-23,5105886503,Proventure Consulting,"5,333.32"
Manchester City Council,Corporate Services,External repairs and maintenance for buildings,16-Aug-23,5105886317,EQUANS Services Limited,"2,805.00"
Manchester City Council,Corporate Services,Professional fees,16-Aug-23,5105886512,Glantus UK Ltd,"6,272.31"
Manchester City Council,Corporate Services,Professional fees,16-Aug-23,5105886513,Glantus UK Ltd,"4,691.88"
Manchester City Council,Corporate Services,Professional fees,16-Aug-23,5105886514,Glantus UK Ltd,"2,831.64"
Manchester City Council,Regeneration Finance,Rents,16-Aug-23,1908168039,Vanguard Holdings Ltd,"37,081.60"
Manchester City Council,Manchester Leisure,"Consumable items eg Toilet rolls, soap etc",16-Aug-23,1908195652,Premier Inn P CARD ONLY,869.98
Manchester City Council,Manchester Leisure,"Consumable items eg Toilet rolls, soap etc",16-Aug-23,1908195647,TRAVELODGE P CARD ONLY,830.23
Manchester City Council,Adult Social Care,Bed & Breakfast Acc,16-Aug-23,1908195524,TRAVELODGE P CARD ONLY,"1,069.83"
Manchester City Council,Adult Social Care,Bed & Breakfast Acc,16-Aug-23,1908195558,TRAVELODGE P CARD ONLY,963.75
Manchester City Council,Adult Social Care,Bed & Breakfast Acc,16-Aug-23,1908195660,TRAVELODGE P CARD ONLY,842.43
